Department Family,Entity,Date,Expense Type,Expense Area,Supplier,Transaction Number,Amount,Description,Supplier Postcode ,Project Code,Expenditure Type
Ministry of Justice,MoJ HQ,21-Jun-13,226000-Court Costs,KY100-Costs from Central Funds,KY10000003,22732,"36,678.60",Payment for a defendant's court order certified by the registrar of the Supreme court.,WC1N 2LS,,
Ministry of Justice,MoJ HQ,26-Jun-13,311100-Legal Aid,KY300-Legal Services Strategy,LEGAL AID AGENCY (LAA),3294,"8,633,000.00",Grants to Legal Aid Agency in respect of CLS & Criminal Legal Aid,SW1H 9AJ-FUND,,
Ministry of Justice,MoJ HQ,13-Jun-13,311100-Legal Aid,KY300-Legal Services Strategy,LEGAL AID AGENCY (LAA),3240,"9,468,000.00",Grants to Legal Aid Agency in respect of CLS & Criminal Legal Aid,SW1H 9AJ-FUND,,
Ministry of Justice,MoJ HQ,19-Jun-13,311100-Legal Aid,KY300-Legal Services Strategy,LEGAL AID AGENCY (LAA),3264,"10,319,000.00",Grants to Legal Aid Agency in respect of CLS & Criminal Legal Aid,SW1H 9AJ-FUND,,
Ministry of Justice,MoJ HQ,13-Jun-13,311100-Legal Aid,KY300-Legal Services Strategy,LEGAL AID AGENCY (LAA),3240,"10,690,000.00",Grants to Legal Aid Agency in respect of CLS & Criminal Legal Aid,SW1H 9AJ-FUND,,
Ministry of Justice,MoJ HQ,19-Jun-13,311100-Legal Aid,KY300-Legal Services Strategy,LEGAL AID AGENCY (LAA),3264,"14,303,000.00",Grants to Legal Aid Agency in respect of CLS & Criminal Legal Aid,SW1H 9AJ-FUND,,
Ministry of Justice,MoJ HQ,26-Jun-13,311100-Legal Aid,KY300-Legal Services Strategy,LEGAL AID AGENCY (LAA),3294,"24,367,000.00",Grants to Legal Aid Agency in respect of CLS & Criminal Legal Aid,SW1H 9AJ-FUND,,
Ministry of Justice,MoJ HQ,06-Jun-13,311100-Legal Aid,KY300-Legal Services Strategy,LEGAL AID AGENCY (LAA),3215,"27,785,000.00",Grants to Legal Aid Agency in respect of CLS & Criminal Legal Aid,SW1H 9AJ-FUND,,
Ministry of Justice,MoJ HQ,06-Jun-13,311100-Legal Aid,KY300-Legal Services Strategy,LEGAL AID AGENCY (LAA),3215,"44,613,000.00",Grants to Legal Aid Agency in respect of CLS & Criminal Legal Aid,SW1H 9AJ-FUND,,
Ministry of Justice,MoJ HQ,27-Jun-13,611000-Debtors <1 year - Other Debtors,WW000-Balance Sheet,SOFTCAT LTD,1105057,"47,646.90",REFUND OF DUPLICATE INVOICE ALSO PAID UNDER INV00601698,SL7 1LW,,
Ministry of Justice,MoJ HQ,21-Jun-13,610400-Debtors <1 year - Prepayments & Accrued Income,WW000-Balance Sheet,CITY OF WESTMINSTER,1104544,"50,082.00",Rates Invoice / Accounting Adjustment,RATES,,
Ministry of Justice,MoJ HQ,21-Jun-13,610400-Debtors <1 year - Prepayments & Accrued Income,WW000-Balance Sheet,LONDON BOROUGH OF CAMDEN,1104546,"75,614.00",Rates Invoice / Accounting Adjustment,RATES,,
Ministry of Justice,MoJ HQ,21-Jun-13,610400-Debtors <1 year - Prepayments & Accrued Income,WW000-Balance Sheet,CITY OF WESTMINSTER,1104544,"83,961.00",Rates Invoice / Accounting Adjustment,RATES,,
Ministry of Justice,MoJ HQ,21-Jun-13,610400-Debtors <1 year - Prepayments & Accrued Income,WW000-Balance Sheet,CITY OF WESTMINSTER,1104544,"89,362.00",Rates Invoice / Accounting Adjustment,RATES,,
Ministry of Justice,MoJ HQ,21-Jun-13,610400-Debtors <1 year - Prepayments & Accrued Income,WW000-Balance Sheet,CITY OF WESTMINSTER,1104544,"147,300.00",Rates Invoice / Accounting Adjustment,RATES,,
Ministry of Justice,MoJ HQ,21-Jun-13,610400-Debtors <1 year - Prepayments & Accrued Income,WW000-Balance Sheet,CITY OF WESTMINSTER,1104544,"585,272.00",Rates Invoice / Accounting Adjustment,RATES
Ministry of Justice,MoJ HQ,06-Jun-13,265000-IT & Telecommunications,QY200-OU10 Billback,VODAFONE CORPORATE LTD,1103257,"25,560.87",MoJ HQ Vodafone Mobiles - FY 13-14,RG14 5FF
Ministry of Justice,MoJ HQ,06-Jun-13,265000-IT & Telecommunications,QY200-OU10 Billback,ATOS IT SERVICES UK LTD,1103005,"43,830.73",CCN - 2277-01 - NOP Non-WITO charges  (Feb '13 to Apr '13),WV10 6UH
Ministry of Justice,MoJ HQ,06-Jun-13,265000-IT & Telecommunications,QY200-OU10 Billback,ATOS IT SERVICES UK LTD,1103005,"45,666.07",CCN - 2277-01 - NOP Non-WITO charges  (Feb '13 to Apr '13),WV10 6UH
Ministry of Justice,MoJ HQ,24-Jun-13,265000-IT & Telecommunications,QY200-OU10 Billback,ATOS IT SERVICES UK LTD,1104559,"448,357.17",CCN 2277 - NOP WITO Charges,WV10 6UH
Ministry of Justice,MoJ HQ,24-Jun-13,265000-IT & Telecommunications,QY200-OU10 Billback,ATOS IT SERVICES UK LTD,1104559,"468,474.51",CCN 2277 - NOP WITO Charges,WV10 6UH
Ministry of Justice,MoJ HQ,20-Jun-13,223000-Other Expenditure,QY300-Fleet Car Mgmt,ALLSTAR BUSINESS SOLUTIONS LTD,1104239,"26,403.43",MoJ Lease Car Fuel Costs FY 13-14,SN5 6PS
Ministry of Justice,MoJ HQ,24-Jun-13,223000-Other Expenditure,QY300-Fleet Car Mgmt,LEX AUTOLEASE LTD,1104669,"51,884.30",Lex AutoLease - MoJ Lease Car charges FY 13-14,BL9 8RT
Ministry of Justice,MoJ HQ,13-Jun-13,223000-Other Expenditure,QZ600-CPG Other,ALLEN LANE LTD,1103650,"37,312.50",Allen Lane Managed Accounting Service (FY13-14) - Fixed Monthly Fee - May-13-Dec-13 & Variable- Time & Materials,BN11 2BW
Ministry of Justice,MoJ HQ,06-Jun-13,223000-Other Expenditure,QZ600-CPG Other,NATIONAL OFFENDERS MANAGEMENT SERVICE (NOMS),3216,"93,973.68",Reimbursement of payment in respect of MoJ P11D liability for 2011-12,NP20 9BB
Ministry of Justice,MoJ HQ,12-Jun-13,246000-Current Grants,QZ600-CPG Other,UK SUPREME COURT,3239,"300,000.00",Additional UKSC SR period funding as agreement,NP10 8ZF
Ministry of Justice,MoJ HQ,13-Jun-13,223000-Other Expenditure,QZ600-CPG Other,ALLEN LANE LTD,1103650,"733,697.00",Allen Lane Managed Accounting Service (FY13-14) - Fixed Monthly Fee - May-13-Dec-13 & Variable- Time & Materials,BN11 2BW
Ministry of Justice,MoJ HQ,06-Jun-13,223000-Other Expenditure,NZ900-Finance & Corporate Services,THE INSTITUTE FOR FISCAL STUDIES,1103246,"27,355.00",Research into Payment by Results pilot programme,WC1E 7AE
Ministry of Justice,MoJ HQ,17-Jun-13,262000-SCA Costs,QZ500-Arms Length Bodies (CPG),NATIONAL SAVINGS & INVESTMENTS,3255,"98,345.00",NSI Financing Charge for Development costs,SW1V 2QX
Ministry of Justice,MoJ HQ,17-Jun-13,262000-SCA Costs,QZ500-Arms Length Bodies (CPG),NATIONAL SAVINGS & INVESTMENTS,3254,"548,674.75",Provision of Court Funds Office service for the 2012/13 Financial Year,SW1V 2QX
Ministry of Justice,MoJ HQ,03-Jun-13,245000-Grants in Aid to NDPBs,KY340-Access to Justice Delivery,CICA (CRIMINAL INJURIES COMPENSATION AUTHORITY),3203,"28,000,000.00",Grant-in-aid requirement for Arm's Length Body,G2 4LN
Ministry of Justice,MoJ HQ,03-Jun-13,245000-Grants in Aid to NDPBs,KY340-Access to Justice Delivery,THE PAROLE BOARD#KY14820007,3207,"1,650,000.00",Grant-in-aid requirement for Arm's Length Body,SW1P 2DX
Ministry of Justice,MoJ HQ,13-Jun-13,223000-Other Expenditure,RB999-JPG - CJRD,THE SALVATION ARMY,1103956,"273,903.55",Adult human trafficking victim care contract.,SE1 6BN
Ministry of Justice,MoJ HQ,03-Jun-13,246000-Current Grants,RC999-Criminal Justice Group - OMS,NORTHUMBERLAND COUNTY COUNCIL,1102895,"32,155.03",2013-14-Payment for remands to youth detention accomodation and children who are looked after as a result of such remands.,NE61 2EF
Ministry of Justice,MoJ HQ,03-Jun-13,246000-Current Grants,RC999-Criminal Justice Group - OMS,NORTH SOMERSET COUNCIL,22547,"36,068.21",2013-14-Payment for remands to youth detention accomodation and children who are looked after as a result of such remands.,BS23 1LL
Ministry of Justice,MoJ HQ,03-Jun-13,246000-Current Grants,RC999-Criminal Justice Group - OMS,LONDON BOROUGH OF SUTTON,1102867,"39,355.93",2013-14-Payment for remands to youth detention accomodation and children who are looked after as a result of such remands.,SM1 1EA
Ministry of Justice,MoJ HQ,03-Jun-13,246000-Current Grants,RC999-Criminal Justice Group - OMS,STOCKPORT METROPOLITAN BOROUGH COUNCIL,1102940,"43,788.41",2013-14-Payment for remands to youth detention accomodation and children who are looked after as a result of such remands.,SK1 3XE
Ministry of Justice,MoJ HQ,03-Jun-13,246000-Current Grants,RC999-Criminal Justice Group - OMS,GATESHEAD M.B.C.,1102826,"43,805.08",2013-14-Payment for remands to youth detention accomodation and children who are looked after as a result of such remands.,NE8 1HH
Ministry of Justice,MoJ HQ,03-Jun-13,246000-Current Grants,RC999-Criminal Justice Group - OMS,EAST RIDING OF YORKSHIRE COUNCIL,1102816,"44,864.91",2013-14-Payment for remands to youth detention accomodation and children who are looked after as a result of such remands.,HU17 9BA
Ministry of Justice,MoJ HQ,03-Jun-13,246000-Current Grants,RC999-Criminal Justice Group - OMS,SOUTH TYNESIDE COUNCIL,22551,"45,941.12",2013-14-Payment for remands to youth detention accomodation and children who are looked after as a result of such remands.,NE33 4JP
Ministry of Justice,MoJ HQ,03-Jun-13,246000-Current Grants,RC999-Criminal Justice Group - OMS,BLAENAU GWENT BOROUGH COUNCIL,1102776,"49,199.59",2013-14-Payment for remands to youth detention accomodation and children who are looked after as a result of such remands.,NP23 6XB
Ministry of Justice,MoJ HQ,03-Jun-13,246000-Current Grants,RC999-Criminal Justice Group - OMS,CARMARTHENSHIRE COUNTY COUNCIL,1102792,"50,538.88",2013-14-Payment for remands to youth detention accomodation and children who are looked after as a result of such remands.,SA31 1LE
Ministry of Justice,MoJ HQ,03-Jun-13,246000-Current Grants,RC999-Criminal Justice Group - OMS,CORNWALL COUNTY COUNCIL,1102804,"52,258.27",2013-14-Payment for remands to youth detention accomodation and children who are looked after as a result of such remands.,TR1 3AY
Ministry of Justice,MoJ HQ,03-Jun-13,246000-Current Grants,RC999-Criminal Justice Group - OMS,GLOUCESTERSHIRE COUNTY COUNCIL,1102828,"66,019.81",2013-14-Payment for remands to youth detention accomodation and children who are looked after as a result of such remands.,GL1 2TJ
Ministry of Justice,MoJ HQ,03-Jun-13,246000-Current Grants,RC999-Criminal Justice Group - OMS,LONDON BOROUGH OF HOUNSLOW,1102866,"66,050.15",2013-14-Payment for remands to youth detention accomodation and children who are looked after as a result of such remands.,TW3 4DN
Ministry of Justice,MoJ HQ,03-Jun-13,246000-Current Grants,RC999-Criminal Justice Group - OMS,BLACKBURN WITH DARWEN BOROUGH COUNCIL,1102775,"69,018.79",2013-14-Payment for remands to youth detention accomodation and children who are looked after as a result of such remands.,BB1 7DY
Ministry of Justice,MoJ HQ,03-Jun-13,246000-Current Grants,RC999-Criminal Justice Group - OMS,MERTHYR TYDFIL COUNTY BOROUGH COUNCIL,1102883,"69,491.31",2013-14-Payment for remands to youth detention accomodation and children who are looked after as a result of such remands.,CF47 8AN
Ministry of Justice,MoJ HQ,03-Jun-13,246000-Current Grants,RC999-Criminal Justice Group - OMS,METROPOLITAN BOROUGH OF WIRRAL,1102884,"71,502.05",2013-14-Payment for remands to youth detention accomodation and children who are looked after as a result of such remands.,CH41 6BU
Ministry of Justice,MoJ HQ,03-Jun-13,246000-Current Grants,RC999-Criminal Justice Group - OMS,LONDON BOROUGH OF HAVERING,1102864,"74,225.23",2013-14-Payment for remands to youth detention accomodation and children who are looked after as a result of such remands.,RM1 3BB
Ministry of Justice,MoJ HQ,03-Jun-13,246000-Current Grants,RC999-Criminal Justice Group - OMS,NEWPORT CITY COUNCIL,1102891,"77,004.91",2013-14-Payment for remands to youth detention accomodation and children who are looked after as a result of such remands.,NP20 4UR
Ministry of Justice,MoJ HQ,03-Jun-13,246000-Current Grants,RC999-Criminal Justice Group - OMS,DERBYSHIRE COUNTY COUNCIL,1102811,"77,993.55",2013-14-Payment for remands to youth detention accomodation and children who are looked after as a result of such remands.,DE4 3AH
Ministry of Justice,MoJ HQ,03-Jun-13,246000-Current Grants,RC999-Criminal Justice Group - OMS,CITY OF STOKE ON TRENT,1102802,"79,454.77",2013-14-Payment for remands to youth detention accomodation and children who are looked after as a result of such remands.,ST4 4TS
Ministry of Justice,MoJ HQ,03-Jun-13,246000-Current Grants,RC999-Criminal Justice Group - OMS,PLYMOUTH CITY COUNCIL,1102917,"88,424.23",2013-14-Payment for remands to youth detention accomodation and children who are looked after as a result of such remands.,PL1 2AA
Ministry of Justice,MoJ HQ,03-Jun-13,246000-Current Grants,RC999-Criminal Justice Group - OMS,NOTTINGHAMSHIRE COUNTY COUNCIL,1102896,"92,532.45",2013-14-Payment for remands to youth detention accomodation and children who are looked after as a result of such remands.,NG2 7QP
Ministry of Justice,MoJ HQ,03-Jun-13,246000-Current Grants,RC999-Criminal Justice Group - OMS,WEST SUSSEX COUNTY COUNCIL,1102964,"102,956.45",2013-14-Payment for remands to youth detention accomodation and children who are looked after as a result of such remands.,PO19 1RG
Ministry of Justice,MoJ HQ,03-Jun-13,246000-Current Grants,RC999-Criminal Justice Group - OMS,TAMESIDE METROPOLITAN BOROUGH,1102942,"103,090.02",2013-14-Payment for remands to youth detention accomodation and children who are looked after as a result of such remands.,OL6 6DL
Ministry of Justice,MoJ HQ,03-Jun-13,246000-Current Grants,RC999-Criminal Justice Group - OMS,ROCHDALE METROPOLITAN BOROUGH COUNCIL,1102927,"105,449.04",2013-14-Payment for remands to youth detention accomodation and children who are looked after as a result of such remands.,OL16 1XL
Ministry of Justice,MoJ HQ,03-Jun-13,246000-Current Grants,RC999-Criminal Justice Group - OMS,CAMBRIDGESHIRE COUNTY COUNCIL,1102786,"107,136.00",2013-14-Payment for remands to youth detention accomodation and children who are looked after as a result of such remands.,CB3 0AP
Ministry of Justice,MoJ HQ,03-Jun-13,246000-Current Grants,RC999-Criminal Justice Group - OMS,NORFOLK COUNTY COUNCIL,1102892,"121,273.28",2013-14-Payment for remands to youth detention accomodation and children who are looked after as a result of such remands.,NR1 2JF
Ministry of Justice,MoJ HQ,03-Jun-13,246000-Current Grants,RC999-Criminal Justice Group - OMS,ESSEX COUNTY COUNCIL,1102818,"122,791.78",2013-14-Payment for remands to youth detention accomodation and children who are looked after as a result of such remands.,CM1 1JZ
Ministry of Justice,MoJ HQ,03-Jun-13,246000-Current Grants,RC999-Criminal Justice Group - OMS,NORTH YORKSHIRE COUNTY COUNCIL,1102894,"132,286.08",2013-14-Payment for remands to youth detention accomodation and children who are looked after as a result of such remands.,DL7 8AL
Ministry of Justice,MoJ HQ,11-Jun-13,246000-Current Grants,RC999-Criminal Justice Group - OMS,LONDON BOROUGH OF HILLINGDON,22627,"148,667.93",2013-14-Payment for remands to youth detention accomodation and children who are looked after as a result of such remands.,UB8 1UW
Ministry of Justice,MoJ HQ,03-Jun-13,246000-Current Grants,RC999-Criminal Justice Group - OMS,CITY OF COVENTRY,1102801,"150,251.52",2013-14-Payment for remands to youth detention accomodation and children who are looked after as a result of such remands.,CV1 5RQ
Ministry of Justice,MoJ HQ,03-Jun-13,246000-Current Grants,RC999-Criminal Justice Group - OMS,CARDIFF COUNTY COUNCIL,1102791,"176,486.63",2013-14-Payment for remands to youth detention accomodation and children who are looked after as a result of such remands.,CF10 4UW
Ministry of Justice,MoJ HQ,03-Jun-13,246000-Current Grants,RC999-Criminal Justice Group - OMS,HULL CITY COUNCIL,1102843,"183,469.93",2013-14-Payment for remands to youth detention accomodation and children who are looked after as a result of such remands.,HU1 2AB
Ministry of Justice,MoJ HQ,03-Jun-13,246000-Current Grants,RC999-Criminal Justice Group - OMS,LONDON BOROUGH OF HAMMERSMITH & FULHAM,1102863,"207,253.13",2013-14-Payment for remands to youth detention accomodation and children who are looked after as a result of such remands.,W6 9JU
Ministry of Justice,MoJ HQ,03-Jun-13,246000-Current Grants,RC999-Criminal Justice Group - OMS,KENT COUNTY COUNCIL,1102849,"240,463.53",2013-14-Payment for remands to youth detention accomodation and children who are looked after as a result of such remands.,ME14 1XQ
Ministry of Justice,MoJ HQ,03-Jun-13,246000-Current Grants,RC999-Criminal Justice Group - OMS,LONDON BOROUGH OF TOWER HAMLETS,1102868,"287,154.57",2013-14-Payment for remands to youth detention accomodation and children who are looked after as a result of such remands.,E14 2BG
Ministry of Justice,MoJ HQ,03-Jun-13,246000-Current Grants,RC999-Criminal Justice Group - OMS,LEEDS CITY COUNCIL,1102857,"369,158.68",2013-14-Payment for remands to youth detention accomodation and children who are looked after as a result of such remands.,LS2 8JR
Ministry of Justice,MoJ HQ,03-Jun-13,246000-Current Grants,RC999-Criminal Justice Group - OMS,MANCHESTER CITY COUNCIL,1102875,"596,282.12",2013-14-Payment for remands to youth detention accomodation and children who are looked after as a result of such remands.,M60 2LA
Ministry of Justice,MoJ HQ,24-Jun-13,246000-Current Grants,RC999-Criminal Justice Group - OMS,EDUCATIONAL FUNDING AGENCY,1104611,"3,185,727.00",To provide education to young people in custody,CV1 3BH
Ministry of Justice,MoJ HQ,12-Jun-13,246000-Current Grants,RC999-Criminal Justice Group - OMS,BRISTOL CITY COUNCIL#RC31620075,1103549,"185,385.91",2013-14-Payment for remands to youth detention accomodation and children who are looked after as a result of such remands.,BS99 7BL
Ministry of Justice,MoJ HQ,12-Jun-13,246000-Current Grants,RC999-Criminal Justice Group - OMS,BRIGHTON & HOVE#RC31620074,1103548,"59,987.31",2013-14-Payment for remands to youth detention accomodation and children who are looked after as a result of such remands.,BN3 2SR
Ministry of Justice,MoJ HQ,12-Jun-13,246000-Current Grants,RC999-Criminal Justice Group - OMS,LONDON BOROUGH OF BRENT#RC31620072,1103546,"395,894.37",2013-14-Payment for remands to youth detention accomodation and children who are looked after as a result of such remands.,HA9 8AD
Ministry of Justice,MoJ HQ,12-Jun-13,246000-Current Grants,RC999-Criminal Justice Group - OMS,BRADFORD METROPOLITAN DISTRICT COUNCIL#RC31620071,1103545,"207,378.43",2013-14-Payment for remands to youth detention accomodation and children who are looked after as a result of such remands.,BD1 1HX
Ministry of Justice,MoJ HQ,12-Jun-13,246000-Current Grants,RC999-Criminal Justice Group - OMS,BRACKNELL FOREST BOROUGH COUNCIL#RC31620070,1103544,"25,459.12",2013-14-Payment for remands to youth detention accomodation and children who are looked after as a result of such remands.,RG12 1AQ
Ministry of Justice,MoJ HQ,12-Jun-13,246000-Current Grants,RC999-Criminal Justice Group - OMS,SOUTHAMPTON CITY COUNCIL#RC31620151,1103622,"137,795.22",2013-14-Payment for remands to youth detention accomodation and children who are looked after as a result of such remands.,SO14 7NR
Ministry of Justice,MoJ HQ,12-Jun-13,246000-Current Grants,RC999-Criminal Justice Group - OMS,WOLVERHAMPTON MET BOROUGH COUNCIL#RC31620173,1103644,"108,113.91",2013-14-Payment for remands to youth detention accomodation and children who are looked after as a result of such remands.,WV1 1RL
Ministry of Justice,MoJ HQ,12-Jun-13,246000-Current Grants,RC999-Criminal Justice Group - OMS,WORCESTERSHIRE COUNTY COUNCIL#RC31620174,1103645,"91,791.44",2013-14-Payment for remands to youth detention accomodation and children who are looked after as a result of such remands.,WR5 2NP
Ministry of Justice,MoJ HQ,12-Jun-13,246000-Current Grants,RC999-Criminal Justice Group - OMS,HEREFORDSHIRE COUNTY COUNCIL#RC31620175,1103646,"28,986.77",2013-14-Payment for remands to youth detention accomodation and children who are looked after as a result of such remands.,HR1 1SH
Ministry of Justice,MoJ HQ,12-Jun-13,246000-Current Grants,RC999-Criminal Justice Group - OMS,WREXHAM CBC#RC31620176,1103647,"39,549.73",2013-14-Payment for remands to youth detention accomodation and children who are looked after as a result of such remands.,LL11 1FU
Ministry of Justice,MoJ HQ,12-Jun-13,246000-Current Grants,RC999-Criminal Justice Group - OMS,CITY OF YORK COUNCIL#RC31620177,1103648,"45,102.95",2013-14-Payment for remands to youth detention accomodation and children who are looked after as a result of such remands.,YO1 6GA
Ministry of Justice,MoJ HQ,12-Jun-13,246000-Current Grants,RC999-Criminal Justice Group - OMS,WIGAN MET BOROUGH COUNCIL#RC31620171,1103642,"51,138.74",2013-14-Payment for remands to youth detention accomodation and children who are looked after as a result of such remands.,WN2 5DN
Ministry of Justice,MoJ HQ,12-Jun-13,246000-Current Grants,RC999-Criminal Justice Group - OMS,CITY OF WESTMINSTER#RC31620170,1103641,"174,846.91",2013-14-Payment for remands to youth detention accomodation and children who are looked after as a result of such remands.,WA5 7ZD
Ministry of Justice,MoJ HQ,12-Jun-13,246000-Current Grants,RC999-Criminal Justice Group - OMS,WARWICKSHIRE COUNTY COUNCIL#RC31620169,1103640,"48,054.99",2013-14-Payment for remands to youth detention accomodation and children who are looked after as a result of such remands.,CU32 4LY
Ministry of Justice,MoJ HQ,12-Jun-13,246000-Current Grants,RC999-Criminal Justice Group - OMS,LONDON BOROUGH OF WANDSWORTH#RC31620168,1103639,"312,476.18",2013-14-Payment for remands to youth detention accomodation and children who are looked after as a result of such remands.,SW18 2PU
Ministry of Justice,MoJ HQ,12-Jun-13,246000-Current Grants,RC999-Criminal Justice Group - OMS,WALSALL COUNCIL#RC31620166,1103637,"76,182.14",2013-14-Payment for remands to youth detention accomodation and children who are looked after as a result of such remands.,WS1 1TW
Ministry of Justice,MoJ HQ,12-Jun-13,246000-Current Grants,RC999-Criminal Justice Group - OMS,WAKEFIELD MET BOROUGH COUNCIL#RC31620165,1103636,"91,694.84",2013-14-Payment for remands to youth detention accomodation and children who are looked after as a result of such remands.,WF1 1ZS
Ministry of Justice,MoJ HQ,12-Jun-13,246000-Current Grants,RC999-Criminal Justice Group - OMS,TRAFFORD MET BOROUGH COUNCIL#RC31620164,1103635,"97,652.42",2013-14-Payment for remands to youth detention accomodation and children who are looked after as a result of such remands.,M32 0YY
Ministry of Justice,MoJ HQ,12-Jun-13,246000-Current Grants,RC999-Criminal Justice Group - OMS,THURROCK COUNCIL#RC31620162,1103633,"53,146.12",2013-14-Payment for remands to youth detention accomodation and children who are looked after as a result of such remands.,RM17 6LT
Ministry of Justice,MoJ HQ,12-Jun-13,246000-Current Grants,RC999-Criminal Justice Group - OMS,SWINDON BOROUGH COUNCIL#RC31620161,1103632,"48,977.43",2013-14-Payment for remands to youth detention accomodation and children who are looked after as a result of such remands.,SN2 7JA
Ministry of Justice,MoJ HQ,12-Jun-13,246000-Current Grants,RC999-Criminal Justice Group - OMS,CITY & COUNTY OF SWANSEA#RC31620160,1103631,"41,210.00",2013-14-Payment for remands to youth detention accomodation and children who are looked after as a result of such remands.,SA1 4NR
Ministry of Justice,MoJ HQ,12-Jun-13,246000-Current Grants,RC999-Criminal Justice Group - OMS,SURREY COUNTY COUNCIL#RC31620159,1103630,"103,552.61",2013-14-Payment for remands to youth detention accomodation and children who are looked after as a result of such remands.,KT1 2DN
Ministry of Justice,MoJ HQ,12-Jun-13,246000-Current Grants,RC999-Criminal Justice Group - OMS,SUNDERLAND CITY COUNCIL#RC31620158,1103629,"32,698.80",2013-14-Payment for remands to youth detention accomodation and children who are looked after as a result of such remands.,SR2 7DN
Ministry of Justice,MoJ HQ,12-Jun-13,246000-Current Grants,RC999-Criminal Justice Group - OMS,SUFFOLK COUNTY COUNCIL#RC31620157,1103628,"94,441.39",2013-14-Payment for remands to youth detention accomodation and children who are looked after as a result of such remands.,IP4 2JP
Ministry of Justice,MoJ HQ,12-Jun-13,246000-Current Grants,RC999-Criminal Justice Group - OMS,STOCKTON-ON-TEES BOROUGH COUNCIL#RC31620156,1103627,"49,383.21",2013-14-Payment for remands to youth detention accomodation and children who are looked after as a result of such remands.,TS23 2YS
Ministry of Justice,MoJ HQ,12-Jun-13,246000-Current Grants,RC999-Criminal Justice Group - OMS,STAFFORDSHIRE COUNTY COUNCIL#RC31620155,1103626,"88,052.55",2013-14-Payment for remands to youth detention accomodation and children who are looked after as a result of such remands.,ST16 2NF
Ministry of Justice,MoJ HQ,12-Jun-13,246000-Current Grants,RC999-Criminal Justice Group - OMS,ST HELENS MET BOROUGH COUNCIL#RC31620154,1103625,"44,584.42",2013-14-Payment for remands to youth detention accomodation and children who are looked after as a result of such remands.,WA10 1UQ
Ministry of Justice,MoJ HQ,12-Jun-13,246000-Current Grants,RC999-Criminal Justice Group - OMS,LONDON BOROUGH OF SOUTHWARK#RC31620153,1103624,"545,549.78",2013-14-Payment for remands to youth detention accomodation and children who are looked after as a result of such remands.,SE16 3ZF
Ministry of Justice,MoJ HQ,12-Jun-13,246000-Current Grants,RC999-Criminal Justice Group - OMS,SOUTHEND-ON-SEA BOROUGH COUNCIL#RC31620152,1103623,"48,646.34",2013-14-Payment for remands to youth detention accomodation and children who are looked after as a result of such remands.,SS2 6EP
Ministry of Justice,MoJ HQ,12-Jun-13,246000-Current Grants,RC999-Criminal Justice Group - OMS,NORTH EAST LINCOLNSHIRE COUNCIL#RC31620126,1103599,"105,060.78",2013-14-Payment for remands to youth detention accomodation and children who are looked after as a result of such remands.,DN35 8LN
Ministry of Justice,MoJ HQ,12-Jun-13,246000-Current Grants,RC999-Criminal Justice Group - OMS,NORTH LINCOLNSHIRE COUNCIL#RC31620127,1103600,"102,211.34",2013-14-Payment for remands to youth detention accomodation and children who are looked after as a result of such remands.,DN16 1AB
Ministry of Justice,MoJ HQ,12-Jun-13,246000-Current Grants,RC999-Criminal Justice Group - OMS,NORTH TYNESIDE COUNCIL#RC31620128,1103601,"26,383.88",2013-14-Payment for remands to youth detention accomodation and children who are looked after as a result of such remands.,NE30 1BB
Ministry of Justice,MoJ HQ,12-Jun-13,246000-Current Grants,RC999-Criminal Justice Group - OMS,MILTON KEYNES COUNCIL#RC31620121,1103594,"73,874.05",2013-14-Payment for remands to youth detention accomodation and children who are looked after as a result of such remands.,MK9 3HS
Ministry of Justice,MoJ HQ,12-Jun-13,246000-Current Grants,RC999-Criminal Justice Group - OMS,MONMOUTHSHIRE COUNTY COUNCIL#RC31620122,1103595,"38,637.64",2013-14-Payment for remands to youth detention accomodation and children who are looked after as a result of such remands.,NP44 2XH
Ministry of Justice,MoJ HQ,12-Jun-13,246000-Current Grants,RC999-Criminal Justice Group - OMS,NEATH PORT TALBOT CBC#RC31620123,1103596,"31,499.93",2013-14-Payment for remands to youth detention accomodation and children who are looked after as a result of such remands.,SA11 3QZ
Ministry of Justice,MoJ HQ,12-Jun-13,246000-Current Grants,RC999-Criminal Justice Group - OMS,NEWCASTLE-UPON-TYNE CITY COUNCIL#RC31620124,1103597,"97,956.55",2013-14-Payment for remands to youth detention accomodation and children who are looked after as a result of such remands.,NE99 1FR
Ministry of Justice,MoJ HQ,12-Jun-13,246000-Current Grants,RC999-Criminal Justice Group - OMS,LONDON BOROUGH OF NEWHAM#RC31620125,1103598,"442,705.71",2013-14-Payment for remands to youth detention accomodation and children who are looked after as a result of such remands.,E15 1AJ
Ministry of Justice,MoJ HQ,12-Jun-13,246000-Current Grants,RC999-Criminal Justice Group - OMS,LONDON BOROUGH OF BARKING & DAGENHAM#RC31620061,1103535,"244,545.96",2013-14-Payment for remands to youth detention accomodation and children who are looked after as a result of such remands.,RM10 7BY
Ministry of Justice,MoJ HQ,12-Jun-13,246000-Current Grants,RC999-Criminal Justice Group - OMS,LONDON BOROUGH OF WALTHAM FOREST#RC31620167,1103638,"215,595.41",2013-14-Payment for remands to youth detention accomodation and children who are looked after as a result of such remands.,E17 4JA
Ministry of Justice,MoJ HQ,12-Jun-13,246000-Current Grants,RC999-Criminal Justice Group - OMS,LONDON BOROUGH OF RICHMOND-UPON-THAMES#RC31620138,1103611,"35,719.70",2013-14-Payment for remands to youth detention accomodation and children who are looked after as a result of such remands.,TW1 3BW
Ministry of Justice,MoJ HQ,12-Jun-13,246000-Current Grants,RC999-Criminal Justice Group - OMS,ROTHERHAM BOROUGH COUNCIL#RC31620139,1103612,"75,670.27",2013-14-Payment for remands to youth detention accomodation and children who are looked after as a result of such remands.,S65 1UE
Ministry of Justice,MoJ HQ,12-Jun-13,246000-Current Grants,RC999-Criminal Justice Group - OMS,SALFORD CITY COUNCIL#RC31620140,1103613,"178,569.60",2013-14-Payment for remands to youth detention accomodation and children who are looked after as a result of such remands.,M27 4EQ
Ministry of Justice,MoJ HQ,12-Jun-13,246000-Current Grants,RC999-Criminal Justice Group - OMS,PETERBOROUGH CITY COUNCIL#RC31620133,1103606,"109,863.58",2013-14-Payment for remands to youth detention accomodation and children who are looked after as a result of such remands.,PE1 1HQ
Ministry of Justice,MoJ HQ,12-Jun-13,246000-Current Grants,RC999-Criminal Justice Group - OMS,PORTSMOUTH CITY COUNCIL#RC31620134,1103607,"56,042.25",2013-14-Payment for remands to youth detention accomodation and children who are looked after as a result of such remands.,PO1 2EA
Ministry of Justice,MoJ HQ,12-Jun-13,246000-Current Grants,RC999-Criminal Justice Group - OMS,READING BOROUGH COUNCIL#RC31620135,1103608,"46,477.38",2013-14-Payment for remands to youth detention accomodation and children who are looked after as a result of such remands.,RG1 7WB
Ministry of Justice,MoJ HQ,12-Jun-13,246000-Current Grants,RC999-Criminal Justice Group - OMS,NORTHAMPTONSHIRE COUNTY COUNCIL#RC31620129,1103602,"146,591.96",2013-14-Payment for remands to youth detention accomodation and children who are looked after as a result of such remands.,NN4 7DB
Ministry of Justice,MoJ HQ,12-Jun-13,246000-Current Grants,RC999-Criminal Justice Group - OMS,NOTTINGHAM CITY COUNCIL#RC31620130,1103603,"279,299.24",2013-14-Payment for remands to youth detention accomodation and children who are looked after as a result of such remands.,NG1 2DE
Ministry of Justice,MoJ HQ,12-Jun-13,246000-Current Grants,RC999-Criminal Justice Group - OMS,OLDHAM MET BOROUGH COUNCIL#RC31620131,1103604,"74,723.67",2013-14-Payment for remands to youth detention accomodation and children who are looked after as a result of such remands.,OL1 1NH
Ministry of Justice,MoJ HQ,12-Jun-13,246000-Current Grants,RC999-Criminal Justice Group - OMS,OXFORDSHIRE COUNTY COUNCIL#RC31620132,1103605,"144,375.67",2013-14-Payment for remands to youth detention accomodation and children who are looked after as a result of such remands.,OX1 1TH
Ministry of Justice,MoJ HQ,12-Jun-13,246000-Current Grants,RC999-Criminal Justice Group - OMS,KIRKLEES MET COUNCIL#RC31620109,1103582,"175,867.78",2013-14-Payment for remands to youth detention accomodation and children who are looked after as a result of such remands.,HD1 6QF
Ministry of Justice,MoJ HQ,12-Jun-13,246000-Current Grants,RC999-Criminal Justice Group - OMS,KNOWSLEY MET BOROUGH COUNCIL#RC31620110,1103583,"96,276.48",2013-14-Payment for remands to youth detention accomodation and children who are looked after as a result of such remands.,L36 3LG
Ministry of Justice,MoJ HQ,12-Jun-13,246000-Current Grants,RC999-Criminal Justice Group - OMS,LONDON BOROUGH OF LAMBETH#RC31620111,1103584,"738,145.81",2013-14-Payment for remands to youth detention accomodation and children who are looked after as a result of such remands.,SW2 1RL
Ministry of Justice,MoJ HQ,12-Jun-13,246000-Current Grants,RC999-Criminal Justice Group - OMS,LANCASHIRE COUNTY COUNCIL#RC31620112,1103585,"215,978.54",2013-14-Payment for remands to youth detention accomodation and children who are looked after as a result of such remands.,PR1 0LD
Ministry of Justice,MoJ HQ,12-Jun-13,246000-Current Grants,RC999-Criminal Justice Group - OMS,LEICESTER CITY COUNCIL#RC31620113,1103586,"183,166.59",2013-14-Payment for remands to youth detention accomodation and children who are looked after as a result of such remands.,LE1 6ZH
Ministry of Justice,MoJ HQ,12-Jun-13,246000-Current Grants,RC999-Criminal Justice Group - OMS,LEICESTERSHIRE COUNTY COUNCIL#RC31620114,1103587,"57,412.11",2013-14-Payment for remands to youth detention accomodation and children who are looked after as a result of such remands.,LE3 8RB
Ministry of Justice,MoJ HQ,12-Jun-13,246000-Current Grants,RC999-Criminal Justice Group - OMS,LONDON BOROUGH OF LEWISHAM#RC31620115,1103588,"480,584.88",2013-14-Payment for remands to youth detention accomodation and children who are looked after as a result of such remands.,SE6 4RU
Ministry of Justice,MoJ HQ,12-Jun-13,246000-Current Grants,RC999-Criminal Justice Group - OMS,LINCOLNSHIRE COUNTY COUNCIL#RC31620116,1103589,"130,183.08",2013-14-Payment for remands to youth detention accomodation and children who are looked after as a result of such remands.,LN5 7JP
Ministry of Justice,MoJ HQ,12-Jun-13,246000-Current Grants,RC999-Criminal Justice Group - OMS,LIVERPOOL CITY COUNCIL#RC31620117,1103590,"278,883.15",2013-14-Payment for remands to youth detention accomodation and children who are looked after as a result of such remands.,L69 2DQ
Ministry of Justice,MoJ HQ,12-Jun-13,246000-Current Grants,RC999-Criminal Justice Group - OMS,LUTON BOROUGH COUNCIL#RC31620118,1103591,"70,835.94",2013-14-Payment for remands to youth detention accomodation and children who are looked after as a result of such remands.,LU1 2BQ
Ministry of Justice,MoJ HQ,12-Jun-13,246000-Current Grants,RC999-Criminal Justice Group - OMS,LONDON BOROUGH OF MERTON#RC31620120,1103593,"86,220.17",2013-14-Payment for remands to youth detention accomodation and children who are looked after as a result of such remands.,SM4 5DX
Ministry of Justice,MoJ HQ,12-Jun-13,246000-Current Grants,RC999-Criminal Justice Group - OMS,LONDON BOROUGH OF BARNET#RC31620062,1103536,"148,885.64",2013-14-Payment for remands to youth detention accomodation and children who are looked after as a result of such remands.,NW4 4BG
Ministry of Justice,MoJ HQ,12-Jun-13,246000-Current Grants,RC999-Criminal Justice Group - OMS,SOMERSET COUNTY COUNCIL#RC31620148,1103620,"31,873.36",2013-14-Payment for remands to youth detention accomodation and children who are looked after as a result of such remands.,BA16 0LG
Ministry of Justice,MoJ HQ,12-Jun-13,246000-Current Grants,RC999-Criminal Justice Group - OMS,SOLIHULL MET BOROUGH COUNCIL#RC31620147,1103619,"40,018.53",2013-14-Payment for remands to youth detention accomodation and children who are looked after as a result of such remands.,B91 3RR
Ministry of Justice,MoJ HQ,12-Jun-13,246000-Current Grants,RC999-Criminal Justice Group - OMS,SLOUGH BOROUGH COUNCIL#RC31620146,1103618,"112,068.44",2013-14-Payment for remands to youth detention accomodation and children who are looked after as a result of such remands.,SL1 3UF
Ministry of Justice,MoJ HQ,12-Jun-13,246000-Current Grants,RC999-Criminal Justice Group - OMS,TELFORD & WREKIN COUNCIL#RC31620145,1103617,"55,714.84",2013-14-Payment for remands to youth detention accomodation and children who are looked after as a result of such remands.,TF3 4LP
Ministry of Justice,MoJ HQ,12-Jun-13,246000-Current Grants,RC999-Criminal Justice Group - OMS,SHROPSHIRE COUNTY COUNCIL#RC31620144,1103616,"32,721.41",2013-14-Payment for remands to youth detention accomodation and children who are looked after as a result of such remands.,SY2 6ND
Ministry of Justice,MoJ HQ,12-Jun-13,246000-Current Grants,RC999-Criminal Justice Group - OMS,SHEFFIELD CITY COUNCIL#RC31620143,1103615,"228,339.09",2013-14-Payment for remands to youth detention accomodation and children who are looked after as a result of such remands.,S1 1UY
Ministry of Justice,MoJ HQ,12-Jun-13,246000-Current Grants,RC999-Criminal Justice Group - OMS,SEFTON MET BOROUGH COUNCIL#RC31620142,1103614,"68,080.69",2013-14-Payment for remands to youth detention accomodation and children who are looked after as a result of such remands.,L20 3NQ
Ministry of Justice,MoJ HQ,12-Jun-13,246000-Current Grants,RC999-Criminal Justice Group - OMS,LONDON BOROUGH OF REDBRIDGE#RC31620136,1103609,"174,216.75",2013-14-Payment for remands to youth detention accomodation and children who are looked after as a result of such remands.,IG1 1NN
Ministry of Justice,MoJ HQ,12-Jun-13,246000-Current Grants,RC999-Criminal Justice Group - OMS,RHONDDA CYNON TAFF CBC#RC31620137,1103610,"76,526.08",2013-14-Payment for remands to youth detention accomodation and children who are looked after as a result of such remands.,CF39 9DL
Ministry of Justice,MoJ HQ,12-Jun-13,246000-Current Grants,RC999-Criminal Justice Group - OMS,LONDON BOROUGH OF HARINGEY#RC31620101,1103574,"344,623.14",2013-14-Payment for remands to youth detention accomodation and children who are looked after as a result of such remands.,N22 7TR
Ministry of Justice,MoJ HQ,12-Jun-13,246000-Current Grants,RC999-Criminal Justice Group - OMS,LONDON BOROUGH OF HARROW#RC31620102,1103575,"93,925.60",2013-14-Payment for remands to youth detention accomodation and children who are looked after as a result of such remands.,HA1 2ZA
Ministry of Justice,MoJ HQ,12-Jun-13,246000-Current Grants,RC999-Criminal Justice Group - OMS,HARTLEPOOL BOROUGH COUNCIL#RC31620103,1103576,"40,989.08",2013-14-Payment for remands to youth detention accomodation and children who are looked after as a result of such remands.,TS24 7BT
Ministry of Justice,MoJ HQ,12-Jun-13,246000-Current Grants,RC999-Criminal Justice Group - OMS,HERTFORDSHIRE CC#RC31620104,1103577,"182,977.47",2013-14-Payment for remands to youth detention accomodation and children who are looked after as a result of such remands.,SG13 8TN
Ministry of Justice,MoJ HQ,12-Jun-13,246000-Current Grants,RC999-Criminal Justice Group - OMS,LB OF ISLINGTON#RC31620106,1103579,"229,989.89",2013-14-Payment for remands to youth detention accomodation and children who are looked after as a result of such remands.,EC1V 7LQ
Ministry of Justice,MoJ HQ,12-Jun-13,246000-Current Grants,RC999-Criminal Justice Group - OMS,ROYAL BOROUGH OF KENSINGTON & CHELSEA#RC31620107,1103580,"169,980.78",2013-14-Payment for remands to youth detention accomodation and children who are looked after as a result of such remands.,W8 7NX
Ministry of Justice,MoJ HQ,12-Jun-13,246000-Current Grants,RC999-Criminal Justice Group - OMS,ROYAL BOROUGH OF KINGSTON-UPON-THAMES#RC31620108,1103581,"62,228.70",2013-14-Payment for remands to youth detention accomodation and children who are looked after as a result of such remands.,KT1 1EU
Ministry of Justice,MoJ HQ,12-Jun-13,246000-Current Grants,RC999-Criminal Justice Group - OMS,LONDON BOROUGH OF CROYDON#RC31620085,1103559,"321,929.31",2013-14-Payment for remands to youth detention accomodation and children who are looked after as a result of such remands.,CR9 1BQ
Ministry of Justice,MoJ HQ,12-Jun-13,246000-Current Grants,RC999-Criminal Justice Group - OMS,CONWY COUNTY BOROUGH COUNCIL#RC31620084,1103558,"37,049.08",2013-14-Payment for remands to youth detention accomodation and children who are looked after as a result of such remands.,LL32 8DU
Ministry of Justice,MoJ HQ,12-Jun-13,246000-Current Grants,RC999-Criminal Justice Group - OMS,CHESHIRE WEST & CHESTER#RC31620083,1103557,"53,344.22",2013-14-Payment for remands to youth detention accomodation and children who are looked after as a result of such remands.,CH1 2NP
Ministry of Justice,MoJ HQ,12-Jun-13,246000-Current Grants,RC999-Criminal Justice Group - OMS,CHESHIRE EAST#RC31620082,1103556,"47,305.25",2013-14-Payment for remands to youth detention accomodation and children who are looked after as a result of such remands.,CH1 1SG
Ministry of Justice,MoJ HQ,12-Jun-13,246000-Current Grants,RC999-Criminal Justice Group - OMS,LONDON BOROUGH OF CAMDEN#RC31620080,1103554,"164,455.02",2013-14-Payment for remands to youth detention accomodation and children who are looked after as a result of such remands.,NW5 4PA
Ministry of Justice,MoJ HQ,12-Jun-13,246000-Current Grants,RC999-Criminal Justice Group - OMS,BURY MET BOROUGH COUNCIL#RC31620078,1103552,"61,367.71",2013-14-Payment for remands to youth detention accomodation and children who are looked after as a result of such remands.,BL9 0SW
Ministry of Justice,MoJ HQ,12-Jun-13,246000-Current Grants,RC999-Criminal Justice Group - OMS,BUCKINGHAMSHIRE COUNTY COUNCIL#RC31620077,1103551,"81,084.83",2013-14-Payment for remands to youth detention accomodation and children who are looked after as a result of such remands.,HP20 1UA
Ministry of Justice,MoJ HQ,12-Jun-13,246000-Current Grants,RC999-Criminal Justice Group - OMS,LONDON BOROUGH OF BROMLEY#RC31620076,1103550,"73,734.44",2013-14-Payment for remands to youth detention accomodation and children who are looked after as a result of such remands.,BR1 3UH
Ministry of Justice,MoJ HQ,12-Jun-13,246000-Current Grants,RC999-Criminal Justice Group - OMS,LONDON BOROUGH OF ENFIELD#RC31620094,1103568,"250,102.08",2013-14-Payment for remands to youth detention accomodation and children who are looked after as a result of such remands.,EN1 3XF
Ministry of Justice,MoJ HQ,12-Jun-13,246000-Current Grants,RC999-Criminal Justice Group - OMS,EAST SUSSEX COUNTY COUNCIL#RC31620093,1103567,"96,893.14",2013-14-Payment for remands to youth detention accomodation and children who are looked after as a result of such remands.,BN7 1SF
Ministry of Justice,MoJ HQ,12-Jun-13,246000-Current Grants,RC999-Criminal Justice Group - OMS,LONDON BOROUGH OF EALING#RC31620092,1103566,"257,906.22",2013-14-Payment for remands to youth detention accomodation and children who are looked after as a result of such remands.,W5 2YX
Ministry of Justice,MoJ HQ,12-Jun-13,246000-Current Grants,RC999-Criminal Justice Group - OMS,DURHAM COUNTY COUNCIL#RC31620091,1103565,"75,296.67",2013-14-Payment for remands to youth detention accomodation and children who are looked after as a result of such remands.,DH8 1FP
Ministry of Justice,MoJ HQ,12-Jun-13,246000-Current Grants,RC999-Criminal Justice Group - OMS,DUDLEY MET BOROUGH COUNCIL#RC31620090,1103564,"43,199.84",2013-14-Payment for remands to youth detention accomodation and children who are looked after as a result of such remands.,DY1 1HF
Ministry of Justice,MoJ HQ,12-Jun-13,246000-Current Grants,RC999-Criminal Justice Group - OMS,DONCASTER MET BOROUGH COUNCIL#RC31620089,1103563,"108,965.22",2013-14-Payment for remands to youth detention accomodation and children who are looked after as a result of such remands.,DN1 1ER
Ministry of Justice,MoJ HQ,12-Jun-13,246000-Current Grants,RC999-Criminal Justice Group - OMS,DEVON COUNTY COUNCIL#RC31620088,1103562,"42,047.11",2013-14-Payment for remands to youth detention accomodation and children who are looked after as a result of such remands.,EX2 4QJ
Ministry of Justice,MoJ HQ,12-Jun-13,246000-Current Grants,RC999-Criminal Justice Group - OMS,DERBY CITY COUNCIL#RC31620087,1103561,"202,988.27",2013-14-Payment for remands to youth detention accomodation and children who are looked after as a result of such remands.,DE1 2YL
Ministry of Justice,MoJ HQ,12-Jun-13,246000-Current Grants,RC999-Criminal Justice Group - OMS,CUMBRIA COUNTY COUNCIL#RC31620086,1103560,"70,441.44",2013-14-Payment for remands to youth detention accomodation and children who are looked after as a result of such remands.,CA1 1EH
Ministry of Justice,MoJ HQ,12-Jun-13,246000-Current Grants,RC999-Criminal Justice Group - OMS,BOURNEMOUTH BOROUGH COUNCIL#RC31620069,1103543,"69,136.00",2013-14-Payment for remands to youth detention accomodation and children who are looked after as a result of such remands.,BH2 6EB
Ministry of Justice,MoJ HQ,12-Jun-13,246000-Current Grants,RC999-Criminal Justice Group - OMS,BOLTON MET BOROUGH COUNCIL#RC31620068,1103542,"98,332.41",2013-14-Payment for remands to youth detention accomodation and children who are looked after as a result of such remands.,BL1 1RX
Ministry of Justice,MoJ HQ,12-Jun-13,246000-Current Grants,RC999-Criminal Justice Group - OMS,BLACKPOOL COUNCIL#RC31620067,1103541,"100,297.72",2013-14-Payment for remands to youth detention accomodation and children who are looked after as a result of such remands.,FY1 1NF
Ministry of Justice,MoJ HQ,12-Jun-13,246000-Current Grants,RC999-Criminal Justice Group - OMS,BIRMINGHAM CC#RC31620066,1103540,"807,246.89",2013-14-Payment for remands to youth detention accomodation and children who are looked after as a result of such remands.,B2 2AJ
Ministry of Justice,MoJ HQ,12-Jun-13,246000-Current Grants,RC999-Criminal Justice Group - OMS,BEXLEY COUNCIL#RC31620065,1103539,"42,960.12",2013-14-Payment for remands to youth detention accomodation and children who are looked after as a result of such remands.,DA8 1TL
Ministry of Justice,MoJ HQ,12-Jun-13,246000-Current Grants,RC999-Criminal Justice Group - OMS,BEDFORD BOROUGH COUNCIL#RC31620064,1103538,"110,157.23",2013-14-Payment for remands to youth detention accomodation and children who are looked after as a result of such remands.,MK42 9AP
Ministry of Justice,MoJ HQ,12-Jun-13,246000-Current Grants,RC999-Criminal Justice Group - OMS,BARNSLEY MET BOROUGH COUNCIL#RC31620063,1103537,"28,540.70",2013-14-Payment for remands to youth detention accomodation and children who are looked after as a result of such remands.,S70 2TJ
Ministry of Justice,MoJ HQ,12-Jun-13,246000-Current Grants,RC999-Criminal Justice Group - OMS,LONDON BOROUGH OF HACKNEY#RC31620098,1103571,"417,122.89",2013-14-Payment for remands to youth detention accomodation and children who are looked after as a result of such remands.,E8 4RU
Ministry of Justice,MoJ HQ,12-Jun-13,246000-Current Grants,RC999-Criminal Justice Group - OMS,MEDWAY COUNCIL#RC31620119,1103592,"73,984.90",2013-14-Payment for remands to youth detention accomodation and children who are looked after as a result of such remands.,ME4 4TR
Ministry of Justice,MoJ HQ,12-Jun-13,246000-Current Grants,RC999-Criminal Justice Group - OMS,CALDERDALE MET BOROUGH COUNCIL#RC31620079,1103553,"51,384.40",2013-14-Payment for remands to youth detention accomodation and children who are looked after as a result of such remands.,HX1 1TP
Ministry of Justice,MoJ HQ,12-Jun-13,246000-Current Grants,RC999-Criminal Justice Group - OMS,HAMPSHIRE COUNTY COUNCIL#RC31620100,1103573,"192,164.53",2013-14-Payment for remands to youth detention accomodation and children who are looked after as a result of such remands.,SO23 8UB
Ministry of Justice,MoJ HQ,17-Jun-13,246000-Current Grants,RC999-Criminal Justice Group - OMS,LONDON BOROUGH OF GREENWICH#RC31620096,1104161,"204,819.23",2013-14-Payment for remands to youth detention accomodation and children who are looked after as a result of such remands.,SE18 6HQ
Ministry of Justice,MoJ HQ,17-Jun-13,246000-Current Grants,RC999-Criminal Justice Group - OMS,MIDDLESBROUGH COUNCIL#RC31620150,1104163,"121,927.42",2013-14-Payment for remands to youth detention accomodation and children who are looked after as a result of such remands.,TS1 1LY
Ministry of Justice,MoJ HQ,17-Jun-13,246000-Current Grants,RC999-Criminal Justice Group - OMS,SANDWELL MET BOROUGH COUNCIL#RC31620141,1104162,"146,845.49",2013-14-Payment for remands to youth detention accomodation and children who are looked after as a result of such remands.,B69 3BS
Ministry of Justice,MoJ HQ,24-Jun-13,263000-Other Contracted Out Services,RC999-Criminal Justice Group - OMS,NATIONAL OFFENDERS MANAGEMENT SERVICE (NOMS),3288,"343,909.16",PARC YOI Contract,NP20 9BB
Ministry of Justice,MoJ HQ,24-Jun-13,263000-Other Contracted Out Services,RC999-Criminal Justice Group - OMS,NATIONAL OFFENDERS MANAGEMENT SERVICE (NOMS),3289,"355,101.59",PARC YOI Contract,NP20 9BB
Ministry of Justice,MoJ HQ,28-Jun-13,263000-Other Contracted Out Services,RC999-Criminal Justice Group - OMS,NATIONAL OFFENDERS MANAGEMENT SERVICE (NOMS),3301,"410,221.95",ESCORTING CONTRACT FOR YOIs - FY13-14.,NP20 9BB
Ministry of Justice,MoJ HQ,06-Jun-13,263000-Other Contracted Out Services,RC999-Criminal Justice Group - OMS,MEDOMSLEY TRAINING SERVICES LTD,1103159,"680,305.54","Operation Delivery services in respect of Prisons, YOIs or STCs",RG29 9XB
Ministry of Justice,MoJ HQ,20-Jun-13,263000-Other Contracted Out Services,RC999-Criminal Justice Group - OMS,ECD (COOKHAM WOOD) LTD,1104320,"997,396.62","Operation Delivery services in respect of Prisons, YOIs or STCs",WR12 7LJ
Ministry of Justice,MoJ HQ,13-Jun-13,263000-Other Contracted Out Services,RC999-Criminal Justice Group - OMS,ECD (ONLEY) LTD,1103740,"1,280,155.65","Operation Delivery services in respect of Prisons, YOIs or STCs",WR12 7LJ
Ministry of Justice,MoJ HQ,24-Jun-13,263000-Other Contracted Out Services,RC999-Criminal Justice Group - OMS,NATIONAL OFFENDERS MANAGEMENT SERVICE (NOMS),1104689,"2,344,039.00",Ashfield YOI Contraxct,NP20 9BB
Ministry of Justice,MoJ HQ,24-Jun-13,263000-Other Contracted Out Services,RC999-Criminal Justice Group - OMS,NATIONAL OFFENDERS MANAGEMENT SERVICE (NOMS),3286,"2,422,071.85",Ashfield YOI Contraxct,NP20 9BB
Ministry of Justice,MoJ HQ,06-Jun-13,212001-Agency staff,PZ501-MoJ ICT Feeder,CAPITA RESOURCING LTD,1103039,"26,976.24",32341 CIPHERL00450 -Project Management Office Technical Support- HQ028 -  for a maximum of 253 days from 31/03/2013 to 29/03/2014 subject to the terms and conditions of contract ,SL6 1DP
Ministry of Justice,MoJ HQ,27-Jun-13,265000-IT & Telecommunications,PZ501-MoJ ICT Feeder,ATOS IT SERVICES UK LTD,1104803,"30,000.00","MaLI Ref: HQ319 - Poise Exit  - Atos Project Mothball CIR for PPO and AS (HQ Demand - 2012/13 costs)		MaLI Ref: HQ319 - Atos Project Mothball CIR for PPOMaLI Ref: HQ319 - Atos Project Mothball CIR for AS						 						 					",WV10 6UH
Ministry of Justice,MoJ HQ,06-Jun-13,265000-IT & Telecommunications,PZ501-MoJ ICT Feeder,CGI IT UK LTD,1103042,"202,133.82",CCN L-R-3650-05 - CCN L-R-3650-05 POISE PPO & AS Extension to End Apr 2013 V0.2,CF31 9AP
Ministry of Justice,MoJ HQ,17-Jun-13,265000-IT & Telecommunications,PZ501-MoJ ICT Feeder,ACTICA CONSULTING LTD,1104004,"56,950.00", Transforming Rehabilitation Programme,GU2 7YF
Ministry of Justice,MoJ HQ,17-Jun-13,265000-IT & Telecommunications,PZ501-MoJ ICT Feeder,ACTICA CONSULTING LTD,1104004,"138,983.77",This PO is for the services of the Architecture Managed Service. For the period October 2012 onwards.  It relates to rechargeable costs (Schedule),GU2 7YF
Ministry of Justice,MoJ HQ,03-Jun-13,265000-IT & Telecommunications,PZ501-MoJ ICT Feeder,ATOS IT SERVICES UK LTD,1102766,"32,592.00",ICT Desktops (Schedule),WV10 6UH
Ministry of Justice,MoJ HQ,03-Jun-13,265000-IT & Telecommunications,PZ501-MoJ ICT Feeder,ATOS IT SERVICES UK LTD,1102766,"32,662.45",ICT Hosting (Schedule),WV10 6UH
Ministry of Justice,MoJ HQ,24-Jun-13,265000-IT & Telecommunications,PZ501-MoJ ICT Feeder,ATOS IT SERVICES UK LTD,1104559,"32,662.45",ICT Hosting (Schedule),WV10 6UH
Ministry of Justice,MoJ HQ,24-Jun-13,265000-IT & Telecommunications,PZ501-MoJ ICT Feeder,ATOS IT SERVICES UK LTD,1104559,"36,553.00",ICT Network Services (Schedule),WV10 6UH
Ministry of Justice,MoJ HQ,24-Jun-13,265000-IT & Telecommunications,PZ501-MoJ ICT Feeder,ATOS IT SERVICES UK LTD,1104559,"37,391.00",ICT App Maint & Supp (Schedule),WV10 6UH
Ministry of Justice,MoJ HQ,03-Jun-13,265000-IT & Telecommunications,PZ501-MoJ ICT Feeder,ATOS IT SERVICES UK LTD,1102766,"42,130.15",ICT Telephony (Schedule),WV10 6UH
Ministry of Justice,MoJ HQ,24-Jun-13,265000-IT & Telecommunications,PZ501-MoJ ICT Feeder,ATOS IT SERVICES UK LTD,1104559,"42,130.15",ICT Telephony (Schedule),WV10 6UH
Ministry of Justice,MoJ HQ,03-Jun-13,265000-IT & Telecommunications,PZ501-MoJ ICT Feeder,ATOS IT SERVICES UK LTD,1102766,"51,000.91",ICT Telephony (Schedule),WV10 6UH
Ministry of Justice,MoJ HQ,24-Jun-13,265000-IT & Telecommunications,PZ501-MoJ ICT Feeder,ATOS IT SERVICES UK LTD,1104559,"59,226.03",ICT Other (Schedule),WV10 6UH
Ministry of Justice,MoJ HQ,03-Jun-13,265000-IT & Telecommunications,PZ501-MoJ ICT Feeder,ATOS IT SERVICES UK LTD,1102766,"108,789.40",ICT Laptops (Schedule),WV10 6UH
Ministry of Justice,MoJ HQ,24-Jun-13,265000-IT & Telecommunications,PZ501-MoJ ICT Feeder,ATOS IT SERVICES UK LTD,1104559,"109,281.40",ICT Laptops (Schedule),WV10 6UH
Ministry of Justice,MoJ HQ,24-Jun-13,265000-IT & Telecommunications,PZ501-MoJ ICT Feeder,ATOS IT SERVICES UK LTD,1104559,"117,075.10",ICT Other (Schedule),WV10 6UH
Ministry of Justice,MoJ HQ,27-Jun-13,265000-IT & Telecommunications,PZ501-MoJ ICT Feeder,ATOS IT SERVICES UK LTD,1104803,"117,075.10",ICT Other (Schedule),WV10 6UH
Ministry of Justice,MoJ HQ,03-Jun-13,265000-IT & Telecommunications,PZ501-MoJ ICT Feeder,ATOS IT SERVICES UK LTD,1102766,"340,642.00",ICT Service Desk (Schedule),WV10 6UH
Ministry of Justice,MoJ HQ,24-Jun-13,265000-IT & Telecommunications,PZ501-MoJ ICT Feeder,ATOS IT SERVICES UK LTD,1104559,"350,062.00",ICT Service Desk (Schedule),WV10 6UH
Ministry of Justice,MoJ HQ,24-Jun-13,265000-IT & Telecommunications,PZ501-MoJ ICT Feeder,ATOS IT SERVICES UK LTD,1104559,"634,603.47",ICT Desktops (Schedule),WV10 6UH
Ministry of Justice,MoJ HQ,03-Jun-13,265000-IT & Telecommunications,PZ501-MoJ ICT Feeder,ATOS IT SERVICES UK LTD,1102766,"682,819.45",ICT Desktops (Schedule),WV10 6UH
Ministry of Justice,MoJ HQ,24-Jun-13,265000-IT & Telecommunications,PZ501-MoJ ICT Feeder,ATOS IT SERVICES UK LTD,1104559,"1,208,829.10",ICT Network Services (Schedule),WV10 6UH
Ministry of Justice,MoJ HQ,24-Jun-13,265000-IT & Telecommunications,PZ501-MoJ ICT Feeder,ATOS IT SERVICES UK LTD,1104559,"1,209,377.85",ICT Network Services (Schedule),WV10 6UH
Ministry of Justice,MoJ HQ,03-Jun-13,265000-IT & Telecommunications,PZ501-MoJ ICT Feeder,ATOS IT SERVICES UK LTD,1102766,"1,700,180.93",ICT Hosting (Schedule),WV10 6UH
Ministry of Justice,MoJ HQ,24-Jun-13,265000-IT & Telecommunications,PZ501-MoJ ICT Feeder,ATOS IT SERVICES UK LTD,1104559,"1,713,308.03",ICT Hosting (Schedule),WV10 6UH
Ministry of Justice,MoJ HQ,03-Jun-13,265000-IT & Telecommunications,PZ501-MoJ ICT Feeder,ATOS IT SERVICES UK LTD,1102766,"3,129,428.34",ICT Licences (Schedule),WV10 6UH
Ministry of Justice,MoJ HQ,27-Jun-13,265000-IT & Telecommunications,PZ501-MoJ ICT Feeder,CGI IT UK LTD,1104847,"27,800.00",ICT App Maint & Supp (Schedule),CF31 9AP
Ministry of Justice,MoJ HQ,27-Jun-13,265000-IT & Telecommunications,PZ501-MoJ ICT Feeder,CGI IT UK LTD,1104847,"42,697.37",ICT App Maint & Supp (Schedule),CF31 9AP
Ministry of Justice,MoJ HQ,27-Jun-13,265000-IT & Telecommunications,PZ501-MoJ ICT Feeder,CGI IT UK LTD,1104847,"117,253.42",ICT App Maint & Supp (Schedule),CF31 9AP
Ministry of Justice,MoJ HQ,03-Jun-13,265000-IT & Telecommunications,PZ501-MoJ ICT Feeder,CGI IT UK LTD,1102795,"119,347.00",ICT Printing (Schedule),CF31 9AP
Ministry of Justice,MoJ HQ,03-Jun-13,265000-IT & Telecommunications,PZ501-MoJ ICT Feeder,CGI IT UK LTD,1102795,"167,733.53",ICT App Maint & Supp (Schedule),CF31 9AP
Ministry of Justice,MoJ HQ,03-Jun-13,265000-IT & Telecommunications,PZ501-MoJ ICT Feeder,CGI IT UK LTD,1102795,"402,178.00",ICT Hosting (Schedule),CF31 9AP
Ministry of Justice,MoJ HQ,03-Jun-13,265000-IT & Telecommunications,PZ501-MoJ ICT Feeder,CGI IT UK LTD,1102795,"1,835,468.16",ICT App Maint & Supp (Schedule),CF31 9AP
Ministry of Justice,MoJ HQ,13-Jun-13,212001-Agency staff,PZ501-MoJ ICT Feeder,CAPITA RESOURCING LTD,1103694,"25,208.00",for 9006 CIPHERL00391 -Intercept Analyst (RC - Programme Manager) - for a maximum of 253.00 days from 31/03/2013 to 29/03/2014 subject to the terms and conditions of contract ,SL6 1DP
Ministry of Justice,MoJ HQ,13-Jun-13,265000-IT & Telecommunications,PZ501-MoJ ICT Feeder,HP ENTERPRISE SERVICES UK LTD,1103790,"41,384.66",HP ICT App Maint & Supp (VAT Rec) FY12/13 (Schedule),RG12 1HN
Ministry of Justice,MoJ HQ,10-Jun-13,265000-IT & Telecommunications,PZ501-MoJ ICT Feeder,HP ENTERPRISE SERVICES UK LTD,1103400,"77,432.00",HP NICTS Exit (VAT Rec) FY13/14 Onwards,RG12 1HN
Ministry of Justice,MoJ HQ,10-Jun-13,265000-IT & Telecommunications,PZ501-MoJ ICT Feeder,HP ENTERPRISE SERVICES UK LTD,1103400,"198,669.84",HP NICTS Network Services (VAT Rec) FY13/14 Onwards,RG12 1HN
Ministry of Justice,MoJ HQ,13-Jun-13,265000-IT & Telecommunications,PZ501-MoJ ICT Feeder,HP ENTERPRISE SERVICES UK LTD,1103790,"230,962.36",HP NICTS Security (VAT Rec) FY13/14 Onwards,RG12 1HN
Ministry of Justice,MoJ HQ,10-Jun-13,265000-IT & Telecommunications,PZ501-MoJ ICT Feeder,HP ENTERPRISE SERVICES UK LTD,1103400,"327,769.00",HP NICTS SIAM (VAT Rec) FY13/14 Onwards,RG12 1HN
Ministry of Justice,MoJ HQ,10-Jun-13,265000-IT & Telecommunications,PZ501-MoJ ICT Feeder,HP ENTERPRISE SERVICES UK LTD,1103400,"395,165.58",HP NICTS General (VAT Rec) FY13/14 Onwards,RG12 1HN
Ministry of Justice,MoJ HQ,13-Jun-13,265000-IT & Telecommunications,PZ501-MoJ ICT Feeder,HP ENTERPRISE SERVICES UK LTD,1103790,"582,113.40",HP NICTS Network Services (VAT Rec) FY13/14 Onwards,RG12 1HN
Ministry of Justice,MoJ HQ,13-Jun-13,265000-IT & Telecommunications,PZ501-MoJ ICT Feeder,HP ENTERPRISE SERVICES UK LTD,1103790,"623,263.81",HP NICTS Telephony (NON VAT Rec) FY13/14 Onwards,RG12 1HN
Ministry of Justice,MoJ HQ,13-Jun-13,265000-IT & Telecommunications,PZ501-MoJ ICT Feeder,HP ENTERPRISE SERVICES UK LTD,1103790,"682,259.56",HP NICTS Hosting (VAT Rec) FY13/14 Onwards,RG12 1HN
Ministry of Justice,MoJ HQ,20-Jun-13,265000-IT & Telecommunications,PZ501-MoJ ICT Feeder,HP ENTERPRISE SERVICES UK LTD,1104375,"1,192,895.87",HP NICTS App Maint & Supp (VAT Rec) FY13/14 Onwards,RG12 1HN
Ministry of Justice,MoJ HQ,17-Jun-13,265000-IT & Telecommunications,PZ501-MoJ ICT Feeder,HP ENTERPRISE SERVICES UK LTD,1104107,"1,705,082.69",HP NICTS EUC (VAT Rec) FY13/14 Onwards,RG12 1HN
Ministry of Justice,MoJ HQ,10-Jun-13,265000-IT & Telecommunications,PZ501-MoJ ICT Feeder,CAPITA BUSINESS SERVICES LTD,1103336,"42,375.00",Consultancy services provided by I2N during April 2012 - March 2013  IAPS Helpdesk & Maintenance (I2N Support & Maintenance),DL1 9HN
Ministry of Justice,MoJ HQ,03-Jun-13,512000-Intangible GBV - Additions,PZ501-MoJ ICT Feeder,HEWLETT PACKARD LTD,1102837,"67,116.00","""NOMS 289-1 OMNI Platform Improvement Programme (OMNI PIP Stage 1) Purchase of HP licences HP Operations OS Inst Adv SW E-LTU & HP CAE Server Mgmt Svr SW E-LTU """,RG12 1HN
Ministry of Justice,MoJ HQ,24-Jun-13,512000-Intangible GBV - Additions,PZ501-MoJ ICT Feeder,STERIA LTD,1104740,"72,786.49",Lotus Notes (RFS 97044) (Schedule),M14 0WN
Ministry of Justice,MoJ HQ,17-Jun-13,265000-IT & Telecommunications,PZ501-MoJ ICT Feeder,STERIA LTD,1104192,"128,329.64",STERIA OMNI General - Other (VAT Rec) FY13/14 Onwards,M14 0WN
Ministry of Justice,MoJ HQ,24-Jun-13,265000-IT & Telecommunications,PZ501-MoJ ICT Feeder,STERIA LTD,1104740,"145,949.85",STERIA OMNI App Maint & Supp (VAT Rec) FY13/14 Onwards,M14 0WN
Ministry of Justice,MoJ HQ,24-Jun-13,265000-IT & Telecommunications,PZ501-MoJ ICT Feeder,STERIA LTD,1104740,"157,914.83",STERIA OMNI Network - Telephony (NON VAT Rec) FY13/14 Onwards,M14 0WN
Ministry of Justice,MoJ HQ,24-Jun-13,265000-IT & Telecommunications,PZ501-MoJ ICT Feeder,STERIA LTD,1104740,"189,942.25",STERIA OMNI App Maint & Supp (VAT Rec) FY13/14 Onwards,M14 0WN
Ministry of Justice,MoJ HQ,24-Jun-13,265000-IT & Telecommunications,PZ501-MoJ ICT Feeder,STERIA LTD,1104740,"269,300.53",STERIA OMNI Network Services (VAT Rec) FY13/14 Onwards,M14 0WN
Ministry of Justice,MoJ HQ,24-Jun-13,265000-IT & Telecommunications,PZ501-MoJ ICT Feeder,STERIA LTD,1104740,"287,329.28",STERIA OMNI General - Other (VAT Rec) FY13/14 Onwards,M14 0WN
Ministry of Justice,MoJ HQ,24-Jun-13,265000-IT & Telecommunications,PZ501-MoJ ICT Feeder,STERIA LTD,1104740,"309,885.82",STERIA OMNI Hosting (VAT Rec) FY13/14 Onwards,M14 0WN
Ministry of Justice,MoJ HQ,27-Jun-13,265000-IT & Telecommunications,PZ501-MoJ ICT Feeder,STERIA LTD,1105062,"311,780.49",STERIA OMNI Hosting (VAT Rec) FY13/14 Onwards,M14 0WN
Ministry of Justice,MoJ HQ,24-Jun-13,265000-IT & Telecommunications,PZ501-MoJ ICT Feeder,STERIA LTD,1104740,"921,552.55",STERIA OMNI Network Services (VAT Rec) FY13/14 Onwards,M14 0WN
Ministry of Justice,MoJ HQ,24-Jun-13,265000-IT & Telecommunications,PZ501-MoJ ICT Feeder,STERIA LTD,1104740,"1,611,825.05",STERIA OMNI EUC - Desktops (VAT Rec) FY13/14 Onwards,M14 0WN
Ministry of Justice,MoJ HQ,24-Jun-13,265000-IT & Telecommunications,PZ501-MoJ ICT Feeder,STERIA LTD,1104740,"1,614,307.75",STERIA OMNI EUC - Desktops (VAT Rec) FY13/14 Onwards,M14 0WN
Ministry of Justice,MoJ HQ,03-Jun-13,265000-IT & Telecommunications,PZ501-MoJ ICT Feeder,SOFTCAT LTD,1102937,"136,438.75",Support Contact - Bronze (E) **Dates for this Item: 22-NOV-2012 To 21-NOV-2013                      Tibco Support Agreement purchased via Softcat annual renewal - ,SL7 1LW
Ministry of Justice,MoJ HQ,28-Jun-13,265000-IT & Telecommunications,PZ501-MoJ ICT Feeder,STERIA LTD,6670,"699,826.29",STERIA OMNI Hosting (VAT Rec) FY13/14 Onwards,M14 0WN
Ministry of Justice,MoJ HQ,03-Jun-13,265000-IT & Telecommunications,PZ501-MoJ ICT Feeder,SOFTCAT LTD,1102937,"72,628.87","""One license -  Novell Primary Sup Eng EMEA (Zone 1)    Manufacturer Part  Number - 051-000170 """,SL7 1LW
Ministry of Justice,MoJ HQ,10-Jun-13,265000-IT & Telecommunications,PZ501-MoJ ICT Feeder,IBM (UNITED KINGDOM) LTD,1103406,"97,676.10",Websphere Application Server on Linux V6.0 DB2 V9.1 on Linux Websphere MQ V6.0 On Linux TIM V4.6 - Application Data & DB2 UDB 8.2 On  Director V6.0 On Linux,PO6 3AE
Ministry of Justice,MoJ HQ,27-Jun-13,265000-IT & Telecommunications,PZ501-MoJ ICT Feeder,CABLE & WIRELESS WORLDWIDE,1104833,"40,022.00",GCF Framework Agreement Schedule 18 Call-Off schedule,MK3 5JP
Ministry of Justice,MoJ HQ,27-Jun-13,265000-IT & Telecommunications,PZ501-MoJ ICT Feeder,CABLE & WIRELESS WORLDWIDE,1104833,"40,022.00",GCF Framework Agreement Schedule 18 Call-Off schedule,MK3 5JP
Ministry of Justice,MoJ HQ,27-Jun-13,265000-IT & Telecommunications,PZ501-MoJ ICT Feeder,CABLE & WIRELESS WORLDWIDE,1104833,"40,022.00",GCF Framework Agreement Schedule 18 Call-Off schedule,MK3 5JP
Ministry of Justice,MoJ HQ,27-Jun-13,265000-IT & Telecommunications,PZ501-MoJ ICT Feeder,CABLE & WIRELESS WORLDWIDE,1104833,"206,393.27",CJSM Yearly costs,MK3 5JP
Ministry of Justice,MoJ HQ,27-Jun-13,265000-IT & Telecommunications,PZ501-MoJ ICT Feeder,CABLE & WIRELESS WORLDWIDE,1104833,"206,393.27",CJSM Yearly costs,MK3 5JP
Ministry of Justice,MoJ HQ,13-Jun-13,265000-IT & Telecommunications,PZ501-MoJ ICT Feeder,FUJITSU SERVICES LTD,1103758,"68,929.96",FJS Governance   Managed Service (Schedule),WA3 9BD
Ministry of Justice,MoJ HQ,13-Jun-13,265000-IT & Telecommunications,PZ501-MoJ ICT Feeder,FUJITSU SERVICES LTD,1103758,"104,245.42",FJS Licensing  Managed Service (Schedule),WA3 9BD
Ministry of Justice,MoJ HQ,13-Jun-13,265000-IT & Telecommunications,PZ501-MoJ ICT Feeder,FUJITSU SERVICES LTD,1103758,"199,127.24",FJS Apps Tower - Operations - Other + Discount & Gain Share (Schedule),WA3 9BD
Ministry of Justice,MoJ HQ,13-Jun-13,265000-IT & Telecommunications,PZ501-MoJ ICT Feeder,FUJITSU SERVICES LTD,1103758,"226,924.83",FJS Hosting Tower - Operations - Other + Discount & Gain Share (Schedule),WA3 9BD
Ministry of Justice,MoJ HQ,13-Jun-13,265000-IT & Telecommunications,PZ501-MoJ ICT Feeder,FUJITSU SERVICES LTD,1103758,"372,018.87",FJS Operations - Production Environment   Managed Service (Schedule),WA3 9BD
Ministry of Justice,MoJ HQ,13-Jun-13,265000-IT & Telecommunications,PZ501-MoJ ICT Feeder,FUJITSU SERVICES LTD,1103758,"55,330.80",FJS Programme & Project Mgmt   Managed Service (Schedule),WA3 9BD
Ministry of Justice,MoJ HQ,13-Jun-13,265000-IT & Telecommunications,PZ501-MoJ ICT Feeder,FUJITSU SERVICES LTD,1103758,"84,816.84",FJS Service Desk   Managed Service (Schedule),WA3 9BD
Ministry of Justice,MoJ HQ,10-Jun-13,265000-IT & Telecommunications,PZ501-MoJ ICT Feeder,FUJITSU SERVICES LTD,1103374,"293,069.72",FJS Service Management   Managed Service (Schedule),WA3 9BD
Ministry of Justice,MoJ HQ,10-Jun-13,265000-IT & Telecommunications,PZ501-MoJ ICT Feeder,FUJITSU SERVICES LTD,1103374,"177,784.64",FJS Solution Assurance   Managed Service (Schedule),WA3 9BD
Ministry of Justice,MoJ HQ,13-Jun-13,265000-IT & Telecommunications,PZ501-MoJ ICT Feeder,FUJITSU SERVICES LTD,1103758,"203,655.88",FJS Security Management  Managed Service (Schedule),WA3 9BD
Ministry of Justice,MoJ HQ,06-Jun-13,512000-Intangible GBV - Additions,PZ501-MoJ ICT Feeder,ATOS IT SERVICES UK LTD,1103005,"25,200.00",CCN A-R-02707-14-v01 - Interim BAU support,WV10 6UH
Ministry of Justice,MoJ HQ,06-Jun-13,512000-Intangible GBV - Additions,PZ501-MoJ ICT Feeder,ATOS IT SERVICES UK LTD,1103005,"55,913.00",CCN A-R-02707-14-v01 - Interim BAU support,WV10 6UH
Ministry of Justice,MoJ HQ,06-Jun-13,512000-Intangible GBV - Additions,PZ501-MoJ ICT Feeder,ATOS IT SERVICES UK LTD,1103005,"65,093.00",CCN A-R-02707-14-v01 - Interim BAU support,WV10 6UH
Ministry of Justice,MoJ HQ,06-Jun-13,265000-IT & Telecommunications,PZ501-MoJ ICT Feeder,ATOS IT SERVICES UK LTD,1103005,"156,491.19",Atos ICT Hosting (VAT Rec) FY12/13 (Schedule),WV10 6UH
Ministry of Justice,MoJ HQ,06-Jun-13,265000-IT & Telecommunications,PZ501-MoJ ICT Feeder,ATOS IT SERVICES UK LTD,1103005,"156,491.19",Atos ICT Hosting (VAT Rec) FY12/13 (Schedule),WV10 6UH
Ministry of Justice,MoJ HQ,27-Jun-13,265000-IT & Telecommunications,PZ501-MoJ ICT Feeder,ATOS IT SERVICES UK LTD,1104803,"156,491.19",Atos ICT Hosting (VAT Rec) FY12/13 (Schedule),WV10 6UH
Ministry of Justice,MoJ HQ,24-Jun-13,265000-IT & Telecommunications,PZ501-MoJ ICT Feeder,FUJITSU SERVICES LTD,1104621,"26,742.16","CCN No: 432 - YJB Connectivity Hosting 01/04/12 - 31/07/13					 					 							",WA3 9BD
Ministry of Justice,MoJ HQ,24-Jun-13,265000-IT & Telecommunications,PZ501-MoJ ICT Feeder,FUJITSU SERVICES LTD,1104621,"53,484.32","CCN No: 432 - YJB Connectivity Hosting 01/04/12 - 31/07/13					 					 							",WA3 9BD
Ministry of Justice,MoJ HQ,20-Jun-13,262000-SCA Costs,PZ501-MoJ ICT Feeder,CAREWORKS (UK) LTD,1104279,"339,214.00",Services as described in the agreement relating to ASSETPLUS-Software Release changes to Case Management software system(s) (to implement ASSETPLUS) used by Youth Offending Teams within Local Authorities,CV34 6LG
Ministry of Justice,MoJ HQ,20-Jun-13,265000-IT & Telecommunications,PZ501-MoJ ICT Feeder,ATOS IT SERVICES UK LTD,1104249,"25,000.00",AS-03786-14 - HQ279 PQ105-E011- DSUP - AS-03786-14 Lockdown Build,WV10 6UH
Ministry of Justice,MoJ HQ,10-Jun-13,265000-IT & Telecommunications,PZ501-MoJ ICT Feeder,ATOS IT SERVICES UK LTD,1103301,"25,345.90","CCN A-R-3360-06  - Resources DH-MB						",WV10 6UH
Ministry of Justice,MoJ HQ,10-Jun-13,532000-Tangible GBV - Additions,PZ501-MoJ ICT Feeder,ATOS IT SERVICES UK LTD,1103301,"26,581.00",CCN - A-R 03193-03-v02 - Replacement of end of life Electronic Presentation of Evidence equipment - Secure Servers Disposal (one off cost),WV10 6UH
Ministry of Justice,MoJ HQ,24-Jun-13,265000-IT & Telecommunications,PZ501-MoJ ICT Feeder,ATOS IT SERVICES UK LTD,1104559,"26,711.00","A-S-03796-01 - NISE Project G stack development of CCN, low level design, FIM and NAC development",WV10 6UH
Ministry of Justice,MoJ HQ,13-Jun-13,532000-Tangible GBV - Additions,PZ501-MoJ ICT Feeder,ATOS IT SERVICES UK LTD,1103657,"28,040.00",HMCTS 247 SPS - CCNA-S-03481-01 Provision of CIRs M29.  Replaces PO 10000033849,WV10 6UH
Ministry of Justice,MoJ HQ,27-Jun-13,222003-CIS Labour TFM Estates,PZ501-MoJ ICT Feeder,G4S INTEGRATED SERVICES (UK) LTD,1104895,"29,992.12",NOP Programme draw down,CIS-WR12 7LJ
Ministry of Justice,MoJ HQ,27-Jun-13,512000-Intangible GBV - Additions,PZ501-MoJ ICT Feeder,CGI IT UK LTD,1104847,"31,010.00","CCN-L-R-3721-01 is raised to introduce to implement an adoption data loss fix to FamliyMan						",CF31 9AP
Ministry of Justice,MoJ HQ,20-Jun-13,265000-IT & Telecommunications,PZ501-MoJ ICT Feeder,ATOS IT SERVICES UK LTD,1104249,"35,000.00",AS-03786-14 - HQ279 PQ105-E011- DSUP - AS-03786-14 Lockdown Build,WV10 6UH
Ministry of Justice,MoJ HQ,03-Jun-13,265000-IT & Telecommunications,PZ501-MoJ ICT Feeder,ATOS IT SERVICES UK LTD,1102766,"35,684.36",CCN 2277-01 - Resources NOP,WV10 6UH
Ministry of Justice,MoJ HQ,03-Jun-13,265000-IT & Telecommunications,PZ501-MoJ ICT Feeder,ATOS IT SERVICES UK LTD,1102766,"37,898.57",CCN 2277-01 - Resources NOP,WV10 6UH
Ministry of Justice,MoJ HQ,24-Jun-13,265000-IT & Telecommunications,PZ501-MoJ ICT Feeder,ATOS IT SERVICES UK LTD,1104559,"39,000.00",CCN AS-03786-04 - HQ279 - DSUP - AS-03786-04  - MSI Package Analysis (one off cost),WV10 6UH
Ministry of Justice,MoJ HQ,24-Jun-13,512000-Intangible GBV - Additions,PZ501-MoJ ICT Feeder,JADU LTD,1104652,"40,000.00","HMCTS 192 ET Fees- Specialist Cloud Services. Deliverables as per contract milestones/deliverables. This excludes the value of the 2 previous interim orders-One Off Charge						",LE19 1RJ
Ministry of Justice,MoJ HQ,24-Jun-13,265000-IT & Telecommunications,PZ501-MoJ ICT Feeder,ATOS IT SERVICES UK LTD,1104559,"40,017.00",MaLI Ref: HQ319 - Poise Exit  - Atos Project Mothball CIR for PPO and AS (PPD - 2013/14 costs),WV10 6UH
Ministry of Justice,MoJ HQ,03-Jun-13,265000-IT & Telecommunications,PZ501-MoJ ICT Feeder,ATOS IT SERVICES UK LTD,1102766,"41,244.52",CCN 2277-01 - Resources NOP,WV10 6UH
Ministry of Justice,MoJ HQ,03-Jun-13,265000-IT & Telecommunications,PZ501-MoJ ICT Feeder,ATOS IT SERVICES UK LTD,1102766,"41,378.80",CCN 2277-01 - Resources NOP,WV10 6UH
Ministry of Justice,MoJ HQ,24-Jun-13,265000-IT & Telecommunications,PZ501-MoJ ICT Feeder,ATOS IT SERVICES UK LTD,1104559,"44,369.00",CCN AS-03786-04 - HQ279 - DSUP - AS-03786-04  - MSI Package Analysis (one off cost),WV10 6UH
Ministry of Justice,MoJ HQ,10-Jun-13,265000-IT & Telecommunications,PZ501-MoJ ICT Feeder,CGI IT UK LTD,1103342,"47,500.40","CCN L-R-3650-05 POISE PPO & AS Extension to End Apr 2013 V0.2 (MaLI Ref: HQ274 & HQ275)						",CF31 9AP
Ministry of Justice,MoJ HQ,06-Jun-13,512000-Intangible GBV - Additions,PZ501-MoJ ICT Feeder,CGI IT UK LTD,1103042,"47,812.32",CCN L-R-3580-02 - ET Fees Requirements (One off charge),CF31 9AP
Ministry of Justice,MoJ HQ,10-Jun-13,532000-Tangible GBV - Additions,PZ501-MoJ ICT Feeder,ATOS IT SERVICES UK LTD,1103301,"48,404.87",HMCTS 247 SPS - CCNA-S-03481-01 Remaining MFD deployment M25&26. Replaces PO 10000033842,WV10 6UH
Ministry of Justice,MoJ HQ,03-Jun-13,265000-IT & Telecommunications,PZ501-MoJ ICT Feeder,ATOS IT SERVICES UK LTD,1102766,"48,875.68",CCN 2277-01 - Resources NOP -SH-MW-ZA-CB-SG-MH,WV10 6UH
Ministry of Justice,MoJ HQ,27-Jun-13,222003-CIS Labour TFM Estates,PZ501-MoJ ICT Feeder,G4S INTEGRATED SERVICES (UK) LTD,1104896,"49,466.97",NOP Programme draw down (SIU Structured Cabling Works),WR12 7LJ
Ministry of Justice,MoJ HQ,10-Jun-13,512000-Intangible GBV - Additions,PZ501-MoJ ICT Feeder,HP ENTERPRISE SERVICES UK LTD,1103400,"49,900.51",PB508 - HP Project Implementation Costs - Replaces PO 10000024857,RG12 1HN
Ministry of Justice,MoJ HQ,13-Jun-13,265000-IT & Telecommunications,PZ501-MoJ ICT Feeder,ATOS IT SERVICES UK LTD,1103657,"50,000.00",CCN AS-03786-02 - HQ279 - DSUP - AS-03786-02 Proof of Concept (one off cost),WV10 6UH
Ministry of Justice,MoJ HQ,03-Jun-13,265000-IT & Telecommunications,PZ501-MoJ ICT Feeder,ATOS IT SERVICES UK LTD,1102766,"55,066.26",CCN 2277-01 - Resources SPS,WV10 6UH
Ministry of Justice,MoJ HQ,10-Jun-13,532000-Tangible GBV - Additions,PZ501-MoJ ICT Feeder,ATOS IT SERVICES UK LTD,1103301,"81,877.86",HMCTS 247 SPS - CCNA-S-03481-01 Print device deployment M27&28.  Replaces PO 10000033841,WV10 6UH
Ministry of Justice,MoJ HQ,03-Jun-13,512000-Intangible GBV - Additions,PZ501-MoJ ICT Feeder,JADU LTD,1102845,"85,000.00","HMCTS 192 ET Fees- Specialist Cloud Services. Deliverables as per contract milestones/deliverables. This excludes the value of the 2 previous interim orders-One Off Charge						",LE19 1RJ
Ministry of Justice,MoJ HQ,13-Jun-13,512000-Intangible GBV - Additions,PZ501-MoJ ICT Feeder,CGI IT UK LTD,1103701,"95,586.56","CCN-3686-01 - HMCTS on-line interface programme work (CPE)-HMCTS 249 MCOL and PCOL Remediation CCN-3686-01 re HOLI: Overarching solution for changes to existing system components to deliver HCMTS on-line services-One Off ch						 							",CF31 9AP
Ministry of Justice,MoJ HQ,24-Jun-13,532000-Tangible GBV - Additions,PZ501-MoJ ICT Feeder,ATOS IT SERVICES UK LTD,1104559,"98,826.61",HMCTS 247 SPS - CCNA-S-03481-01 Remaining MFD deployment M25&26. Replaces PO 10000033842,WV10 6UH
Ministry of Justice,MoJ HQ,10-Jun-13,532000-Tangible GBV - Additions,PZ501-MoJ ICT Feeder,ATOS IT SERVICES UK LTD,1103301,"99,926.40",HMCTS 247 SPS - CCNA-S-03481-01 Print device deployment M27&28.  Replaces PO 10000033841,WV10 6UH
Ministry of Justice,MoJ HQ,24-Jun-13,512000-Intangible GBV - Additions,PZ501-MoJ ICT Feeder,JADU LTD,1104652,"106,500.00","HMCTS 192 ET Fees- Specialist Cloud Services. Deliverables as per contract milestones/deliverables. This excludes the value of the 2 previous interim orders-One Off Charge						",LE19 1RJ
Ministry of Justice,MoJ HQ,10-Jun-13,265000-IT & Telecommunications,PZ501-MoJ ICT Feeder,ATOS IT SERVICES UK LTD,1103301,"126,002.00",CCN2277-01 - NOP Main CCN,WV10 6UH
Ministry of Justice,MoJ HQ,10-Jun-13,532000-Tangible GBV - Additions,PZ501-MoJ ICT Feeder,ATOS IT SERVICES UK LTD,1103301,"176,341.81",HMCTS 247 SPS - CCNA-S-03481-01 Remaining MFD deployment M25&26. Replaces PO 10000033842,WV10 6UH
Ministry of Justice,MoJ HQ,24-Jun-13,532000-Tangible GBV - Additions,PZ501-MoJ ICT Feeder,ATOS IT SERVICES UK LTD,1104559,"204,694.66",HMCTS 247 SPS - CCNA-S-03481-01 Print device deployment M27&28.  Replaces PO 10000033841,WV10 6UH
Ministry of Justice,MoJ HQ,24-Jun-13,532000-Tangible GBV - Additions,PZ501-MoJ ICT Feeder,ATOS IT SERVICES UK LTD,1104559,"249,816.00",HMCTS 247 SPS - CCNA-S-03481-01 Print device deployment M27&28.  Replaces PO 10000033841,WV10 6UH
Ministry of Justice,MoJ HQ,20-Jun-13,512000-Intangible GBV - Additions,PZ501-MoJ ICT Feeder,CGI IT UK LTD,1104285,"279,105.00","CCN L-R-3743-01 MCOL Functional Release; covers functional changes to enhance MCOL application.  First milestone payment on completion of development.			 Completion of integration testing				 Completion of functional testing				 Sign-off",CF31 9AP
Ministry of Justice,MoJ HQ,24-Jun-13,532000-Tangible GBV - Additions,PZ501-MoJ ICT Feeder,ATOS IT SERVICES UK LTD,1104559,"360,031.20",HMCTS 247 SPS - CCNA-S-03481-01 Remaining MFD deployment M25&26. Replaces PO 10000033842,WV10 6UH
Ministry of Justice,MoJ HQ,28-Jun-13,512000-Intangible GBV - Additions,PZ501-MoJ ICT Feeder,STERIA LTD,6671,"1,716,100.29",STERIA OMNI Hosting (VAT Rec) FY13/14 Onwards,M14 0WN
Ministry of Justice,MoJ HQ,24-Jun-13,532000-Tangible GBV - Additions,PZ501-MoJ ICT Feeder,STERIA LTD,1104740,"101,731.32",PQ108 - OMNI-T Capital Expenditure FY1112- Contract no 3368393.12,M14 0WN
Ministry of Justice,MoJ HQ,27-Jun-13,212001-Agency staff,PZ501-MoJ ICT Feeder,CAPITA RESOURCING LTD,1104839,"25,917.68",25241 CIPHERL00648 -Project Manager (RC Senior /Lead Project Manager )  - for a maximum of 107 days from 08/04/2013 to 07/09/2013 subject to the terms and conditions of contract ,SL6 1DP
Ministry of Justice,MoJ HQ,03-Jun-13,265000-IT & Telecommunications,PZ501-MoJ ICT Feeder,SOFTCAT LTD,1102937,"26,182.00","""PostCoder API Professional Annual User Licences (up to 550)  Includes premise level data, without GeoData""",SL7 1LW
Ministry of Justice,MoJ HQ,27-Jun-13,265000-IT & Telecommunications,PZ501-MoJ ICT Feeder,STERIA LTD,1105062,"30,873.28","GAPS 2 - Monthly Support Costs - To be called off on a monthly basis,Quarterly call-off costs, Training Environment , Postcoder License renewal - Annual Payment & Training Web Domain Registration - Annual Payment",M14 0WN
Ministry of Justice,MoJ HQ,27-Jun-13,265000-IT & Telecommunications,PZ501-MoJ ICT Feeder,STERIA LTD,1105062,"30,873.28","GAPS 2 - Monthly Support Costs - To be called off on a monthly basis,Quarterly call-off costs, Training Environment , Postcoder License renewal - Annual Payment & Training Web Domain Registration - Annual Payment",M14 0WN
Ministry of Justice,MoJ HQ,27-Jun-13,265000-IT & Telecommunications,PZ501-MoJ ICT Feeder,SOFTCAT LTD,1105057,"31,418.40","""PostCoder API Professional Annual User Licences (up to 550)  Includes premise level data, without GeoData""",SL7 1LW
Ministry of Justice,MoJ HQ,10-Jun-13,265000-IT & Telecommunications,PZ501-MoJ ICT Feeder,LIBERATA UK LTD,1103426,"50,586.68",ICT Printing - Liberata Print Charges,NP10 9XA
Ministry of Justice,MoJ HQ,10-Jun-13,265000-IT & Telecommunications,PZ501-MoJ ICT Feeder,LIBERATA UK LTD,1103426,"53,452.18",ICT Printing - Liberata Print Charges,NP10 9XA
Ministry of Justice,MoJ HQ,27-Jun-13,265000-IT & Telecommunications,PZ501-MoJ ICT Feeder,CABLE & WIRELESS WORLDWIDE,1104833,"45,439.66","PCVL Installation - Caernarfon,PCVL Installation - Phase 3 - HMCTS Tech Refresh to 447 Endpoints,PCVL Installation - Phase 4 - Crown Court (47) Expansion, PCVL Installation - Incre",MK3 5JP
Ministry of Justice,MoJ HQ,27-Jun-13,265000-IT & Telecommunications,PZ501-MoJ ICT Feeder,CABLE & WIRELESS WORLDWIDE,1104833,"107,320.00","PCVL Installation - Caernarfon,PCVL Installation - Phase 3 - HMCTS Tech Refresh to 447 Endpoints,PCVL Installation - Phase 4 - Crown Court (47) Expansion, PCVL Installation - Incre",MK3 5JP
Ministry of Justice,MoJ HQ,27-Jun-13,265000-IT & Telecommunications,PZ501-MoJ ICT Feeder,CABLE & WIRELESS WORLDWIDE,1104833,"171,600.79","PCVL Installation - Caernarfon,PCVL Installation - Phase 3 - HMCTS Tech Refresh to 447 Endpoints,PCVL Installation - Phase 4 - Crown Court (47) Expansion, PCVL Installation - Incre",MK3 5JP
Ministry of Justice,MoJ HQ,20-Jun-13,222002-Other Property Costs,NZ406-Strategic Estates Feeder,CBRE LTD,1104284,"39,500.31",Rent & Services charges - 30 Millbank,G2 6UA-COLUMBIN
Ministry of Justice,MoJ HQ,20-Jun-13,221000-Property Rent and Rates,NZ406-Strategic Estates Feeder,CBRE LTD,1104284,"89,501.25",Rent & Services charges - 30 Millbank,G2 6UA-COLUMBIN
Ministry of Justice,MoJ HQ,20-Jun-13,222003-CIS Labour TFM Estates,NZ406-Strategic Estates Feeder,MITIE JUSTICE LTD,1104439,"87,636.17",QW P5 - Court usage review - 81 Chancery Lane,BS16 7FH
Ministry of Justice,MoJ HQ,20-Jun-13,221000-Property Rent and Rates,NZ406-Strategic Estates Feeder,YORKE PROPERTY MANAGEMENT LTD,1104542,"506,000.00",Rent & Services charges - 81 Chancery Lane,W1K 6WE
Ministry of Justice,MoJ HQ,20-Jun-13,221000-Property Rent and Rates,NZ406-Strategic Estates Feeder,ABP HOLDINGS,1104233,"478,000.00",Rent payable in advance due for period 24/6/2013 to 28/9/2013 - Steel House.,IRELAND
Ministry of Justice,MoJ HQ,13-Jun-13,222001-Maintenance,NZ406-Strategic Estates Feeder,M J FERGUSON LTD,1103828,"30,447.30",ND175: Clive House: PPM costs for 2013-14.,CIS-CM12 0BT
Ministry of Justice,MoJ HQ,20-Jun-13,221000-Property Rent and Rates,NZ406-Strategic Estates Feeder,DTZ DEBENHAM TIE LEUNG,1104316,"1,057,506.96",Qtr 2 2013-14 rent - Clive House,B4 6AJ-APIA
Ministry of Justice,MoJ HQ,21-Jun-13,222002-Other Property Costs,NZ406-Strategic Estates Feeder,HOME OFFICE,3284,"25,296.65",Grenadier House utilities costs for 2012-13 - ,NP20 9BB
Ministry of Justice,MoJ HQ,28-Jun-13,221000-Property Rent and Rates,NZ406-Strategic Estates Feeder,DTZ DEBENHAM TIE LEUNG,6668,"455,689.25",Rent - Grenadier House,B4 6AJ-APIA
Ministry of Justice,MoJ HQ,04-Jun-13,221000-Property Rent and Rates,NZ406-Strategic Estates Feeder,LEICESTER CITY COUNCIL,1102976,"58,000.50",Rent & Services charges - Peat House,LE1 6HL
Ministry of Justice,MoJ HQ,25-Jun-13,222002-Other Property Costs,NZ406-Strategic Estates Feeder,JONES LANG LASALLE LTD,6666,"25,558.50","Rent & Services charges - Axis, Birmingham",BS8 9AQ
Ministry of Justice,MoJ HQ,25-Jun-13,221000-Property Rent and Rates,NZ406-Strategic Estates Feeder,JONES LANG LASALLE LTD,6666,"45,431.34","Rent & Services charges - Axis, Birmingham",BS8 9AQ
Ministry of Justice,MoJ HQ,25-Jun-13,221000-Property Rent and Rates,NZ406-Strategic Estates Feeder,JONES LANG LASALLE LTD,6666,"49,326.06","Rent & Services charges - Axis, Birmingham",BS8 9AQ
Ministry of Justice,MoJ HQ,27-Jun-13,261000-Fuel and Utilities,NZ406-Strategic Estates Feeder,EDF ENERGY LTD,1104883,"60,757.64",Electricity supply in 2013-14 to 102 Petty France,PL3 5XQ
Ministry of Justice,MoJ HQ,06-Jun-13,222002-Other Property Costs,NZ406-Strategic Estates Feeder,LANCASTER CLEANING AND SUPPORT SERVICES,1103130,"90,579.90",NE130: 102 Petty France: cleaning services 2013.,DY1 4TA
Ministry of Justice,MoJ HQ,20-Jun-13,222002-Other Property Costs,NZ406-Strategic Estates Feeder,LANCASTER CLEANING AND SUPPORT SERVICES,1104402,"90,579.90",NE130: 102 Petty France: cleaning services 2013.,DY1 4TA
Ministry of Justice,MoJ HQ,13-Jun-13,222001-Maintenance,NZ406-Strategic Estates Feeder,M J FERGUSON LTD,1103828,"182,631.87",NE130: 102 Petty France: PPM costs for 2013-14.,CIS-CM12 0BT
Ministry of Justice,MoJ HQ,20-Jun-13,221000-Property Rent and Rates,NZ406-Strategic Estates Feeder,LAND SECURITIES PROPERTIES LTD,1104403,"3,418,407.80",Rent - 102 Petty France,WC2N 5AF-RENT
Ministry of Justice,MoJ HQ,10-Jun-13,265000-IT & Telecommunications,NZ406-Strategic Estates Feeder,BANCTEC LTD,1103307,"30,000.00","PS&W Annual hosting fee, Year 3 Apr 2013 - Mar 2014 - requirement hosted on  MoJ 4Projects 3G Extranet;""",SL3 0HF
Ministry of Justice,MoJ HQ,27-Jun-13,265000-IT & Telecommunications,NZ406-Strategic Estates Feeder,BANCTEC LTD,1104809,"94,901.00","""MoJ 4Projects 3G Extranet;  NOMS Annual hosting fee, Year 3 Apr 2013 - Mar 2014""",SL3 0HF
Ministry of Justice,MoJ HQ,13-Jun-13,265000-IT & Telecommunications,NZ406-Strategic Estates Feeder,ATOS IT SERVICES UK LTD,1103657,"40,707.00",CCN A-S-3748-01 - Relocation of LSC Staff from Exhange Tower to 102 Petty France (one off cost),WV10 6UH
Ministry of Justice,MoJ HQ,27-Jun-13,265000-IT & Telecommunications,NZ406-Strategic Estates Feeder,ATOS IT SERVICES UK LTD,1104803,"59,807.00",CCN A-S-3748-01 - Relocation of LSC Staff from Exhange Tower to 102 Petty France (one off cost),WV10 6UH
Ministry of Justice,MoJ HQ,27-Jun-13,265000-IT & Telecommunications,NZ406-Strategic Estates Feeder,ATOS IT SERVICES UK LTD,1104803,"69,060.00",CCN A-S-3748-01 - Relocation of LSC Staff from Exhange Tower to 102 Petty France (one off cost),WV10 6UH
Ministry of Justice,MoJ HQ,10-Jun-13,265000-IT & Telecommunications,NZ406-Strategic Estates Feeder,HP ENTERPRISE SERVICES UK LTD,1103400,"30,279.42","RFS 9052 Marston House Site Closure - Relocation of infrastructure and decommissioning of networks at Marston House						 							",RG12 1HN
Ministry of Justice,MoJ HQ,06-Jun-13,265000-IT & Telecommunications,NZ406-Strategic Estates Feeder,STERIA LTD,1103234,"67,583.15",RFS Number:  112033 ADC Relocation,M14 0WN
Ministry of Justice,MoJ HQ,20-Jun-13,262000-SCA Costs,NX900-MOJ Shared Services,LIBERATA UK LTD,1104412,"71,079.87",Charges under rfc FSMO 175 Contractor services,NP10 9XA
Ministry of Justice,MoJ HQ,10-Jun-13,265000-IT & Telecommunications,NX900-MOJ Shared Services,STERIA LTD,1103494,"81,232.00","CCN Number CR-218 - Early Deployment of MI (Deployment Zero). Milestones 1 to 4 - Total fixed Price Charge 350,483.00 & 51,355 Indicative Support costs.",M14 0WN
Ministry of Justice,MoJ HQ,13-Jun-13,262000-SCA Costs,NX900-MOJ Shared Services,LIBERATA UK LTD,1103818,"1,126,934.68",Aramis Charges for 2013-14: to be reconciled and agreed Monthley,NP10 9XA
Ministry of Justice,MoJ HQ,27-Jun-13,265000-IT & Telecommunications,NX900-MOJ Shared Services,ACCENTURE (UK) LIMITED,1104794,"28,957.66",Accenture exit plan activities for the period 2nd April 2013 to 30th June 2013,EC3M 3BD
Ministry of Justice,MoJ HQ,10-Jun-13,262000-SCA Costs,NX900-MOJ Shared Services,LIBERATA UK LTD,1103426,"39,204.22",FSMO 250 - Oracle 3rd party costs (estimated),NP10 9XA
Ministry of Justice,MoJ HQ,20-Jun-13,212001-Agency staff,NX900-MOJ Shared Services,CAPITA RESOURCING LTD,1104278,"108,054.00",47331 CIPHERL00598 -Programme Commercial & Performance Manager - (RC Programme Director - Above High) - for a maximum of 124.00 days from 02/01/2013 to 29/06/2013 subject to the terms and conditions of contract reference RPU,SL6 1DP
Ministry of Justice,MoJ HQ,13-Jun-13,262000-SCA Costs,NX900-MOJ Shared Services,LIBERATA UK LTD,1103817,"248,864.72",Monthly provision of payroll services FY13-14,NP10 8BA
Ministry of Justice,MoJ HQ,10-Jun-13,224000-Staff travel and other,OZ501-HRD Feeder,XEXEC LTD,1103530,"26,783.73",MoJ R & R Voucher Scheme .FY 13-14,NW4 1BE
Ministry of Justice,MoJ HQ,24-Jun-13,265000-IT & Telecommunications,LZ600-Transforming Justice,SOFTCAT LTD,1104735,"34,451.52",Development/ design environment support,SL7 1LW
Ministry of Justice,MoJ HQ,24-Jun-13,265000-IT & Telecommunications,LZ600-Transforming Justice,SOFTCAT LTD,1104735,"41,341.80",Development/ design environment support,SL7 1LW
Ministry of Justice,MoJ HQ,41438,266000-Judicial Costs,LZ600-Transforming Justice,THOMSON REUTERS T/A SWEET & MAXWELL LTD,1103962,"41,977.98",Legal publications for the judiciary and courts,SP10 9AG
Ministry of Justice,MoJ HQ,41452,223000-Other Expenditure,LZ600-Transforming Justice,TNT UK LTD,1105075,"86,213.40",Monthly 'storage' and 'activity' costs for paper records stored by TNT on MoJ's behalf at its secure repositories.,BL8 9AR
Ministry of Justice,MoJ HQ,41445,266000-Judicial Costs,LZ600-Transforming Justice,JORDAN PUBLISHING LTD,1104389,"354,645.00",Legal publications for the judiciary and courts,BS1 6JS
Ministry of Justice,MoJ HQ,41449,266000-Judicial Costs,LZ600-Transforming Justice,HAMMICKS LEGAL INFORMATION SERVICES,1104636,"640,598.40",Legal publications for the judiciary and courts,BH24 3PB
Ministry of Justice,MoJ HQ,41452,262000-SCA Costs,RG999-CFLAP Accumulator,LEGASTAT LTD,1104959,"116,198.00",Provision and delivery of document scanning and document case management system,WC2A 2JB
Ministry of Justice,MoJ HQ,41438,266000-Judicial Costs,RG999-CFLAP Accumulator,CALDER CONFERENCES LTD,1103690,"32,201.84",Venues for MoJ Coroner training courses throughout 2012/13,LS16 6RF
Ministry of Justice,MoJ HQ,41450,246000-Current Grants,RJ999-JPG - International,COUNCIL OF EUROPE,13734,"157,357.32",Grant payment,FRANCE
Ministry of Justice,MoJ HQ,41431,266000-Judicial Costs,MF600-Directorate of Judicial Offices,CALDER CONFERENCES LTD,1103033,"25,168.63","Venue Hire, Accomodation and other costs relating to Judicial Training Conferences",LS16 6RF
Ministry of Justice,MoJ HQ,41428,266000-Judicial Costs,MF600-Directorate of Judicial Offices,CALDER CONFERENCES LTD,1102784,"25,423.13","Venue Hire, Accomodation and other costs relating to Judicial Training Conferences",LS16 6RF
Ministry of Justice,MoJ HQ,41452,266000-Judicial Costs,MF600-Directorate of Judicial Offices,CALDER CONFERENCES LTD,1104834,"26,483.83","Venue Hire, Accomodation and other costs relating to Judicial Training Conferences",LS16 6RF,,
Ministry of Justice,MoJ HQ,41445,266000-Judicial Costs,MF600-Directorate of Judicial Offices,CALDER CONFERENCES LTD,1104274,"28,294.38","Venue Hire, Accomodation and other costs relating to Judicial Training Conferences",LS16 6RF,,
Ministry of Justice,MoJ HQ,41445,266000-Judicial Costs,MF600-Directorate of Judicial Offices,CALDER CONFERENCES LTD,1104274,"28,826.25","Venue Hire, Accomodation and other costs relating to Judicial Training Conferences",LS16 6RF,,
Ministry of Justice,MoJ HQ,41445,266000-Judicial Costs,MF600-Directorate of Judicial Offices,CALDER CONFERENCES LTD,1104274,"32,605.50","Venue Hire, Accomodation and other costs relating to Judicial Training Conferences",LS16 6RF,,
Ministry of Justice,MoJ HQ,41438,266000-Judicial Costs,MF600-Directorate of Judicial Offices,CALDER CONFERENCES LTD,1103690,"36,684.97","Venue Hire, Accomodation and other costs relating to Judicial Training Conferences",LS16 6RF,,
Ministry of Justice,HMCTS,03-Jun-13,221000-Property Rent and Rates,BZ999-London Region,OFFICE OF FAIR TRADING,2227,"-153,081.50",Office of Fair Trading Account Charges - Q1,EC4Y 8JX,0,Programme
Ministry of Justice,HMCTS,03-Jun-13,221000-Property Rent and Rates,BZ999-London Region,OFFICE OF FAIR TRADING,2227,"-48,343.75",Office of Fair Trading Account Charges - Q1,EC4Y 8JX,0,Programme
Ministry of Justice,HMCTS,05-Jun-13,221000-Property Rent and Rates,BZ999-London Region,BRUNTWOOD,2477281,"25,610.75",Property Costs,M1 4BT-RENTALPH,0,Programme
Ministry of Justice,HMCTS,03-Jun-13,221000-Property Rent and Rates,BZ999-London Region,OFFICE OF FAIR TRADING,2227,"48,343.75",Property Costs,EC4Y 8JX,0,Programme
Ministry of Justice,HMCTS,04-Jun-13,221000-Property Rent and Rates,BZ999-London Region,MAPELEY STEPS CONTRACTOR LTD,2474917,"50,842.00",Property Costs,SE1 0TA,0,Programme
Ministry of Justice,HMCTS,18-Jun-13,221000-Property Rent and Rates,BZ999-London Region,SANDERSON WEATHERALL,2489974,"70,375.00",Property Costs,LS1 4WG-RENT,0,Programme
Ministry of Justice,HMCTS,03-Jun-13,221000-Property Rent and Rates,BZ999-London Region,OFFICE OF FAIR TRADING,2227,"153,081.50",Property Costs,EC4Y 8JX,0,Programme
Ministry of Justice,HMCTS,04-Jun-13,221000-Property Rent and Rates,BZ999-London Region,GBR PHOENIX BEARD,2474715,"182,449.38",Property Costs,B3 3WX EID R,0,Programme
Ministry of Justice,HMCTS,19-Jun-13,221000-Property Rent and Rates,BZ999-London Region,CITY OF LONDON,2492003,"214,306.25",Property Costs,EC2P 2EJ-RENT,0,Programme
Ministry of Justice,HMCTS,07-Jun-13,221000-Property Rent and Rates,BZ999-London Region,ASHWELL ROGERS LLP,2479600,"231,875.00",Property Costs,W1S 3NQ,0,Programme
Ministry of Justice,HMCTS,04-Jun-13,221000-Property Rent and Rates,BZ999-London Region,DERWENT LONDON,2474641,"430,000.00",Property Costs,W1S 2ER-ROSE AV,0,Programme
Ministry of Justice,HMCTS,04-Jun-13,221000-Property Rent and Rates,BZ999-London Region,JONES LANG LASALLE LTD,2474830,"490,306.00",Property Costs,E14 5WQ-SERVICE,0,Programme
Ministry of Justice,HMCTS,04-Jun-13,221000-Property Rent and Rates,CZ999-South East Region,GE REAL ESTATE,2474717,"115,819.75",Property Costs,W6 8BJ,0,Programme
Ministry of Justice,HMCTS,21-Jun-13,221000-Property Rent and Rates,EZ999-Wales Region,CBRE LTD,2495769,"85,625.00",Property Costs,G2 6UA-COLUMHSE,0,Programme
Ministry of Justice,HMCTS,04-Jun-13,221000-Property Rent and Rates,FZ999-Midlands Region,CBRE LTD,2474555,"62,500.00",Quarterly rent for Birmingham AIT,G2 6UA-HAMPCC,0,Programme
Ministry of Justice,HMCTS,12-Jun-13,221000-Property Rent and Rates,FZ999-Midlands Region,CUSHMAN & WAKEFIELD LLP,2484044,"123,580.00",Quarterly rent for Birmingham ASC,B2 2JT-MERCIA,0,Programme
Ministry of Justice,HMCTS,18-Jun-13,221000-Property Rent and Rates,FZ999-Midlands Region,COLLIER & MADGE PLC,2489225,"143,625.00",Quarterly rent for Stoke AIT,W1H 7AL,0,Programme
Ministry of Justice,HMCTS,07-Jun-13,221000-Property Rent and Rates,GZ999-North West Region,BRUNTWOOD,2479639,"206,880.50",Rent and Service Charge Manchester Immigration & Appeals Tribunal,M1 4BT-RENTBRU,0,Programme
Ministry of Justice,HMCTS,11-Jun-13,221000-Property Rent and Rates,HZ999-North East Region,STANDARD LIFE INVESTMENTS,2482259,"35,537.50",Rent,EH2 2LL#,0,Programme
Ministry of Justice,HMCTS,11-Jun-13,221000-Property Rent and Rates,HZ999-North East Region,STANDARD LIFE INVESTMENTS,2482258,"39,203.75",Rent,EH2 2LL,0,Programme
Ministry of Justice,HMCTS,07-Jun-13,221000-Property Rent and Rates,HZ999-North East Region,LAND SECURITIES PROPERTIES LTD,2479846,"79,314.81",Rent,WC2N 5AF##,0,Programme
Ministry of Justice,HMCTS,04-Jun-13,221000-Property Rent and Rates,HZ999-North East Region,EDDISONS,2474669,"113,050.25",Rent,WC2H 0AU-RENT,0,Programme
Ministry of Justice,HMCTS,18-Jun-13,221000-Property Rent and Rates,HZ999-North East Region,LANDA ASSET MANAGEMENT PLC,2489534,"113,500.00",Rent,W1B 1PN,0,Programme
Ministry of Justice,HMCTS,07-Jun-13,221000-Property Rent and Rates,SJ999-Scotland,CBRE LTD,2479657,"59,846.50",Property Costs,G2 6UA-CLICOMRE,0,Programme
Ministry of Justice,HMCTS,07-Jun-13,221000-Property Rent and Rates,SJ999-Scotland,CBRE LTD,2479657,"90,357.75",Property Costs,G2 6UA-CLICOMRE,0,Programme
Ministry of Justice,HMCTS,19-Jun-13,221000-Property Rent and Rates,SL999-Centralised Frontline,PKF (UK) LLP,2493384,"71,817.83",Property Costs,GU1 4HN,0,Programme
Ministry of Justice,HMCTS,12-Jun-13,222001-Maintenance,AG999-HQ - Estates,DAC BEACHCROFT LLP,2484045,"28,714.00",Disposals,BS99 7UR,0,Programme
Ministry of Justice,HMCTS,05-Jun-13,222001-Maintenance,AG999-HQ - Estates,EC HARRIS LLP,2477329,"32,071.10",Knowledge Facility - EC HARRIS LLP - Support for the Knowledge Programme  - this replaces PO 20000164735,M60 3NT,0,Programme
Ministry of Justice,HMCTS,04-Jun-13,222001-Maintenance,AG999-HQ - Estates,R & M WILLIAMS LTD,2475244,"76,037.96",CIS LABOUR - MW - PTO 12/13 (15) Bristol Judges' Lodgings - Works Package 2,CIS-CF11 8JQ,0,Programme
Ministry of Justice,HMCTS,11-Jun-13,222001-Maintenance,BZ999-London Region,VINCI CONSTRUCTION UK LTD,2482333,"53,809.68","CIS Labour - London Estates - VINCI CONSTRUCTION UK LTD - Package 5 - Works to include Repair of cell floors, potholing access road, various redecs & new carpets including to HHJ Redgraves Chambers THIS REPLACES PO 20000170733",CIS-WD24 4WW,0,Programme
Ministry of Justice,HMCTS,11-Jun-13,222001-Maintenance,BZ999-London Region,VINCI CONSTRUCTION UK LTD,2482333,"59,447.21","CIS Labour - London Estates - VINCI CONSTRUCTION UK LTD - Package 5 - Works to include Repair of cell floors, potholing access road, various redecs & new carpets including to HHJ Redgraves Chambers THIS REPLACES PO 20000170733",CIS-WD24 4WW,0,Programme
Ministry of Justice,HMCTS,11-Jun-13,222001-Maintenance,DZ999-South West Region,R & M WILLIAMS LTD,2482160,"26,759.08",CIS LABOUR - MW - PTO 12/13 (15) Taunton Magistrates' Court - Works Package 2,CIS-CF11 8JQ,0,Programme
Ministry of Justice,HMCTS,11-Jun-13,222001-Maintenance,DZ999-South West Region,R & M WILLIAMS LTD,2482160,"32,093.03",CIS LABOUR - MW - PTO 12/13 (15) Yeovil Magistrates' Court - Works Package 2,CIS-CF11 8JQ,0,Programme
Ministry of Justice,HMCTS,14-Jun-13,222001-Maintenance,DZ999-South West Region,IAN WILLIAMS LIMITED,2486793,"66,729.15",CIS LABOUR - MW - PTO 12/13 (17) Swindon Magistrates' Court - Works Package 5,CIS-BS37 6JL,0,Programme
Ministry of Justice,HMCTS,14-Jun-13,222001-Maintenance,DZ999-South West Region,IAN WILLIAMS LIMITED,2486793,"77,694.80",CIS LABOUR - MW - PTO 12/13 (17) Swindon Combined Court - Works Package 5,CIS-BS37 6JL,0,Programme
Ministry of Justice,HMCTS,28-Jun-13,222001-Maintenance,DZ999-South West Region,LONGCROSS GROUP LTD,2503606,"108,069.27",CIS LABOUR - MW - PTO 12/13 (14) Cheltenham Magistrates' Court - Works Package 1,CIS-KT21 2AD,0,Programme
Ministry of Justice,HMCTS,12-Jun-13,222001-Maintenance,HZ999-North East Region,TELEREAL TRILLIUM,2484840,"44,108.50",Durham Elvet House reconfiguration of accommodation,LS11 9DX-CAPEX,0,Programme
Ministry of Justice,HMCTS,21-Jun-13,222001-Maintenance,HZ999-North East Region,G4S INTEGRATED SERVICES (UK) LTD,2495875,"48,518.00",Redecoration @Glasgow and Edinburgh Tribunals,CIS-WR12 7LJ,0,Programme
Ministry of Justice,HMCTS,07-Jun-13,222002-Other Property Costs,AG999-HQ - Estates,DEPARTMENT FOR WORK & PENSIONS (DWP),2235,"71,094.37",Quarter 1 Prime Facilities Charges,CF14 3UW,0,Programme
Ministry of Justice,HMCTS,07-Jun-13,222002-Other Property Costs,AG999-HQ - Estates,DEPARTMENT FOR WORK & PENSIONS (DWP),2235,"190,930.68",Quarter 1 Prime Facilities Charges,CF14 3UW,0,Programme
Ministry of Justice,HMCTS,07-Jun-13,222002-Other Property Costs,AG999-HQ - Estates,DEPARTMENT FOR WORK & PENSIONS (DWP),2235,"752,700.19",Quarter 1 Prime Facilities Charges,CF14 3UW,0,Programme
Ministry of Justice,HMCTS,06-Jun-13,222002-Other Property Costs,BZ999-London Region,HMRC,2234,"26,436.36",Property Costs,BN12 4XH,0,Programme
Ministry of Justice,HMCTS,11-Jun-13,222002-Other Property Costs,BZ999-London Region,SANDERSON WEATHERALL,2482200,"34,672.75",Property Costs,LS1 4WG-CHARGE,0,Programme
Ministry of Justice,HMCTS,04-Jun-13,222002-Other Property Costs,BZ999-London Region,DERWENT LONDON,2474641,"87,111.75",Property Costs,W1S 2ER-ROSE AV,0,Programme
Ministry of Justice,HMCTS,04-Jun-13,222002-Other Property Costs,BZ999-London Region,GBR PHOENIX BEARD,2474716,"93,015.75",Property Costs,B3 3WX EID SC,0,Programme
Ministry of Justice,HMCTS,03-Jun-13,222002-Other Property Costs,BZ999-London Region,OFFICE OF FAIR TRADING,2227,"254,165.50",Property Costs,EC4Y 8JX,0,Programme
Ministry of Justice,HMCTS,26-Jun-13,222002-Other Property Costs,CZ999-South East Region,NEOPOST LTD,2500453,"45,980.84",SE Region - Neopost annual maintenance charge 13/14,RM1 2AR-INVOICE,0,Programme
Ministry of Justice,HMCTS,07-Jun-13,222002-Other Property Costs,CZ999-South East Region,HMRC,2238,"67,446.17",Property Costs,BN12 4XH,0,Programme
Ministry of Justice,HMCTS,13-Jun-13,222002-Other Property Costs,CZ999-South East Region,HMRC,2253,"76,906.27",Property Costs,BN12 4XH,0,Programme
Ministry of Justice,HMCTS,07-Jun-13,222002-Other Property Costs,CZ999-South East Region,HMRC,2237,"77,685.12",Property Costs,BN12 4XH,0,Programme
Ministry of Justice,HMCTS,12-Jun-13,222002-Other Property Costs,FZ999-Midlands Region,CUSHMAN & WAKEFIELD LLP,2484044,"49,901.23",Quarterly service charge for Birmingham ASC,B2 2JT-MERCIA,0,Programme
Ministry of Justice,HMCTS,18-Jun-13,222002-Other Property Costs,HZ999-North East Region,LANDA ASSET MANAGEMENT PLC,2489534,"32,320.00",Service charge,W1B 1PN,0,Programme
Ministry of Justice,HMCTS,07-Jun-13,222002-Other Property Costs,SJ999-Scotland,CBRE LTD,2479657,"38,349.50",Property Costs,G2 6UA-CLICOMRE,0,Programme
Ministry of Justice,HMCTS,07-Jun-13,222002-Other Property Costs,SJ999-Scotland,CBRE LTD,2479657,"57,920.75",Property Costs,G2 6UA-CLICOMRE,0,Programme
Ministry of Justice,HMCTS,18-Jun-13,222003-CIS Labour TFM Estates,AG999-HQ - Estates,G4S INTEGRATED SERVICES (UK) LTD,2489357,"37,415.37",Carr Manor - Part of Scope of works following on from quadrinnial report,CIS-WR12 7LJ,0,Programme
Ministry of Justice,HMCTS,25-Jun-13,222003-CIS Labour TFM Estates,BZ999-London Region,MITIE JUSTICE LTD,2498438,"26,680.98",CIS Labour - Inner London Crn Sessions House - MITIE JUSTICE - Provision of two water heaters due to failure - THIS REPLACES PO 20000171855. Works to water heaters following failure on site,CIS-BS16 7FH,0,Programme
Ministry of Justice,HMCTS,18-Jun-13,222003-CIS Labour TFM Estates,BZ999-London Region,MITIE JUSTICE LTD,2489618,"30,502.70","M & E Repair and Maintenance - This work relates to the jobs that are less than 5k in value, undertaken at individual sites, but are chargeable under the Total Facilities Management Contract",CIS-BS16 7FH,0,Programme
Ministry of Justice,HMCTS,25-Jun-13,222003-CIS Labour TFM Estates,BZ999-London Region,MITIE JUSTICE LTD,2498438,"30,847.04",Security,CIS-BS16 7FH,0,Programme
Ministry of Justice,HMCTS,21-Jun-13,222003-CIS Labour TFM Estates,BZ999-London Region,MITIE JUSTICE LTD,2496051,"36,401.57","London Estates - Mitie Justice - Package 8 Works to include van bay door replacement, asbestos removal, install blast heaters etc THIS REPLACES PO 20000170547. Project works ate various sites ",CIS-BS16 7FH,0,Programme
Ministry of Justice,HMCTS,04-Jun-13,222003-CIS Labour TFM Estates,BZ999-London Region,MITIE JUSTICE LTD,2474955,"38,199.31","Internal Repair and Maintenance - This work relates to the jobs that are less than 5k in value, undertaken at individual sites, but are chargeable under the Total Facilities Management Contract",CIS-BS16 7FH,0,Programme
Ministry of Justice,HMCTS,18-Jun-13,222003-CIS Labour TFM Estates,BZ999-London Region,MITIE JUSTICE LTD,2489618,"44,799.04",Internal Repair and Maintenance - This expenditure relates to the monthly planned preventative maintenance that is undertaken at each site across the London Estate,CIS-BS16 7FH,0,Programme
Ministry of Justice,HMCTS,18-Jun-13,222003-CIS Labour TFM Estates,BZ999-London Region,MITIE JUSTICE LTD,2489618,"46,112.50",Waste Disposal,CIS-BS16 7FH,0,Programme
Ministry of Justice,HMCTS,18-Jun-13,222003-CIS Labour TFM Estates,BZ999-London Region,MITIE JUSTICE LTD,2489618,"64,433.24","Internal Repair and Maintenance - This work relates to the jobs that are less than 5k in value, undertaken at individual sites, but are chargeable under the Total Facilities Management Contract",CIS-BS16 7FH,0,Programme
Ministry of Justice,HMCTS,04-Jun-13,222003-CIS Labour TFM Estates,BZ999-London Region,MITIE JUSTICE LTD,2474955,"75,201.17","M & E Repair and Maintenance - This work relates to the jobs that are less than 5k in value, undertaken at individual sites, but are chargeable under the Total Facilities Management Contract",CIS-BS16 7FH,0,Programme
Ministry of Justice,HMCTS,18-Jun-13,222003-CIS Labour TFM Estates,BZ999-London Region,MITIE JUSTICE LTD,2489618,"76,930.72",Management,CIS-BS16 7FH,0,Programme
Ministry of Justice,HMCTS,18-Jun-13,222003-CIS Labour TFM Estates,BZ999-London Region,MITIE JUSTICE LTD,2489618,"247,608.00",M & E Repair and Maintenance - M & E Repair and Maintenance. This expenditure relates to the monthly planned preventative maintenance that is undertaken at each site across the London Estate,CIS-BS16 7FH,0,Programme
Ministry of Justice,HMCTS,18-Jun-13,222003-CIS Labour TFM Estates,BZ999-London Region,MITIE JUSTICE LTD,2489618,"318,665.75",Cleaning,CIS-BS16 7FH,0,Programme
Ministry of Justice,HMCTS,18-Jun-13,222003-CIS Labour TFM Estates,BZ999-London Region,MITIE JUSTICE LTD,2489618,"616,901.77",Security,CIS-BS16 7FH,0,Programme
Ministry of Justice,HMCTS,25-Jun-13,222003-CIS Labour TFM Estates,CZ999-South East Region,MITIE JUSTICE LTD,2498438,"25,378.83",CIS Labour -  Lewes Combined Courts - Mitie Justice Ltd - Replace damaged exterrnal walkway   THIS PO REPLACES 20000168602,CIS-BS16 7FH,0,Programme
Ministry of Justice,HMCTS,25-Jun-13,222003-CIS Labour TFM Estates,CZ999-South East Region,MITIE JUSTICE LTD,2498438,"38,621.72",Management,CIS-BS16 7FH,0,Programme
Ministry of Justice,HMCTS,25-Jun-13,222003-CIS Labour TFM Estates,CZ999-South East Region,MITIE JUSTICE LTD,2498438,"46,329.12",Waste Disposal,CIS-BS16 7FH,0,Programme
Ministry of Justice,HMCTS,25-Jun-13,222003-CIS Labour TFM Estates,CZ999-South East Region,MITIE JUSTICE LTD,2498438,"60,476.17",Security,CIS-BS16 7FH,0,Programme
Ministry of Justice,HMCTS,25-Jun-13,222003-CIS Labour TFM Estates,CZ999-South East Region,MITIE JUSTICE LTD,2498438,"73,446.24",M&E Repair & Maintenance,CIS-BS16 7FH,0,Programme
Ministry of Justice,HMCTS,25-Jun-13,222003-CIS Labour TFM Estates,CZ999-South East Region,MITIE JUSTICE LTD,2498438,"141,772.07","M & E Repair and Maintenance 	",CIS-BS16 7FH,0,Programme
Ministry of Justice,HMCTS,25-Jun-13,222003-CIS Labour TFM Estates,CZ999-South East Region,MITIE JUSTICE LTD,2498438,"148,391.60",Cleaning,CIS-BS16 7FH,0,Programme
Ministry of Justice,HMCTS,25-Jun-13,222003-CIS Labour TFM Estates,CZ999-South East Region,MITIE JUSTICE LTD,2498438,"418,250.90",Security,CIS-BS16 7FH,0,Programme
Ministry of Justice,HMCTS,25-Jun-13,222003-CIS Labour TFM Estates,DZ999-South West Region,MITIE JUSTICE LTD,2498438,"33,901.13","CIS Labour - TFM Works Package B, South West Region - Soft Services (Variable) - Security",CIS-BS16 7FH,0,Programme
Ministry of Justice,HMCTS,05-Jun-13,222003-CIS Labour TFM Estates,DZ999-South West Region,MITIE JUSTICE LTD,2477442,"37,449.04","CIS Labour - TFM Works Package B, South West Region - Hard Services (Fixed) - Management Costs",CIS-BS16 7FH,0,Programme
Ministry of Justice,HMCTS,05-Jun-13,222003-CIS Labour TFM Estates,DZ999-South West Region,MITIE JUSTICE LTD,2477442,"101,847.00","CIS Labour - TFM Works Package B, South West Region - Hard Services (Fixed) - M&E Repair & Maintenance",CIS-BS16 7FH,0,Programme
Ministry of Justice,HMCTS,05-Jun-13,222003-CIS Labour TFM Estates,DZ999-South West Region,MITIE JUSTICE LTD,2477442,"114,814.04","CIS Labour - TFM Works Package B, South West Region - Soft Services (Fixed) - Cleaning",CIS-BS16 7FH,0,Programme
Ministry of Justice,HMCTS,05-Jun-13,222003-CIS Labour TFM Estates,DZ999-South West Region,MITIE JUSTICE LTD,2477442,"221,749.29","CIS Labour - TFM Works Package B, South West Region - Soft Services (Fixed) - Security",CIS-BS16 7FH,0,Programme
Ministry of Justice,HMCTS,25-Jun-13,222003-CIS Labour TFM Estates,EZ999-Wales Region,G4S INTEGRATED SERVICES (UK) LTD,2498268,"51,805.44",CIS Labour - Llandudno Mags - G4S INTEGRATED SERVICES LTD - Decorating,CIS-S81 7QF,0,Programme
Ministry of Justice,HMCTS,26-Jun-13,222003-CIS Labour TFM Estates,EZ999-Wales Region,G4S INTEGRATED SERVICES (UK) LTD,2500318,"66,102.96",CLEANING - WALES,CIS-S81 7QF,0,Programme
Ministry of Justice,HMCTS,26-Jun-13,222003-CIS Labour TFM Estates,EZ999-Wales Region,G4S INTEGRATED SERVICES (UK) LTD,2500318,"151,700.39",SECURITY - WALES,CIS-S81 7QF,0,Programme
Ministry of Justice,HMCTS,26-Jun-13,222003-CIS Labour TFM Estates,FZ999-Midlands Region,G4S INTEGRATED SERVICES (UK) LTD,2500319,"29,892.21",Internal Repair and Maintenance,CIS-WR12 7LJ,0,Programme
Ministry of Justice,HMCTS,25-Jun-13,222003-CIS Labour TFM Estates,FZ999-Midlands Region,G4S INTEGRATED SERVICES (UK) LTD,2498269,"31,852.25",CIS Labour - Derby Combined - G4S Integrated Services - Counter alterations,CIS-WR12 7LJ,0,Programme
Ministry of Justice,HMCTS,26-Jun-13,222003-CIS Labour TFM Estates,FZ999-Midlands Region,G4S INTEGRATED SERVICES (UK) LTD,2500319,"37,389.77",Management Costs etc,CIS-WR12 7LJ,0,Programme
Ministry of Justice,HMCTS,25-Jun-13,222003-CIS Labour TFM Estates,FZ999-Midlands Region,G4S INTEGRATED SERVICES (UK) LTD,2498269,"42,400.00",Derby Combined - G4S - Hearing Rooms,CIS-WR12 7LJ,0,Programme
Ministry of Justice,HMCTS,26-Jun-13,222003-CIS Labour TFM Estates,FZ999-Midlands Region,G4S INTEGRATED SERVICES (UK) LTD,2500319,"45,385.82",Security,CIS-WR12 7LJ,0,Programme
Ministry of Justice,HMCTS,18-Jun-13,222003-CIS Labour TFM Estates,FZ999-Midlands Region,G4S INTEGRATED SERVICES (UK) LTD,2489357,"46,000.00",CIS Labour - Nottingham Magistrates' Court-G4S Integrated Services -Decommissioning of kitchen area,CIS-WR12 7LJ,0,Programme
Ministry of Justice,HMCTS,18-Jun-13,222003-CIS Labour TFM Estates,FZ999-Midlands Region,G4S INTEGRATED SERVICES (UK) LTD,2489357,"84,000.00",CIS Labour - Derby Combined Court - G4S Integrated Services - Construction of ground floor hearing room,CIS-WR12 7LJ,0,Programme
Ministry of Justice,HMCTS,26-Jun-13,222003-CIS Labour TFM Estates,FZ999-Midlands Region,G4S INTEGRATED SERVICES (UK) LTD,2500319,"88,761.67",M&E Repair & Maintenance,CIS-WR12 7LJ,0,Programme
Ministry of Justice,HMCTS,26-Jun-13,222003-CIS Labour TFM Estates,FZ999-Midlands Region,G4S INTEGRATED SERVICES (UK) LTD,2500319,"108,932.88",Management Costs,CIS-WR12 7LJ,0,Programme
Ministry of Justice,HMCTS,26-Jun-13,222003-CIS Labour TFM Estates,FZ999-Midlands Region,G4S INTEGRATED SERVICES (UK) LTD,2500319,"153,234.88",M&E Repair & Maintenance,CIS-WR12 7LJ,0,Programme
Ministry of Justice,HMCTS,26-Jun-13,222003-CIS Labour TFM Estates,FZ999-Midlands Region,G4S INTEGRATED SERVICES (UK) LTD,2500319,"195,190.71",Cleaning,CIS-WR12 7LJ,0,Programme
Ministry of Justice,HMCTS,26-Jun-13,222003-CIS Labour TFM Estates,FZ999-Midlands Region,G4S INTEGRATED SERVICES (UK) LTD,2500319,"361,292.21",Security,CIS-WR12 7LJ,0,Programme
Ministry of Justice,HMCTS,26-Jun-13,222003-CIS Labour TFM Estates,GZ999-North West Region,G4S INTEGRATED SERVICES (UK) LTD,2500319,"29,139.50",TFM - NW Region - Contractual soft services: Apr 13 - Mar 14. Contract no. 0073-4-Works/FM-SW-RFI refers: Management costs,CIS-WR12 7LJ,0,Programme
Ministry of Justice,HMCTS,26-Jun-13,222003-CIS Labour TFM Estates,GZ999-North West Region,G4S INTEGRATED SERVICES (UK) LTD,2500319,"108,166.45",TFM - NW Region - Managed and contractual hard services: Apr 13 - Mar 14. Contract no. 0073-4-Works/FM-SW-RFI refers: Management costs,CIS-WR12 7LJ,0,Programme
Ministry of Justice,HMCTS,26-Jun-13,222003-CIS Labour TFM Estates,GZ999-North West Region,G4S INTEGRATED SERVICES (UK) LTD,2500319,"112,295.55",TFM - NW Region - Ad hoc hard services: Apr 13 - Mar 14,CIS-WR12 7LJ,0,Programme
Ministry of Justice,HMCTS,26-Jun-13,222003-CIS Labour TFM Estates,GZ999-North West Region,G4S INTEGRATED SERVICES (UK) LTD,2500319,"184,954.05",TFM - NW Region - Managed and contractual hard services: Apr 13 - Mar 14. Contract no. 0073-4-Works/FM-SW-RFI refers: Internal and M&E repair and maintenance,CIS-WR12 7LJ,0,Programme
Ministry of Justice,HMCTS,26-Jun-13,222003-CIS Labour TFM Estates,GZ999-North West Region,G4S INTEGRATED SERVICES (UK) LTD,2500319,"187,393.37",TFM - NW Region - Contractual soft services: Apr 13 - Mar 14. Contract no. 0073-4-Works/FM-SW-RFI refers: Cleaning,CIS-WR12 7LJ,0,Programme
Ministry of Justice,HMCTS,26-Jun-13,222003-CIS Labour TFM Estates,GZ999-North West Region,G4S INTEGRATED SERVICES (UK) LTD,2500319,"288,871.96",TFM - NW Region - Contractual soft services: Apr 13 - Mar 14. Contract no. 0073-4-Works/FM-SW-RFI refers: Security,CIS-WR12 7LJ,0,Programme
Ministry of Justice,HMCTS,26-Jun-13,222003-CIS Labour TFM Estates,HZ999-North East Region,G4S INTEGRATED SERVICES (UK) LTD,2500319,"37,849.29",Consolidated North East - TFM Soft Variable 13/14,CIS-WR12 7LJ,0,Programme
Ministry of Justice,HMCTS,25-Jun-13,222003-CIS Labour TFM Estates,HZ999-North East Region,G4S INTEGRATED SERVICES (UK) LTD,2498269,"42,570.71","""This PO replaces PO 20000166346 which is now closed"". Scarborough Mags - Works & decoration to First Floor Corridor, Ushers Room, Court 4, Court 3, Magistrates Room & Public Waiting Area as per quote and including Security.",CIS-WR12 7LJ,B716,Programme
Ministry of Justice,HMCTS,26-Jun-13,222003-CIS Labour TFM Estates,HZ999-North East Region,G4S INTEGRATED SERVICES (UK) LTD,2500319,"111,139.55",Consolidated North East - TFM Hard Variable 13/14,CIS-WR12 7LJ,0,Programme
Ministry of Justice,HMCTS,26-Jun-13,222003-CIS Labour TFM Estates,HZ999-North East Region,G4S INTEGRATED SERVICES (UK) LTD,2500319,"288,418.63",Consolidated North East - TFM Hard Fixed Cost 13/14,CIS-WR12 7LJ,0,Programme
Ministry of Justice,HMCTS,26-Jun-13,222003-CIS Labour TFM Estates,HZ999-North East Region,G4S INTEGRATED SERVICES (UK) LTD,2500319,"531,731.06",Consolidated North East - TFM Soft Fixed 13/14,CIS-WR12 7LJ,0,Programme
Ministry of Justice,HMCTS,03-Jun-13,223000-Other Expenditure,HZ999-North East Region,NATIONAL OFFENDERS MANAGEMENT SERVICE (NOMS),2226,"25,311.12",HMCTS National Furniture invoice,NP20 9BB,0,Programme
Ministry of Justice,HMCTS,26-Jun-13,223000-Other Expenditure,HZ999-North East Region,GODFREY SYRETT LTD,2500330,"33,154.20","Leeds SSCS (York House) - Supply & install of Doublestore Rotary Storage Units at Leeds SSCS Tribunals, York House, Leeds, as per quote supplied by Chris Warriner, reference G4S005",NE12 6DY,0,Programme
Ministry of Justice,HMCTS,18-Jun-13,223000-Other Expenditure,SK999-Enforcement,MARSTON GROUP,2489579,"-239,169.24",Enforcement Collection-Income & Expenditure entered into accounting books for VAT purposes only. This cannot be done through the PO system,CM16 5DQ,0,Programme
Ministry of Justice,HMCTS,18-Jun-13,223000-Other Expenditure,SK999-Enforcement,MARSTON GROUP,2489579,"239,169.24",Enforcement Collection-Income & Expenditure entered into accounting books for VAT purposes only. This cannot be done through the PO system,CM16 5DQ,0,Programme
Ministry of Justice,HMCTS,11-Jun-13,223001-Printing Postage and Office expenditure,BZ999-London Region,XEROX (UK) LTD,2482402,"33,918.49",London Region Consolidated - Copy Charges - Xerox - 2013/14,BN13 1QG,0,Programme
Ministry of Justice,HMCTS,14-Jun-13,223001-Printing Postage and Office expenditure,GZ999-North West Region,ROYAL MAIL GROUP PLC,2487145,"113,984.22",NW Region - Royal Mail variable charges - Apr 13 - Mar 14 - Account 166288000,PE4 5BR,0,Programme
Ministry of Justice,HMCTS,21-Jun-13,223001-Printing Postage and Office expenditure,HZ999-North East Region,NEOPOST LTD,2496073,"34,194.39",NE consolidated maintenance ,RM1 2AR-INVOICE,0,Programme
Ministry of Justice,HMCTS,27-Jun-13,223001-Printing Postage and Office expenditure,HZ999-North East Region,NATIONAL OFFENDERS MANAGEMENT SERVICE (NOMS),2282,"90,053.92",HMCTS National Print invoice,NP20 9BB,0,Programme
Ministry of Justice,HMCTS,28-Jun-13,223001-Printing Postage and Office expenditure,HZ999-North East Region,ROYAL MAIL GROUP PLC,2503928,"128,062.99",North East Consol Account - Variable service contract continuation - Royal Mail - 13/14,PE4 5BR,0,Programme
Ministry of Justice,HMCTS,28-Jun-13,223001-Printing Postage and Office expenditure,HZ999-North East Region,ROYAL MAIL GROUP PLC,2503928,"129,589.60",North East Consol Account - Variable service contract continuation - Royal Mail - 13/14,PE4 5BR,0,Programme
Ministry of Justice,HMCTS,18-Jun-13,226000-Court Costs,BZ999-London Region,EUREST SERVICES,2489320,"46,777.36",London Region - Eurest Smart Cards - Consolidated Juror Smartcards - 2013/14,B45 9PZ,0,Programme
Ministry of Justice,HMCTS,05-Jun-13,226000-Court Costs,FZ999-Midlands Region,EUREST SERVICES,2477333,"25,705.00",Midlands Region Catering Jurors Subsidy 11/12 - Eurest Services,B45 9PZ,0,Programme
Ministry of Justice,HMCTS,11-Jun-13,261000-Fuel and Utilities,BZ999-London Region,THAMES WATER UTILITIES LTD,2482294,"31,928.57",HMCS London Region Consolidated - Water Costs - Thames Water 2013/14,SN38 3TW-CONS,0,Programme
Ministry of Justice,HMCTS,19-Jun-13,261000-Fuel and Utilities,BZ999-London Region,EDF ENERGY LTD,2492039,"42,326.83",EDF Energy Ltd - Electricity Costs for RCJ. Strand. Period April 2013 to March 2014. (Account No. 13592343). Business Entity IH701. NAC 222142.,PL3 5XQ,0,Programme
Ministry of Justice,HMCTS,18-Jun-13,261000-Fuel and Utilities,BZ999-London Region,CORONA ENERGY,2489234,"85,840.61",HMCS London Region - Corona - Consolidated Gas Account 2013/14,NW4 3RJ-RET 4,0,Programme
Ministry of Justice,HMCTS,19-Jun-13,261000-Fuel and Utilities,CZ999-South East Region,BRITISH GAS BUSINESS,2491981,"39,728.96",SE Region Consolidated - British Gas - Electricity supply - 2013/14,OX4 2JY,0,Programme
Ministry of Justice,HMCTS,07-Jun-13,261000-Fuel and Utilities,CZ999-South East Region,BRITISH GAS BUSINESS,2479633,"43,840.09",SE Region Consolidated - British Gas - Electricity supply - 2013/14 ,OX4 2JY,0,Programme
Ministry of Justice,HMCTS,18-Jun-13,261000-Fuel and Utilities,CZ999-South East Region,CORONA ENERGY,2489234,"56,045.26",SE Region Consolidated - Corona - Gas charges 2013/14,NW4 3RJ-RET 4,0,Programme
Ministry of Justice,HMCTS,21-Jun-13,261000-Fuel and Utilities,DZ999-South West Region,BRITISH GAS BUSINESS,2495732,"26,221.58",South West Regionas Office (DA170) - British Gas - Account no.: 3053490 - Electricity Consumption costs (various sites) 13/14,OX4 2JY,0,Programme
Ministry of Justice,HMCTS,07-Jun-13,261000-Fuel and Utilities,DZ999-South West Region,BRITISH GAS BUSINESS,2479633,"31,721.45",South West Regionas Office (DA170) - British Gas - Account no.: 3053490 - Electricity Consumption costs (various sites) 12/13,OX4 2JY,0,Programme
Ministry of Justice,HMCTS,14-Jun-13,261000-Fuel and Utilities,DZ999-South West Region,CORONA ENERGY,2486640,"35,828.96",SW Finance Office (DA170) - Corona Energy - GAS 222143 - Acct no.:20301400 - Monthly Consolidated Bill for various sites in the SW Region.,NW4 3RJ-RET 2,0,Programme
Ministry of Justice,HMCTS,14-Jun-13,261000-Fuel and Utilities,FZ999-Midlands Region,CORONA ENERGY,2486641,"56,797.91",Corona Energy gas HMCTS Midlands 2013/14.,NW4 3RJ-RET 4,0,Programme
Ministry of Justice,HMCTS,21-Jun-13,261000-Fuel and Utilities,GZ999-North West Region,EDF ENERGY LTD,2495842,"25,610.40",Manchester CJC - Electricity - EDF - 13/14,PL3 5XQ,0,Programme
Ministry of Justice,HMCTS,11-Jun-13,261000-Fuel and Utilities,GZ999-North West Region,BRITISH GAS BUSINESS,2481160,"29,989.25",NW Region consolidated A/c - Electricity - British Gas - April 13 - October 14,OX4 2JY,0,Programme
Ministry of Justice,HMCTS,28-Jun-13,261000-Fuel and Utilities,GZ999-North West Region,BRITISH GAS BUSINESS,2503291,"35,392.72",NW Region consolidated A/c - Electricity - British Gas - April 13 - October 14,OX4 2JY,0,Programme
Ministry of Justice,HMCTS,07-Jun-13,261000-Fuel and Utilities,HZ999-North East Region,BRITISH GAS BUSINESS,2479633,"49,256.63",North East Consol Account - Electricity - British Gas 11-12 contract continuation replacing PO 20000128709,OX4 2JY,0,Programme
Ministry of Justice,HMCTS,18-Jun-13,262000-SCA Costs,AP999-HQ - Strategy & Change,LIBERATA UK LTD,2489548,"86,630.00",FMSO 275 PentiP- FPO Business Processing,NP10 8BA,B719,Programme
Ministry of Justice,HMCTS,07-Jun-13,262000-SCA Costs,BZ999-London Region,IRON MOUNTAIN UK LTD,2479806,"190,410.30",Iron Mountain Storage Facility for Probate Services,EH54 7DF,0,Programme
Ministry of Justice,HMCTS,11-Jun-13,262000-SCA Costs,CZ999-South East Region,MODERN COURTS (EAST ANGLIA) LTD,2481559,"61,936.50",Ipswich & Cambridge - Modern Courts (East Anglia) Ltd (BR8 7AG) - Unitary Charges for East Anglia PFI - Monthly,BR8 7AG,0,Programme
Ministry of Justice,HMCTS,11-Jun-13,262000-SCA Costs,CZ999-South East Region,MODERN COURTS (EAST ANGLIA) LTD,2481559,"379,117.12",Ipswich & Cambridge - Modern Courts (East Anglia) Ltd (BR8 7AG) - Unitary Charges for East Anglia PFI - Monthly,BR8 7AG,0,Programme
Ministry of Justice,HMCTS,11-Jun-13,262000-SCA Costs,DZ999-South West Region,ENTERPRISE CIVIC BUILDINGS LIMITED,2481312,"276,063.52",Exeter - Enterprise Civic Buildings  Ltd (W1S 1TD) - Unitary Charges for Exeter PFI - Monthly,W1S 1TD,0,Programme
Ministry of Justice,HMCTS,28-Jun-13,262000-SCA Costs,DZ999-South West Region,SERVICES SUPPORT (AVON & SOMERSET) LTD,2503947,"692,209.32",Worle Area Office / Bristol - Services Support (Avon & Somerset) Ltd - Unitary Charges for Worle & Bristol PFI - Monthly,SW1E 5LB,0,Programme
Ministry of Justice,HMCTS,25-Jun-13,262000-SCA Costs,FZ999-Midlands Region,DERBYSHIRE COURTS LTD,2498207,"472,759.02",Derby & Chesterfield - Derbyshire Courts Ltd - (SE1 9RD) - Unitary Charges for Derbyshire PFI - Monthly,SE1 9RA,0,Programme
Ministry of Justice,HMCTS,11-Jun-13,262000-SCA Costs,FZ999-Midlands Region,H & W COURTS LIMITED,2481374,"500,768.34",Hereford & Worcester - H & W Courts Ltd - Unitary Charges for Hereford &  Worcester PFI - Monthly,SE1 9RA,0,Programme
Ministry of Justice,HMCTS,25-Jun-13,262000-SCA Costs,FZ999-Midlands Region,H & W COURTS LIMITED,2498299,"501,381.06",Hereford & Worcester - H & W Courts Ltd - Unitary Charges for Hereford &  Worcester PFI - Monthly,SE1 9RA,0,Programme
Ministry of Justice,HMCTS,21-Jun-13,262000-SCA Costs,GZ999-North West Region,UK COURT SERVICES LTD,2496457,"30,231.18",Manchester - UK Court Services LTD (WR12 7LJ) - Unitary Charges for Manchester PFI - Monthly,WR12 7LJ,0,Programme
Ministry of Justice,HMCTS,11-Jun-13,262000-SCA Costs,GZ999-North West Region,UK COURT SERVICES LTD,2482322,"507,541.99",Manchester - UK Court Services LTD (WR12 7LJ) - Unitary Charges for Manchester PFI - Monthly,WR12 7LJ,0,Programme
Ministry of Justice,HMCTS,11-Jun-13,262000-SCA Costs,HZ999-North East Region,MODERN COURTS (HUMBERSIDE) LTD,2481560,"47,275.28","Beverley, Hull & Bridlington - Modern Courts (Humberside) Ltd (BR8 7AG) - Unitary Charges for Humberside PFI - Monthly",BR8 7AG,0,Programme
Ministry of Justice,HMCTS,21-Jun-13,262000-SCA Costs,HZ999-North East Region,PALECASTLE LTD,2496306,"105,221.45",Sheffield - Palecastle Ltd  (WA3 6AE) - Unitary Charges for Sheffield PFI - Monthly,WA3 6AE,0,Programme
Ministry of Justice,HMCTS,11-Jun-13,262000-SCA Costs,HZ999-North East Region,MODERN COURTS (HUMBERSIDE) LTD,2481560,"318,544.51","Beverley, Hull & Bridlington - Modern Courts (Humberside) Ltd (BR8 7AG) - Unitary Charges for Humberside PFI - Monthly",BR8 7AG,0,Programme
Ministry of Justice,HMCTS,05-Jun-13,265000-IT & Telecommunications,AP999-HQ - Strategy & Change,ATOS IT SERVICES UK LTD,2477255,"30,399.00","HMCTS HQ - Direct Lodgement to SSCS - Phoenix House, Bradford Relocation and Procurement of IT and Telephony Equipment - CCN A-R-03687-03 - Atos						",WV10 6UH,0,Programme
Ministry of Justice,HMCTS,05-Jun-13,265000-IT & Telecommunications,AP999-HQ - Strategy & Change,STERIA LTD,2478238,"130,296.00",Fixed price proposal plus 5k max travel expenses for delivery & support of GAPS2 changes for Direct Lodgement agreed in accordance with the outline business case signed off by the HMCTS Change and Modernisation board on the 18/10/2012.,M14 0WN,0,Programme
Ministry of Justice,HMCTS,26-Jun-13,265000-IT & Telecommunications,AQ999-HQ - Finance & Governance,CGI IT UK LTD,2500255,"29,932.00",CCN L-R-3622-01 IFAS Stability Release v0.8 Release to Live,CF31 9AP,0,Programme
Ministry of Justice,HMCTS,26-Jun-13,265000-IT & Telecommunications,AQ999-HQ - Finance & Governance,ATOS IT SERVICES UK LTD,2500218,"201,838.28","Backdated costs from Atos across various CCNs						",WV10 6UH,0,Programme
Ministry of Justice,HMCTS,12-Jun-13,265000-IT & Telecommunications,AT899-HQ - ICT,CGI IT UK LTD,2484019,"34,208.00","L-R-3699-01 Libra App Changes July 13 M3 - Start of System Integration Testing						 						",CF31 9AP,0,Admin
Ministry of Justice,HMCTS,21-Jun-13,265000-IT & Telecommunications,AT899-HQ - ICT,CGI IT UK LTD,2495771,"50,786.00",L-R-3319-02 On boarding RPTS to DISC,CF31 9AP,E018,Admin
Ministry of Justice,HMCTS,18-Jun-13,265000-IT & Telecommunications,AT899-HQ - ICT,CGI IT UK LTD,2489199,"56,079.00","Changes to ARIA Application & IAC Fees Web Interface - Milestone 2-Completion of Development						",CF31 9AP,0,Admin
Ministry of Justice,HMCTS,21-Jun-13,265000-IT & Telecommunications,AT899-HQ - ICT,CGI IT UK LTD,2495771,"198,587.00","L-R-3635-01 Libra Audit & Logging M1 Performance Test Results 2	",CF31 9AP,0,Admin
Ministry of Justice,HMCTS,11-Jun-13,265000-IT & Telecommunications,BZ999-London Region,BT TELECOMMUNICATIONS PLC,2481173,"36,937.41",London Region Consolidated - BT One Bill - 2013/14 - Replacement for PO 20000141984,DH98 1BT,0,Programme,
Ministry of Justice,HMCTS,18-Jun-13,265000-IT & Telecommunications,CZ999-South East Region,CABLE & WIRELESS WORLDWIDE,2489189,"34,710.15",Chelmsford Mags - Cable & Wireless - SUPPLY AND INSTALLATION OF COMPLETE VIDEO LINK SOLUTION  (NEW BUILD) INCLUDING RELOCATION OF EQUIPMENT AND CIRCUIT FROM WITHAM AND HARWICH MAGISTRATES COURT,MK3 5JP,0,Programme,
Ministry of Justice,HMCTS,07-Jun-13,265000-IT & Telecommunications,DZ999-South West Region,DEPARTMENT FOR WORK & PENSIONS (DWP),2236,"35,877.08",Tribunal National Consolidated Billing - Department for Work & Pensions - Charges for Video Conference & ISDN Telephone Lines - Acct no.:76967,CF14 3UW,0,Programme,
Ministry of Justice,HMCTS,25-Jun-13,532000-Tangible GBV - Additions,AG999-HQ - Estates,MITIE JUSTICE LTD,2498438,"61,967.32","Harpenden Judges' Lodgings - Mitie Justice Ltd - Complete re-furb of Judges' Lodgings to include new heating system, new boilers, decorations & repairs to out buildings. THIS REPLACES PO 20000170998",CIS-BS16 7FH,0,Programme,
Ministry of Justice,HMCTS,25-Jun-13,532000-Tangible GBV - Additions,AG999-HQ - Estates,MITIE JUSTICE LTD,2498438,"172,441.90","Harpenden Judges' Lodgings - Mitie Justice Ltd - Complete re-furb of Judges' Lodgings to include new heating system, new boilers, decorations & repairs to out buildings. THIS REPLACES PO 20000170998",CIS-BS16 7FH,0,Programme,G4S - Maintenance contract
Ministry of Justice,HMCTS,04-Jun-13,532000-Tangible GBV - Additions,BZ999-London Region,ATKINS,2474455,"25,659.31",London Estates - ATKINS - Project management fees for Capital Works 2012-13 . THIS PO REP[LACES 20000164418,WR5 1TX,0,Programme,
Ministry of Justice,HMCTS,25-Jun-13,532000-Tangible GBV - Additions,BZ999-London Region,MITIE JUSTICE LTD,2498438,"56,732.46",CIS Labour - West London MC - MITIE JUSTICE -Fire Alarm Replacement. Replaces PO 20000170433,CIS-BS16 7FH,0,Programme,HQ Project - New Magistrates Court at Newport
Ministry of Justice,HMCTS,12-Jun-13,532000-Tangible GBV - Additions,BZ999-London Region,CITY OF LONDON,2484022,"85,691.82",Security Installation,EC2P 2EJ,0,Programme,HQ Project - New Magistrates Court at Newport
Ministry of Justice,HMCTS,26-Jun-13,532000-Tangible GBV - Additions,BZ999-London Region,MITIE JUSTICE LTD,2500442,"121,566.74",CIS Labour - Isleworth Crown - MITIE JUSTICE - Custody suite roof renewal  THIS PO REPLACES PO 20000170428,CIS-BS16 7FH,0,Programme,Strategic Alliance capital projects - Kier Construction
Ministry of Justice,HMCTS,28-Jun-13,532000-Tangible GBV - Additions,CZ999-South East Region,GALLIFORD TRY CONSTRUCTION LTD CENTRAL,2503452,"26,244.34",CIS Labour - Chelmsford & Colchester Project - Galliford Try Construction - Construction Works REPLACES ORDER 20000155947,CIS-LE10 3JF,F081,Programme,
Ministry of Justice,HMCTS,14-Jun-13,532000-Tangible GBV - Additions,CZ999-South East Region,VINCI CONSTRUCTION UK LTD,2487243,"45,569.19",CIS Labour - Hastings Law Courts - Vinci Construction UK Ltd - alterations to holding cells THIS REPLACES PO 20000170383,CIS-WD24 4WW,0,Programme,
Ministry of Justice,HMCTS,04-Jun-13,532000-Tangible GBV - Additions,CZ999-South East Region,PENTACO CONSTRUCTION LIMITED,2475218,"48,381.70",St Albans Crown - Pentaco Construction Ltd - replace existing fire alarm and affray alarm systems on site - this replaces PO 20000170549,NR6 6EZ,0,Programme,
Ministry of Justice,HMCTS,28-Jun-13,532000-Tangible GBV - Additions,CZ999-South East Region,GALLIFORD TRY CONSTRUCTION LTD CENTRAL,2503452,"58,646.30",CIS Labour - Chelmsford & Colchester Project - Galliford Try Construction - Construction Works REPLACES ORDER 20000155947,CIS-LE10 3JF,F081,Programme,
Ministry of Justice,HMCTS,11-Jun-13,532000-Tangible GBV - Additions,CZ999-South East Region,VINCI CONSTRUCTION UK LTD,2482333,"217,008.87",Hastings Law Courts - Vinci Construction UK Ltd - Replace single glazed windows with energy efficient double glazing to L2 standard,CIS-WD24 4WW,0,Programme,
Ministry of Justice,HMCTS,18-Jun-13,532000-Tangible GBV - Additions,CZ999-South East Region,LEND LEASE CONSTRUCTION (EMEA) LTD,2489543,"529,259.00",CIS Labour - High Wycombe Magistrates' - Construction works relating to the replacement of expired plant and equipment. THIS REPLACES PO 20000169359.,CIS-HA2 0EE,0,Programme,
Ministry of Justice,HMCTS,04-Jun-13,532000-Tangible GBV - Additions,DZ999-South West Region,LEND LEASE CONSTRUCTION (EMEA) LTD,2474881,"53,463.00",CIS labour: capital works at Portsmouth Combined Court,CIS-HA2 0EE,0,Programme,
Ministry of Justice,HMCTS,04-Jun-13,532000-Tangible GBV - Additions,DZ999-South West Region,INTERSERVE CONSTRUCTION LTD,2474814,"71,781.02",CIS Labour - Southampton MC - Interserve Construction Ltd - Window Replacement and Remedials - This PO replaces 20000163831,CIS-B23 7RZ,0,Programme
Ministry of Justice,HMCTS,07-Jun-13,532000-Tangible GBV - Additions,DZ999-South West Region,ISG CONSTRUCTION LTD,2479807,"72,345.15",CIS labour - construction works at Poole Magistrates' Court.,CIS-BD19 6BW,0,Programme
Ministry of Justice,HMCTS,21-Jun-13,532000-Tangible GBV - Additions,DZ999-South West Region,ISG CONSTRUCTION LTD,2495951,"171,000.00",CIS labour - construction works at Poole Magistrates' Court.,CIS-BD19 6BW,0,Programme
Ministry of Justice,HMCTS,07-Jun-13,532000-Tangible GBV - Additions,EZ999-Wales Region,WATES CONSTRUCTION LTD,2480119,"249,948.00",CIS Labour - Newport Magistrates Court -Wates Construction Ltd - Enabling works / construction - This PO replaces 20000165583,CIS-KT22 7SW,F090,Programme
Ministry of Justice,HMCTS,11-Jun-13,532000-Tangible GBV - Additions,EZ999-Wales Region,WATES CONSTRUCTION LTD,2482348,"254,657.00",CIS Labour - Newport Magistrates Court -Wates Construction Ltd - Enabling works / construction - This PO replaces 20000165583,CIS-KT22 7SW,F090,Programme
Ministry of Justice,HMCTS,18-Jun-13,532000-Tangible GBV - Additions,EZ999-Wales Region,KIER CONSTRUCTION,2489516,"318,783.00","CIS Labour - Various Strategic Alliance Projects - 349/2013/2014 -Building works, preliminaries, OH&P and contingency - KIER CONSTRUCTION - HMCTS WALES  		",CIS-ME20 6XS,0,Programme
Ministry of Justice,HMCTS,12-Jun-13,532000-Tangible GBV - Additions,FZ999-Midlands Region,G4S INTEGRATED SERVICES (UK) LTD,2484085,"55,783.00",Platform lift installation works at Shrewsbury MC,CIS-WR12 7LJ,0,Programme
Ministry of Justice,HMCTS,12-Jun-13,532000-Tangible GBV - Additions,FZ999-Midlands Region,SEVERN TRENT WATER LTD,2484819,"223,000.00",Wolverhampton,CV3 9FL,F086,Programme
Ministry of Justice,HMCTS,25-Jun-13,532000-Tangible GBV - Additions,GZ999-North West Region,G4S INTEGRATED SERVICES (UK) LTD,2498269,"86,503.97",Chiller repairs as per task reference TO-NW-JAN13-770,CIS-WR12 7LJ,0,Programme
Ministry of Justice,HMCTS,12-Jun-13,532000-Tangible GBV - Additions,HZ999-North East Region,SCHINDLER LTD,2484816,"28,457.77",Modernisation to lift Newcastle Combined Court,CIS-TW16 6QT,0,Programme
Ministry of Justice,HMCTS,12-Jun-13,532000-Tangible GBV - Additions,HZ999-North East Region,SCHINDLER LTD,2484816,"32,282.71",Modernisation to lift Newcastle Combined Court,CIS-TW16 6QT,0,Programme
Ministry of Justice,HMCTS,12-Jun-13,532000-Tangible GBV - Additions,HZ999-North East Region,SCHINDLER LTD,2484816,"32,282.71",Modernisation to lift Newcastle Combined Court,CIS-TW16 6QT,0,Programme
Ministry of Justice,HMCTS,21-Jun-13,532000-Tangible GBV - Additions,HZ999-North East Region,ISG CONSTRUCTION LTD,2495951,"78,254.24",Phoenix House - Phase 2 capital works to 3rd floor refurb includes work to ceilings/ducts and staff room- West wing,CIS-BD19 6BW,0,Programme
Ministry of Justice,HMCTS,25-Jun-13,610300-Debtors < 1 Year - Deposits & Advances,GZ999-North West Region,NEOPOST LTD,2498467,"119,329.00","weekly franking machine re-credits for HMCTS, MOJ and LAA",RM1 2AR-NIPA,0,Programme
Ministry of Justice,HMCTS,05-Jun-13,610300-Debtors < 1 Year - Deposits & Advances,GZ999-North West Region,NEOPOST LTD,2477456,"121,273.00","weekly franking machine re-credits for HMCTS, MOJ and LAA",RM1 2AR-NIPA,0,Programme
Ministry of Justice,HMCTS,14-Jun-13,610300-Debtors < 1 Year - Deposits & Advances,GZ999-North West Region,NEOPOST LTD,2486919,"148,095.00","weekly franking machine re-credits for HMCTS, MOJ and LAA",RM1 2AR-NIPA,0,Programme
Ministry of Justice,HMCTS,21-Jun-13,610400-Debtors <1 year - Prepayments & Accrued Income,BZ999-London Region,LONDON BOROUGH OF BARNET,2494525,"25,532.00",Rates Prepayments,RATES,0,Programme
Ministry of Justice,HMCTS,04-Jun-13,610400-Debtors <1 year - Prepayments & Accrued Income,BZ999-London Region,EDDISONS,2474669,"29,717.14",Rent Prepayments,WC2H 0AU-RENT,0,Programme
Ministry of Justice,HMCTS,21-Jun-13,610400-Debtors <1 year - Prepayments & Accrued Income,BZ999-London Region,LONDON BOROUGH OF CROYDON,2494530,"32,651.50",Rates Prepayments,RATES,0,Programme
Ministry of Justice,HMCTS,21-Jun-13,610400-Debtors <1 year - Prepayments & Accrued Income,BZ999-London Region,LONDON BOROUGH OF BROMLEY,2494528,"32,897.00",Rates Prepayments,RATES,0,Programme
Ministry of Justice,HMCTS,21-Jun-13,610400-Debtors <1 year - Prepayments & Accrued Income,BZ999-London Region,LONDON BOROUGH OF SOUTHWARK,2494546,"34,124.50",Rates Prepayments,RATES,0,Programme
Ministry of Justice,HMCTS,21-Jun-13,610400-Debtors <1 year - Prepayments & Accrued Income,BZ999-London Region,LONDON BOROUGH OF NEWHAM,2494543,"34,370.00",Rates Prepayments,RATES,0,Programme
Ministry of Justice,HMCTS,21-Jun-13,610400-Debtors <1 year - Prepayments & Accrued Income,BZ999-London Region,CITY OF WESTMINSTER,2494460,"35,843.00",Rates Prepayments,RATES,0,Programme
Ministry of Justice,HMCTS,21-Jun-13,610400-Debtors <1 year - Prepayments & Accrued Income,BZ999-London Region,LONDON BOROUGH OF BRENT,2494527,"38,789.00",Rates Prepayments,RATES,0,Programme
Ministry of Justice,HMCTS,21-Jun-13,610400-Debtors <1 year - Prepayments & Accrued Income,BZ999-London Region,LONDON BOROUGH OF HAMMERSMITH & FULHAM,2494534,"40,016.50",Rates Prepayments,RATES,0,Programme
Ministry of Justice,HMCTS,21-Jun-13,610400-Debtors <1 year - Prepayments & Accrued Income,BZ999-London Region,CITY OF WESTMINSTER,2494460,"40,753.00",Rates Prepayments,RATES,0,Programme
Ministry of Justice,HMCTS,04-Jun-13,610400-Debtors <1 year - Prepayments & Accrued Income,BZ999-London Region,EDDISONS,2474669,"45,000.00",Rent Prepayments,WC2H 0AU-RENT,0,Programme
Ministry of Justice,HMCTS,21-Jun-13,610400-Debtors <1 year - Prepayments & Accrued Income,BZ999-London Region,LONDON BOROUGH OF TOWER HAMLETS,2494547,"45,417.50",Rates Prepayments,RATES,0,Programme
Ministry of Justice,HMCTS,21-Jun-13,610400-Debtors <1 year - Prepayments & Accrued Income,BZ999-London Region,LONDON BOROUGH OF SOUTHWARK,2494546,"47,627.00",Rates Prepayments,RATES,0,Programme
Ministry of Justice,HMCTS,21-Jun-13,610400-Debtors <1 year - Prepayments & Accrued Income,BZ999-London Region,LONDON BOROUGH OF REDBRIDGE,2494544,"48,363.50",Rates Prepayments,RATES,0,Programme
Ministry of Justice,HMCTS,21-Jun-13,610400-Debtors <1 year - Prepayments & Accrued Income,BZ999-London Region,LONDON BOROUGH OF HARROW,2494536,"50,327.50",Rates Prepayments,RATES,0,Programme
Ministry of Justice,HMCTS,21-Jun-13,610400-Debtors <1 year - Prepayments & Accrued Income,BZ999-London Region,LONDON BOROUGH OF ISLINGTON,2494540,"53,519.00",Rates Prepayments,RATES,0,Programme
Ministry of Justice,HMCTS,21-Jun-13,610400-Debtors <1 year - Prepayments & Accrued Income,BZ999-London Region,LONDON BOROUGH OF HARINGEY,2494535,"58,429.00",Rates Prepayments,RATES,0,Programme
Ministry of Justice,HMCTS,21-Jun-13,610400-Debtors <1 year - Prepayments & Accrued Income,BZ999-London Region,LONDON BOROUGH OF HOUNSLOW,2494539,"63,830.00",Rates Prepayments,RATES,0,Programme
Ministry of Justice,HMCTS,21-Jun-13,610400-Debtors <1 year - Prepayments & Accrued Income,BZ999-London Region,CITY OF WESTMINSTER,2494460,"69,231.00",Rates Prepayments,RATES,0,Programme
Ministry of Justice,HMCTS,21-Jun-13,610400-Debtors <1 year - Prepayments & Accrued Income,BZ999-London Region,CITY OF WESTMINSTER,2494460,"72,177.00",Rates Prepayments,RATES,0,Programme
Ministry of Justice,HMCTS,21-Jun-13,610400-Debtors <1 year - Prepayments & Accrued Income,BZ999-London Region,LONDON BOROUGH OF CROYDON,2494530,"74,141.00",Rates Prepayments,RATES,0,Programme
Ministry of Justice,HMCTS,21-Jun-13,610400-Debtors <1 year - Prepayments & Accrued Income,BZ999-London Region,LONDON BOROUGH OF GREENWICH,2494533,"79,542.00",Rates Prepayments,RATES,0,Programme
Ministry of Justice,HMCTS,14-Jun-13,610400-Debtors <1 year - Prepayments & Accrued Income,BZ999-London Region,BERKLEY ESTATES LONDON LTD,2486543,"79,771.12",Rent Prepayments,W1U 1QS,0,Programme
Ministry of Justice,HMCTS,21-Jun-13,610400-Debtors <1 year - Prepayments & Accrued Income,BZ999-London Region,LONDON BOROUGH OF SOUTHWARK,2494546,"91,326.00",Rates Prepayments,RATES,0,Programme
Ministry of Justice,HMCTS,21-Jun-13,610400-Debtors <1 year - Prepayments & Accrued Income,BZ999-London Region,ROYAL BOROUGH OF KINGSTON UPON THAMES,2494594,"94,763.00",Rates Prepayments,RATES,0,Programme
Ministry of Justice,HMCTS,18-Jun-13,610400-Debtors <1 year - Prepayments & Accrued Income,BZ999-London Region,JOHN & SANDRA JOSEPH,2489482,"108,525.00",Rent Prepayments,NW3 1PD,0,Programme
Ministry of Justice,HMCTS,21-Jun-13,610400-Debtors <1 year - Prepayments & Accrued Income,BZ999-London Region,LONDON BOROUGH OF SOUTHWARK,2494546,"112,930.00",Rates Prepayments,RATES,0,Programme
Ministry of Justice,HMCTS,21-Jun-13,610400-Debtors <1 year - Prepayments & Accrued Income,BZ999-London Region,LONDON BOROUGH OF CAMDEN,2494529,"166,940.00",Rates Prepayments,RATES,0,Programme
Ministry of Justice,HMCTS,07-Jun-13,610400-Debtors <1 year - Prepayments & Accrued Income,BZ999-London Region,PROPERTY PARTNERS T/A RESIDENTIAL PARTNERS,2479986,"168,750.00",Rent Prepayments,W1J 8PD,0,Programme
Ministry of Justice,HMCTS,12-Jun-13,610400-Debtors <1 year - Prepayments & Accrued Income,BZ999-London Region,JAMES ANDREW RSW,2484143,"220,741.50",Rent Prepayments,N3 2BP-RENTGEE,0,Programme
Ministry of Justice,HMCTS,18-Jun-13,610400-Debtors <1 year - Prepayments & Accrued Income,BZ999-London Region,B&HS MANAGEMENT LTD,2489107,"229,909.50",Rent Prepayments,W1G 0PW,0,Programme
Ministry of Justice,HMCTS,18-Jun-13,610400-Debtors <1 year - Prepayments & Accrued Income,BZ999-London Region,GREAT CAPITAL PARTNERSHIP (GP) LTD,2489386,"278,750.00",Rent Prepayments,W1G 0PW,0,Programme
Ministry of Justice,HMCTS,04-Jun-13,610400-Debtors <1 year - Prepayments & Accrued Income,BZ999-London Region,BROADGATE ESTATES LTD,2474510,"287,564.72",Quarterly Rent and Service Charge,NW1 3BG,0,Programme
Ministry of Justice,HMCTS,21-Jun-13,610400-Debtors <1 year - Prepayments & Accrued Income,BZ999-London Region,CITY OF WESTMINSTER,2494460,"326,515.00",Rates Prepayments,RATES,0,Programme
Ministry of Justice,HMCTS,14-Jun-13,610400-Debtors <1 year - Prepayments & Accrued Income,BZ999-London Region,BERKLEY ESTATES LONDON LTD,2486543,"1,059,816.34",Rent Prepayments,W1U 1QS,0,Programme
Ministry of Justice,HMCTS,18-Jun-13,610400-Debtors <1 year - Prepayments & Accrued Income,BZ999-London Region,CBRE LTD,2489198,"1,236,675.00",Rent Prepayments,G2 6UA-RENT,0,Programme
Ministry of Justice,HMCTS,04-Jun-13,610400-Debtors <1 year - Prepayments & Accrued Income,BZ999-London Region,BROADGATE ESTATES LTD,2474510,"2,616,550.00",Rent Prepayments,NW1 3BG,0,Programme
Ministry of Justice,HMCTS,21-Jun-13,610400-Debtors <1 year - Prepayments & Accrued Income,CZ999-South East Region,HUNTINGDONSHIRE DISTRICT COUNCIL,2494512,"25,669.50",Rates Prepayments,RATES,0,Programme
Ministry of Justice,HMCTS,04-Jun-13,610400-Debtors <1 year - Prepayments & Accrued Income,CZ999-South East Region,GVA GRIMLEY LTD T/A GVA,2474746,"25,716.89",Service charge,B1 2JJ,0,Programme
Ministry of Justice,HMCTS,04-Jun-13,610400-Debtors <1 year - Prepayments & Accrued Income,CZ999-South East Region,OSPREY HOUSE (MANAGEMENT) LTD,2475194,"25,905.00",Service charge,CO8 5HD,0,Programme
Ministry of Justice,HMCTS,21-Jun-13,610400-Debtors <1 year - Prepayments & Accrued Income,CZ999-South East Region,CHELMSFORD BOROUGH COUNCIL,2494447,"26,611.50",Rates Prepayments,RATES,0,Programme
Ministry of Justice,HMCTS,21-Jun-13,610400-Debtors <1 year - Prepayments & Accrued Income,CZ999-South East Region,I ELLINSON & CO,2495944,"26,765.00",Rent Prepayments,NE9 6BQ,0,Programme
Ministry of Justice,HMCTS,21-Jun-13,610400-Debtors <1 year - Prepayments & Accrued Income,CZ999-South East Region,CHELMSFORD BOROUGH COUNCIL,2494447,"28,966.50",Rates Prepayments,RATES,0,Programme
Ministry of Justice,HMCTS,21-Jun-13,610400-Debtors <1 year - Prepayments & Accrued Income,CZ999-South East Region,OXFORD CITY COUNCIL,2494579,"29,202.00",Rates Prepayments,RATES,0,Programme
Ministry of Justice,HMCTS,21-Jun-13,610400-Debtors <1 year - Prepayments & Accrued Income,CZ999-South East Region,COLCHESTER BOROUGH COUNCIL,2494462,"30,614.44",Rates Prepayments,RATES,0,Programme
Ministry of Justice,HMCTS,21-Jun-13,610400-Debtors <1 year - Prepayments & Accrued Income,CZ999-South East Region,WESDON MANAGEMENT LTD (IN RECEIVERSHIP),2496483,"30,915.50",Rent Prepayments,W1W 8RB,0,Programme
Ministry of Justice,HMCTS,21-Jun-13,610400-Debtors <1 year - Prepayments & Accrued Income,CZ999-South East Region,NORWICH CITY COUNCIL,2494575,"31,086.00",Rates Prepayments,RATES,0,Programme
Ministry of Justice,HMCTS,14-Jun-13,610400-Debtors <1 year - Prepayments & Accrued Income,CZ999-South East Region,CP & CJ BROWN,2486645,"31,250.00",Rent Prepayments,OX25 4AL,0,Programme
Ministry of Justice,HMCTS,26-Jun-13,610400-Debtors <1 year - Prepayments & Accrued Income,CZ999-South East Region,SUFFOLKLIFE,2501605,"32,593.00",Rent Prepayments,IP1 1QJ,0,Programme
Ministry of Justice,HMCTS,21-Jun-13,610400-Debtors <1 year - Prepayments & Accrued Income,CZ999-South East Region,CHELMSFORD BOROUGH COUNCIL,2494447,"32,734.50",Rates Prepayments,RATES,0,Programme
Ministry of Justice,HMCTS,21-Jun-13,610400-Debtors <1 year - Prepayments & Accrued Income,CZ999-South East Region,LUTON BOROUGH COUNCIL,2494549,"34,383.00",Rates Prepayments,RATES,0,Programme
Ministry of Justice,HMCTS,21-Jun-13,610400-Debtors <1 year - Prepayments & Accrued Income,CZ999-South East Region,ST ALBANS CITY & DISTRICT COUNCIL,2494622,"35,325.00",Rates Prepayments,RATES,0,Programme
Ministry of Justice,HMCTS,21-Jun-13,610400-Debtors <1 year - Prepayments & Accrued Income,CZ999-South East Region,BASILDON BOROUGH COUNCIL,2494411,"36,267.00",Rates Prepayments,RATES,0,Programme
Ministry of Justice,HMCTS,18-Jun-13,610400-Debtors <1 year - Prepayments & Accrued Income,CZ999-South East Region,ABERDEEN,2489050,"38,417.50",Rent Prepayments,G2 5EA,0,Programme
Ministry of Justice,HMCTS,11-Jun-13,610400-Debtors <1 year - Prepayments & Accrued Income,CZ999-South East Region,ARROWCROFT SERVICES LTD,2481100,"38,957.25",Rent Prepayments,W1K 6AD,0,Programme
Ministry of Justice,HMCTS,21-Jun-13,610400-Debtors <1 year - Prepayments & Accrued Income,CZ999-South East Region,CANTERBURY CITY COUNCIL,2494441,"39,799.50",Rates Prepayments,RATES,0,Programme
Ministry of Justice,HMCTS,07-Jun-13,610400-Debtors <1 year - Prepayments & Accrued Income,CZ999-South East Region,GOOD HARVEST GROUP LTD,2479752,"41,080.00",Rent Prepayments,HA5 2EW,0,Programme
Ministry of Justice,HMCTS,04-Jun-13,610400-Debtors <1 year - Prepayments & Accrued Income,CZ999-South East Region,JONES LANG LASALLE LTD,2474830,"45,305.00",Service charge,E14 5WQ-SERVICE,0,Programme
Ministry of Justice,HMCTS,21-Jun-13,610400-Debtors <1 year - Prepayments & Accrued Income,CZ999-South East Region,READING BOROUGH COUNCIL,2494587,"48,984.00",Rates Prepayments,RATES,0,Programme
Ministry of Justice,HMCTS,21-Jun-13,610400-Debtors <1 year - Prepayments & Accrued Income,CZ999-South East Region,MAIDSTONE BOROUGH COUNCIL,2494550,"62,643.00",Rates Prepayments,RATES,0,Programme
Ministry of Justice,HMCTS,14-Jun-13,610400-Debtors <1 year - Prepayments & Accrued Income,CZ999-South East Region,ARROWCROFT SERVICES LTD,2486509,"79,705.00",Rent Prepayments,W1K 6AD,0,Programme
Ministry of Justice,HMCTS,07-Jun-13,610400-Debtors <1 year - Prepayments & Accrued Income,CZ999-South East Region,CBRE LTD,2479658,"100,480.25",Rent Prepayments,G2 6UA-NWTCOM,0,Programme
Ministry of Justice,HMCTS,07-Jun-13,610400-Debtors <1 year - Prepayments & Accrued Income,CZ999-South East Region,STANDARD LIFE INVESTMENTS,2480057,"180,136.59",Rent Prepayments,EH2 2LL,0,Programme
Ministry of Justice,HMCTS,07-Jun-13,610400-Debtors <1 year - Prepayments & Accrued Income,CZ999-South East Region,MERCHANT PLACE PROPERTY PARTNERSHIP 36,2479902,"237,031.25",Rent Prepayments,W1K 4QX,0,Programme
Ministry of Justice,HMCTS,25-Jun-13,610400-Debtors <1 year - Prepayments & Accrued Income,CZ999-South East Region,AFFINITY COMMERCIAL LLP,2498043,"385,963.20",Rent Prepayments,JE4 9WG,0,Programme
Ministry of Justice,HMCTS,21-Jun-13,610400-Debtors <1 year - Prepayments & Accrued Income,DZ999-South West Region,WILTSHIRE COUNCIL,2494654,"25,434.00",Rates Prepayments,RATES,0,Programme
Ministry of Justice,HMCTS,18-Jun-13,610400-Debtors <1 year - Prepayments & Accrued Income,DZ999-South West Region,MAPELEY BETA ACQUISITION CO LTD,2489572,"25,682.00",Service charge,PR6 9AF,0,Programme
Ministry of Justice,HMCTS,21-Jun-13,610400-Debtors <1 year - Prepayments & Accrued Income,DZ999-South West Region,SWANSTON HOLDINGS,2496433,"26,500.00",Rent Prepayments,HR9 7TE,0,Programme
Ministry of Justice,HMCTS,19-Jun-13,610400-Debtors <1 year - Prepayments & Accrued Income,DZ999-South West Region,LONDONDERRY ADMINISTRATIVE SERVICES,2492133,"30,937.50",Rent Prepayments,DT9 3BU,0,Programme
Ministry of Justice,HMCTS,05-Jun-13,610400-Debtors <1 year - Prepayments & Accrued Income,DZ999-South West Region,LAMBERT SMITH HAMPTON,2477417,"31,731.00",Rent Prepayments,W1D 1NN-S/CHGE,0,Programme
Ministry of Justice,HMCTS,21-Jun-13,610400-Debtors <1 year - Prepayments & Accrued Income,DZ999-South West Region,SOUTHAMPTON CITY COUNCIL,2494619,"33,676.50",Rates Prepayments,RATES,0,Programme
Ministry of Justice,HMCTS,21-Jun-13,610400-Debtors <1 year - Prepayments & Accrued Income,DZ999-South West Region,NORTH SOMERSET COUNCIL,2494571,"36,031.50",Rates Prepayments,RATES,0,Programme
Ministry of Justice,HMCTS,21-Jun-13,610400-Debtors <1 year - Prepayments & Accrued Income,DZ999-South West Region,WINCHESTER CITY COUNCIL,2494655,"36,738.00",Rates Prepayments,RATES,0,Programme
Ministry of Justice,HMCTS,21-Jun-13,610400-Debtors <1 year - Prepayments & Accrued Income,DZ999-South West Region,SOUTHAMPTON CITY COUNCIL,2494619,"40,977.00",Rates Prepayments,RATES,0,Programme
Ministry of Justice,HMCTS,21-Jun-13,610400-Debtors <1 year - Prepayments & Accrued Income,DZ999-South West Region,PORTSMOUTH CITY COUNCIL,2494583,"40,977.00",Rates Prepayments,RATES,0,Programme
Ministry of Justice,HMCTS,21-Jun-13,610400-Debtors <1 year - Prepayments & Accrued Income,DZ999-South West Region,BOURNEMOUTH BOROUGH COUNCIL,2494427,"41,683.50",Rates Prepayments,RATES,0,Programme
Ministry of Justice,HMCTS,21-Jun-13,610400-Debtors <1 year - Prepayments & Accrued Income,DZ999-South West Region,EXETER CITY COUNCIL,2494492,"44,038.50",Rates Prepayments,RATES,0,Programme
Ministry of Justice,HMCTS,18-Jun-13,610400-Debtors <1 year - Prepayments & Accrued Income,DZ999-South West Region,MAPELEY BETA ACQUISITION CO LTD,2489572,"47,125.00",Rent Prepayments,PR6 9AF,0,Programme
Ministry of Justice,HMCTS,21-Jun-13,610400-Debtors <1 year - Prepayments & Accrued Income,DZ999-South West Region,BRISTOL CITY COUNCIL,2494434,"48,042.00",Rates Prepayments,RATES,0,Programme
Ministry of Justice,HMCTS,21-Jun-13,610400-Debtors <1 year - Prepayments & Accrued Income,DZ999-South West Region,BRISTOL CITY COUNCIL,2494434,"51,810.00",Rates Prepayments,RATES,0,Programme
Ministry of Justice,HMCTS,21-Jun-13,610400-Debtors <1 year - Prepayments & Accrued Income,DZ999-South West Region,BRISTOL CITY COUNCIL,2494434,"75,360.00",Rates Prepayments,RATES,0,Programme
Ministry of Justice,HMCTS,14-Jun-13,610400-Debtors <1 year - Prepayments & Accrued Income,DZ999-South West Region,WORKMAN,2487282,"76,381.25",Rent Prepayments,BS1 6AL-M5 RENT,0,Programme
Ministry of Justice,HMCTS,14-Jun-13,610400-Debtors <1 year - Prepayments & Accrued Income,DZ999-South West Region,RATCLIFFES,2487119,"77,613.75",Rent Prepayments,W1K 2QH,0,Programme
Ministry of Justice,HMCTS,07-Jun-13,610400-Debtors <1 year - Prepayments & Accrued Income,DZ999-South West Region,STANDARD LIFE INVESTMENTS,2480058,"230,981.50",Rent Prepayments,EH2 2LL-RENT,0,Programme
Ministry of Justice,HMCTS,26-Jun-13,610400-Debtors <1 year - Prepayments & Accrued Income,DZ999-South West Region,JONES LANG LASALLE LTD,2500389,"633,750.00",Rent Prepayments,E14 5WR,0,Programme
Ministry of Justice,HMCTS,21-Jun-13,610400-Debtors <1 year - Prepayments & Accrued Income,EZ999-Wales Region,CARDIFF COUNTY COUNCIL,2494442,"25,056.00",Rates Prepayments,RATES,0,Programme
Ministry of Justice,HMCTS,04-Jun-13,610400-Debtors <1 year - Prepayments & Accrued Income,EZ999-Wales Region,LAMBERT SMITH HAMPTON,2474874,"25,400.00",Rent Prepayments,W1D 1NN-S/CHGE,0,Programme
Ministry of Justice,HMCTS,14-Jun-13,610400-Debtors <1 year - Prepayments & Accrued Income,EZ999-Wales Region,SCOTTS PROPERTY LLP,2487154,"33,750.00",Rent Prepayments,HU1 2AN,0,Programme
Ministry of Justice,HMCTS,21-Jun-13,610400-Debtors <1 year - Prepayments & Accrued Income,EZ999-Wales Region,CARDIFF COUNTY COUNCIL,2494442,"36,888.00",Rates Prepayments,RATES,0,Programme
Ministry of Justice,HMCTS,21-Jun-13,610400-Debtors <1 year - Prepayments & Accrued Income,EZ999-Wales Region,BRUTON KNOWLES,2495739,"60,686.50",Rent Prepayments,B4 6AF,0,Programme
Ministry of Justice,HMCTS,19-Jun-13,610400-Debtors <1 year - Prepayments & Accrued Income,EZ999-Wales Region,SAVILLS COMMERCIAL LTD,2493402,"71,170.16",Rent Prepayments,M2 4AW,0,Programme
Ministry of Justice,HMCTS,07-Jun-13,610400-Debtors <1 year - Prepayments & Accrued Income,EZ999-Wales Region,CITY AND COUNTY OF SWANSEA,2479667,"92,120.09",Service charge,SA1 3SN,0,Programme
Ministry of Justice,HMCTS,21-Jun-13,610400-Debtors <1 year - Prepayments & Accrued Income,EZ999-Wales Region,LONDON & CAPITAL PROPERTIES LTD,2496006,"186,385.50",Rent Prepayments,NW1 3HG,0,Programme
Ministry of Justice,HMCTS,04-Jun-13,610400-Debtors <1 year - Prepayments & Accrued Income,FZ999-Midlands Region,COVENTRY CITY COUNCIL,2474596,"25,905.00",Scheduled rates payment,RATES,0,Programme
Ministry of Justice,HMCTS,21-Jun-13,610400-Debtors <1 year - Prepayments & Accrued Income,FZ999-Midlands Region,LEICESTER CITY COUNCIL,2494522,"25,905.00",Scheduled rates payment,RATES,0,Programme
Ministry of Justice,HMCTS,21-Jun-13,610400-Debtors <1 year - Prepayments & Accrued Income,FZ999-Midlands Region,STAFFORD BOROUGH COUNCIL,2494625,"26,847.00",Scheduled rates payment,RATES,0,Programme
Ministry of Justice,HMCTS,04-Jun-13,610400-Debtors <1 year - Prepayments & Accrued Income,FZ999-Midlands Region,COVENTRY CITY COUNCIL,2474596,"28,495.50",Scheduled rates payment,RATES,0,Programme
Ministry of Justice,HMCTS,21-Jun-13,610400-Debtors <1 year - Prepayments & Accrued Income,FZ999-Midlands Region,DERBY CITY COUNCIL,2494477,"29,673.00",Scheduled rates payment,RATES,0,Programme
Ministry of Justice,HMCTS,21-Jun-13,610400-Debtors <1 year - Prepayments & Accrued Income,FZ999-Midlands Region,BIRMINGHAM CITY COUNCIL,2494416,"30,379.50",Scheduled rates payment,RATES,0,Programme
Ministry of Justice,HMCTS,21-Jun-13,610400-Debtors <1 year - Prepayments & Accrued Income,FZ999-Midlands Region,CITY OF LINCOLN COUNCIL,2494457,"30,850.50",Scheduled rates payment,RATES,0,Programme
Ministry of Justice,HMCTS,21-Jun-13,610400-Debtors <1 year - Prepayments & Accrued Income,FZ999-Midlands Region,CITY OF STOKE ON TRENT,2494459,"32,970.00",Scheduled rates payment,RATES,0,Programme
Ministry of Justice,HMCTS,25-Jun-13,610400-Debtors <1 year - Prepayments & Accrued Income,FZ999-Midlands Region,PRICEWATERHOUSECOOPERS LLP,2498832,"33,072.00",Quarterly service charge for 6th Floor Temple Court Birmingham,E14 9SQ,0,Programme
Ministry of Justice,HMCTS,21-Jun-13,610400-Debtors <1 year - Prepayments & Accrued Income,FZ999-Midlands Region,LEICESTER CITY COUNCIL,2494522,"33,676.50",Scheduled rates payment,RATES,0,Programme
Ministry of Justice,HMCTS,25-Jun-13,610400-Debtors <1 year - Prepayments & Accrued Income,FZ999-Midlands Region,PRICEWATERHOUSECOOPERS LLP,2498832,"35,490.00",Quarterly service charge for 3rd Floor Temple Court Birmingham,E14 9SQ,0,Programme
Ministry of Justice,HMCTS,25-Jun-13,610400-Debtors <1 year - Prepayments & Accrued Income,FZ999-Midlands Region,PRICEWATERHOUSECOOPERS LLP,2498832,"35,490.00",Quarterly service charge for 4th Floor Temple Court Birmingham,E14 9SQ,0,Programme
Ministry of Justice,HMCTS,21-Jun-13,610400-Debtors <1 year - Prepayments & Accrued Income,FZ999-Midlands Region,WOLVERHAMPTON CITY COUNCIL,2494657,"36,738.00",Scheduled rates payment,RATES,0,Programme
Ministry of Justice,HMCTS,21-Jun-13,610400-Debtors <1 year - Prepayments & Accrued Income,FZ999-Midlands Region,NOTTINGHAM CITY COUNCIL,2494576,"37,915.50",Scheduled rates payment,RATES,0,Programme
Ministry of Justice,HMCTS,21-Jun-13,610400-Debtors <1 year - Prepayments & Accrued Income,FZ999-Midlands Region,NORTHAMPTON BOROUGH COUNCIL,2494573,"40,035.00",Scheduled rates payment,RATES,0,Programme
Ministry of Justice,HMCTS,04-Jun-13,610400-Debtors <1 year - Prepayments & Accrued Income,FZ999-Midlands Region,EVANS EASYSPACE LTD,2474682,"41,098.75",Quarterly rent for Northampton Admin Offices,LS11 8EG,0,Programme
Ministry of Justice,HMCTS,04-Jun-13,610400-Debtors <1 year - Prepayments & Accrued Income,FZ999-Midlands Region,BOND WOLFE ASSETS LTD,2474493,"42,973.00",Quarterly rent for Walsall County Court,B70 6JJ,0,Programme
Ministry of Justice,HMCTS,21-Jun-13,610400-Debtors <1 year - Prepayments & Accrued Income,FZ999-Midlands Region,BIRMINGHAM CITY COUNCIL,2494416,"45,922.50",Scheduled rates payment,RATES,0,Programme
Ministry of Justice,HMCTS,12-Jun-13,610400-Debtors <1 year - Prepayments & Accrued Income,FZ999-Midlands Region,COLLINGWOOD RIGBY,2484032,"63,912.84",Quarterly service charge for Temple Court Birmingham,B17 9PU,0,Programme
Ministry of Justice,HMCTS,21-Jun-13,610400-Debtors <1 year - Prepayments & Accrued Income,FZ999-Midlands Region,NOTTINGHAM CITY COUNCIL,2494576,"73,005.00",Scheduled rates payment,RATES,0,Programme
Ministry of Justice,HMCTS,25-Jun-13,610400-Debtors <1 year - Prepayments & Accrued Income,FZ999-Midlands Region,PRICEWATERHOUSECOOPERS LLP,2498832,"107,878.50",Quarterly rent for 6th Floor Temple Court Birmingham,E14 9SQ,0,Programme
Ministry of Justice,HMCTS,25-Jun-13,610400-Debtors <1 year - Prepayments & Accrued Income,FZ999-Midlands Region,PRICEWATERHOUSECOOPERS LLP,2498832,"115,708.50",Quarterly rent for 3rd Floor Temple Court Birmingham,E14 9SQ,0,Programme
Ministry of Justice,HMCTS,25-Jun-13,610400-Debtors <1 year - Prepayments & Accrued Income,FZ999-Midlands Region,PRICEWATERHOUSECOOPERS LLP,2498832,"115,708.50",Quarterly rent for 4th Floor Temple Court Birmingham,E14 9SQ,0,Programme
Ministry of Justice,HMCTS,21-Jun-13,610400-Debtors <1 year - Prepayments & Accrued Income,FZ999-Midlands Region,BIRMINGHAM CITY COUNCIL,2494416,"154,017.00",Scheduled rates payment,RATES,0,Programme
Ministry of Justice,HMCTS,07-Jun-13,610400-Debtors <1 year - Prepayments & Accrued Income,FZ999-Midlands Region,JONES LANG LASALLE LTD,2479813,"203,511.77",Quarterly rent for Loughborough MC,BS8 9AQ-LEGAL,0,Programme
Ministry of Justice,HMCTS,12-Jun-13,610400-Debtors <1 year - Prepayments & Accrued Income,FZ999-Midlands Region,COLLINGWOOD RIGBY,2484033,"977,113.00",Quarterly rent for Temple Court Birmingham,B17 9PU-RENTVIN,0,Programme
Ministry of Justice,HMCTS,21-Jun-13,610400-Debtors <1 year - Prepayments & Accrued Income,GZ999-North West Region,CARLISLE CITY COUNCIL,2494443,"27,553.50",HMCTS Estates Rates 13/14 Cumbria Area,RATES,0,Programme
Ministry of Justice,HMCTS,21-Jun-13,610400-Debtors <1 year - Prepayments & Accrued Income,GZ999-North West Region,MANCHESTER CITY COUNCIL,2494551,"28,024.50",HMCTS Estates Rates 13/14 Manchester Area,RATES,0,Programme
Ministry of Justice,HMCTS,05-Jun-13,610400-Debtors <1 year - Prepayments & Accrued Income,GZ999-North West Region,CBRE LTD,2477294,"28,700.00",Rent - Liverpool Civil and Family Centre,G2 6UA-NWTCOM,0,Programme
Ministry of Justice,HMCTS,07-Jun-13,610400-Debtors <1 year - Prepayments & Accrued Income,GZ999-North West Region,CBRE LTD,2479658,"29,422.75",Rent - Liverpool Civil and Family Centre,G2 6UA-NWTCOM,0,Programme
Ministry of Justice,HMCTS,07-Jun-13,610400-Debtors <1 year - Prepayments & Accrued Income,GZ999-North West Region,CBRE LTD,2479658,"29,464.75",Rent - Liverpool Civil and Family Centre,G2 6UA-NWTCOM,0,Programme
Ministry of Justice,HMCTS,26-Jun-13,610400-Debtors <1 year - Prepayments & Accrued Income,GZ999-North West Region,OAKLAWN,2500456,"32,182.65",Rent - Birkenhead County Court,N18 1SY,0,Programme
Ministry of Justice,HMCTS,25-Jun-13,610400-Debtors <1 year - Prepayments & Accrued Income,GZ999-North West Region,HURSTWOOD PROPERTIES (R) LTD,2498337,"40,288.41",Rent - Blackburn Magistrates' Court,M2 1HW,0,Programme
Ministry of Justice,HMCTS,21-Jun-13,610400-Debtors <1 year - Prepayments & Accrued Income,GZ999-North West Region,PRESTON CITY COUNCIL,2494585,"55,578.00",HMCTS Estates Rates 13/14 Lancashire Area,RATES,0,Programme
Ministry of Justice,HMCTS,21-Jun-13,610400-Debtors <1 year - Prepayments & Accrued Income,GZ999-North West Region,MANCHESTER CITY COUNCIL,2494551,"56,049.00",HMCTS Estates Rates 13/14 Manchester Area,RATES,0,Programme
Ministry of Justice,HMCTS,04-Jun-13,610400-Debtors <1 year - Prepayments & Accrued Income,GZ999-North West Region,PHILIP J DAVIES (HOLDINGS) PLC,2475222,"56,750.00",Rent - Oldham County Court,WA14 2QG,0,Programme
Ministry of Justice,HMCTS,21-Jun-13,610400-Debtors <1 year - Prepayments & Accrued Income,GZ999-North West Region,MANCHESTER CITY COUNCIL,2494551,"56,991.00",HMCTS Estates Rates 13/14 Manchester Area,RATES,0,Programme
Ministry of Justice,HMCTS,21-Jun-13,610400-Debtors <1 year - Prepayments & Accrued Income,GZ999-North West Region,LIVERPOOL CITY COUNCIL,2494524,"75,831.00",HMCTS Estates Rates 13/14 Merseyside Area,RATES,0,Programme
Ministry of Justice,HMCTS,21-Jun-13,610400-Debtors <1 year - Prepayments & Accrued Income,GZ999-North West Region,LONDON & CAPITAL PROPERTIES LTD,2496006,"96,716.32",Rent - Liverpool Civil and Family Centre,NW1 3HG,0,Programme
Ministry of Justice,HMCTS,21-Jun-13,610400-Debtors <1 year - Prepayments & Accrued Income,GZ999-North West Region,LONDON & CAPITAL PROPERTIES LTD,2496006,"126,133.71",Rent - Liverpool Civil and Family Centre,NW1 3HG,0,Programme
Ministry of Justice,HMCTS,21-Jun-13,610400-Debtors <1 year - Prepayments & Accrued Income,GZ999-North West Region,LONDON & CAPITAL PROPERTIES LTD,2496006,"129,745.98",Rent - Liverpool Civil and Family Centre,NW1 3HG,0,Programme
Ministry of Justice,HMCTS,21-Jun-13,610400-Debtors <1 year - Prepayments & Accrued Income,GZ999-North West Region,LONDON & CAPITAL PROPERTIES LTD,2496006,"130,264.02",Rent - Liverpool Civil and Family Centre,NW1 3HG,0,Programme
Ministry of Justice,HMCTS,26-Jun-13,610400-Debtors <1 year - Prepayments & Accrued Income,GZ999-North West Region,SAVILLS COMMERCIAL LTD,2501586,"131,284.50",Rent - Chester Civil Justice Centre,M2 4AW,0,Programme
Ministry of Justice,HMCTS,21-Jun-13,610400-Debtors <1 year - Prepayments & Accrued Income,GZ999-North West Region,LIVERPOOL CITY COUNCIL,2494524,"136,590.00",HMCTS Estates Rates 13/14 Merseyside Area,RATES,0,Programme
Ministry of Justice,HMCTS,21-Jun-13,610400-Debtors <1 year - Prepayments & Accrued Income,GZ999-North West Region,MANCHESTER CITY COUNCIL,2494551,"247,275.00",HMCTS Estates Rates 13/14 Manchester Area,RATES,0,Programme
Ministry of Justice,HMCTS,14-Jun-13,610400-Debtors <1 year - Prepayments & Accrued Income,GZ999-North West Region,CORK STREET PROPERTIES LTD,2486639,"2,171,284.00",Rent - Manchester Civil Justice Centre,W1S 3NQ,0,Programme
Ministry of Justice,HMCTS,11-Jun-13,610400-Debtors <1 year - Prepayments & Accrued Income,HZ999-North East Region,GVA GRIMLEY LTD T/A GVA,2481373,"26,250.00",Rent,B1 2JJ-A/C 9858,0,Programme
Ministry of Justice,HMCTS,21-Jun-13,610400-Debtors <1 year - Prepayments & Accrued Income,HZ999-North East Region,ROTHERHAM METROPOLITAN BOROUGH COUNCIL,2494593,"27,318.00",Rates,RATES,0,Programme
Ministry of Justice,HMCTS,21-Jun-13,610400-Debtors <1 year - Prepayments & Accrued Income,HZ999-North East Region,MIDDLESBROUGH COUNCIL,2494558,"31,321.50",Rates,RATES,0,Programme
Ministry of Justice,HMCTS,26-Jun-13,610400-Debtors <1 year - Prepayments & Accrued Income,HZ999-North East Region,M J MAPP LTD,2500418,"31,826.21",Service charge,W1W 5QZ,0,Programme
Ministry of Justice,HMCTS,21-Jun-13,610400-Debtors <1 year - Prepayments & Accrued Income,HZ999-North East Region,HULL CITY COUNCIL,2494511,"32,734.50",Rates,RATES,0,Programme
Ministry of Justice,HMCTS,04-Jun-13,610400-Debtors <1 year - Prepayments & Accrued Income,HZ999-North East Region,STOREYS EDWARD SYMMONS,2475363,"34,176.12",Service charge,NE1 8AU,0,Programme
Ministry of Justice,HMCTS,26-Jun-13,610400-Debtors <1 year - Prepayments & Accrued Income,HZ999-North East Region,COLENSO PROPERTY SERVICES LLP,2500266,"35,100.00",Rent,YO32 9GZ,0,Programme
Ministry of Justice,HMCTS,04-Jun-13,610400-Debtors <1 year - Prepayments & Accrued Income,HZ999-North East Region,MPS2 LTD,2474976,"39,875.00",Rent,JE1 1BD,0,Programme
Ministry of Justice,HMCTS,21-Jun-13,610400-Debtors <1 year - Prepayments & Accrued Income,HZ999-North East Region,SHEFFIELD CITY COUNCIL,2494603,"42,625.50",Rates,RATES,0,Programme
Ministry of Justice,HMCTS,04-Jun-13,610400-Debtors <1 year - Prepayments & Accrued Income,HZ999-North East Region,GVA GRIMLEY LTD T/A GVA,2474748,"46,323.25",Rent,B1 2JJ-MREF,0,Programme
Ministry of Justice,HMCTS,25-Jun-13,610400-Debtors <1 year - Prepayments & Accrued Income,HZ999-North East Region,MORDEN COLLEGE,2498447,"47,875.00",Rent,SE3 0PW,0,Programme
Ministry of Justice,HMCTS,21-Jun-13,610400-Debtors <1 year - Prepayments & Accrued Income,HZ999-North East Region,LEEDS CITY COUNCIL,2494521,"52,752.00",Rates,RATES,0,Programme
Ministry of Justice,HMCTS,21-Jun-13,610400-Debtors <1 year - Prepayments & Accrued Income,HZ999-North East Region,BRADFORD METROPOLITAN COUNCIL,2494429,"57,933.00",Rates,RATES,0,Programme
Ministry of Justice,HMCTS,21-Jun-13,610400-Debtors <1 year - Prepayments & Accrued Income,HZ999-North East Region,MIDDLESBROUGH COUNCIL,2494558,"66,411.00",Rates,RATES,0,Programme
Ministry of Justice,HMCTS,21-Jun-13,610400-Debtors <1 year - Prepayments & Accrued Income,HZ999-North East Region,LEEDS CITY COUNCIL,2494521,"68,295.00",Rates,RATES,0,Programme
Ministry of Justice,HMCTS,21-Jun-13,610400-Debtors <1 year - Prepayments & Accrued Income,HZ999-North East Region,NEWCASTLE UPON TYNE CITY COUNCIL,2494565,"69,708.00",Rates,RATES,0,Programme
Ministry of Justice,HMCTS,26-Jun-13,610400-Debtors <1 year - Prepayments & Accrued Income,HZ999-North East Region,M J MAPP LTD,2500418,"79,500.00",Rent,W1W 5QZ,0,Programme
Ministry of Justice,HMCTS,21-Jun-13,610400-Debtors <1 year - Prepayments & Accrued Income,HZ999-North East Region,SHEFFIELD CITY COUNCIL,2494603,"86,193.00",Rates,RATES,0,Programme
Ministry of Justice,HMCTS,07-Jun-13,610400-Debtors <1 year - Prepayments & Accrued Income,HZ999-North East Region,POLICE AND CRIME COMMISSIONER NORTHUMBRIA,2479973,"124,434.00",Service charge,NE8 1HH,0,Programme
Ministry of Justice,HMCTS,21-Jun-13,610400-Debtors <1 year - Prepayments & Accrued Income,WW000-Balance Sheet,MANCHESTER CITY COUNCIL,2494551,"25,198.50",Rates Prepayments,RATES,0,Balance Sheet
Ministry of Justice,HMCTS,21-Jun-13,610400-Debtors <1 year - Prepayments & Accrued Income,WW000-Balance Sheet,LONDON BOROUGH OF CAMDEN,2494529,"32,160.50",Rates Prepayments,RATES,0,Balance Sheet
Ministry of Justice,HMCTS,21-Jun-13,610400-Debtors <1 year - Prepayments & Accrued Income,WW000-Balance Sheet,LONDON BOROUGH OF CAMDEN,2494529,"41,244.00",Rates Prepayments,RATES,0,Balance Sheet
Ministry of Justice,HMCTS,21-Jun-13,610400-Debtors <1 year - Prepayments & Accrued Income,WW000-Balance Sheet,LONDON BOROUGH OF CAMDEN,2494529,"60,393.00",Rates Prepayments,RATES,0,Balance Sheet
Ministry of Justice,HMCTS,21-Jun-13,610400-Debtors <1 year - Prepayments & Accrued Income,WW000-Balance Sheet,LONDON BOROUGH OF ISLINGTON,2494540,"82,979.00",Rates Prepayments,RATES,0,Balance Sheet
MINISTRY OF JUSTICE,LEGAL AID AGENCY,Legal Help,06/03/2013,LEGAL AID FUND - Programme Costs,DUNCAN LEWIS,128584625,"450,000.00",Legal Aid Payments: Legal Help,,,
MINISTRY OF JUSTICE,LEGAL AID AGENCY,Legal Help,06/03/2013,LEGAL AID FUND - Programme Costs,BLAVO & CO SOLICITORS LTD,128585136,"439,938.00",Legal Aid Payments: Legal Help,,,
MINISTRY OF JUSTICE,LEGAL AID AGENCY,Legal Help,06/03/2013,LEGAL AID FUND - Programme Costs,DUNCAN LEWIS,128584635,"268,400.00",Legal Aid Payments: Legal Help,,,
MINISTRY OF JUSTICE,LEGAL AID AGENCY,Civil Representation,6/14/2013,LEGAL AID FUND - Programme Costs,JOHN P GODFREY,128902962,"265,464.38",Legal Aid Payments: Civil Representation,,,
MINISTRY OF JUSTICE,LEGAL AID AGENCY,Crime Lower,06/03/2013,LEGAL AID FUND - Programme Costs,THE JOHNSON PARTNERSHIP,128628651,"240,000.00",Legal Aid Payments: Crime Lower,,,
MINISTRY OF JUSTICE,LEGAL AID AGENCY,Legal Help,06/03/2013,LEGAL AID FUND - Programme Costs,WILSON SOLICITORS LLP,128584617,"239,000.00",Legal Aid Payments: Legal Help,,,
MINISTRY OF JUSTICE,LEGAL AID AGENCY,Civil Representation,6/14/2013,LEGAL AID FUND - Programme Costs,SIMON D HIRST,128903003,"211,947.75",Legal Aid Payments: Civil Representation,,,
MINISTRY OF JUSTICE,LEGAL AID AGENCY,Legal Help,06/03/2013,LEGAL AID FUND - Programme Costs,BLAVO & CO SOLICITORS LTD,128585111,"203,308.00",Legal Aid Payments: Legal Help,,,
MINISTRY OF JUSTICE,LEGAL AID AGENCY,Civil Representation,6/14/2013,LEGAL AID FUND - Programme Costs,SANDERSONS  SOLICITORS LTD,128902954,"202,792.16",Legal Aid Payments: Civil Representation,,,
MINISTRY OF JUSTICE,LEGAL AID AGENCY,Legal Help,06/03/2013,LEGAL AID FUND - Programme Costs,BLAVO & CO SOLICITORS LTD,128585122,"187,210.00",Legal Aid Payments: Legal Help,,,
MINISTRY OF JUSTICE,LEGAL AID AGENCY,Legal Help,06/03/2013,LEGAL AID FUND - Programme Costs,BURKE NIAZI LTD,128584644,"174,600.00",Legal Aid Payments: Legal Help,,,
MINISTRY OF JUSTICE,LEGAL AID AGENCY,Legal Help,06/03/2013,LEGAL AID FUND - Programme Costs,JACKSON & CANTER LLP,128584610,"172,400.00",Legal Aid Payments: Legal Help,,,
MINISTRY OF JUSTICE,LEGAL AID AGENCY,Crime Higher,06/03/2013,LEGAL AID FUND - Programme Costs,J D SPICER ZEB,128647551,"159,310.53",Legal Aid Payments: Crime Higher,,,
MINISTRY OF JUSTICE,LEGAL AID AGENCY,Crime Lower,06/03/2013,LEGAL AID FUND - Programme Costs,HENRY'S SOLICITORS LTD,128629289,"147,300.00",Legal Aid Payments: Crime Lower
MINISTRY OF JUSTICE,LEGAL AID AGENCY,Crime Lower,06/03/2013,LEGAL AID FUND - Programme Costs,TUCKERS [MANCHESTER],128629278,"146,200.00",Legal Aid Payments: Crime Lower
MINISTRY OF JUSTICE,LEGAL AID AGENCY,Crime Lower,06/03/2013,LEGAL AID FUND - Programme Costs,TUCKERS,128628924,"135,400.00",Legal Aid Payments: Crime Lower
MINISTRY OF JUSTICE,LEGAL AID AGENCY,Civil Representation,6/14/2013,LEGAL AID FUND - Programme Costs,TIMOTHY J OTTY QC,128524434,"133,612.51",Legal Aid Payments: Civil Representation
MINISTRY OF JUSTICE,LEGAL AID AGENCY,Legal Help,06/03/2013,LEGAL AID FUND - Programme Costs,LAWRENCE LUPIN SOLICITORS LTD,128585198,"130,887.00",Legal Aid Payments: Legal Help
MINISTRY OF JUSTICE,LEGAL AID AGENCY,Civil Representation,6/14/2013,LEGAL AID FUND - Programme Costs,SALLY F BRADLEY Q.C.,128453428,"128,302.50",Legal Aid Payments: Civil Representation
MINISTRY OF JUSTICE,LEGAL AID AGENCY,Crime Lower,06/03/2013,LEGAL AID FUND - Programme Costs,CARRINGTONS SOLICITORS,128629710,"127,607.00",Legal Aid Payments: Crime Lower
MINISTRY OF JUSTICE,LEGAL AID AGENCY,Crime Higher,06/07/2013,LEGAL AID FUND - Programme Costs,BURROWS BUSSIN,128732931,"118,663.93",Legal Aid Payments: Crime Higher
MINISTRY OF JUSTICE,LEGAL AID AGENCY,Crime Higher,06/03/2013,LEGAL AID FUND - Programme Costs,LANSBURY WORTHINGTON,128539841,"118,334.62",Legal Aid Payments: Crime Higher
MINISTRY OF JUSTICE,LEGAL AID AGENCY,Crime Higher,06/07/2013,LEGAL AID FUND - Programme Costs,SONI & KAUR SOLICITORS,128745617,"117,889.39",Legal Aid Payments: Crime Higher
MINISTRY OF JUSTICE,LEGAL AID AGENCY,Crime Lower,06/03/2013,LEGAL AID FUND - Programme Costs,MCGANNS LAW LTD,128628656,"117,200.00",Legal Aid Payments: Crime Lower
MINISTRY OF JUSTICE,LEGAL AID AGENCY,Crime Higher,6/14/2013,LEGAL AID FUND - Programme Costs,BYRNE & PARTNERS LLP,128889119,"116,414.79",Legal Aid Payments: Crime Higher
MINISTRY OF JUSTICE,LEGAL AID AGENCY,Crime Lower,06/03/2013,LEGAL AID FUND - Programme Costs,I B B SOLICITORS,128628850,"116,300.00",Legal Aid Payments: Crime Lower
MINISTRY OF JUSTICE,LEGAL AID AGENCY,Crime Higher,6/14/2013,LEGAL AID FUND - Programme Costs,FORBES SOLICITORS,128873483,"116,020.12",Legal Aid Payments: Crime Higher
MINISTRY OF JUSTICE,LEGAL AID AGENCY,Crime Higher,06/03/2013,LEGAL AID FUND - Programme Costs,ATTICUS SOLICITORS,128631412,"116,008.49",Legal Aid Payments: Crime Higher
MINISTRY OF JUSTICE,LEGAL AID AGENCY,Crime Higher,06/07/2013,LEGAL AID FUND - Programme Costs,EBR ATTRIDGE,128722356,"116,008.49",Legal Aid Payments: Crime Higher
MINISTRY OF JUSTICE,LEGAL AID AGENCY,Crime Higher,06/07/2013,LEGAL AID FUND - Programme Costs,PANNONE LLP,128722364,"116,008.49",Legal Aid Payments: Crime Higher
MINISTRY OF JUSTICE,LEGAL AID AGENCY,Crime Higher,6/14/2013,LEGAL AID FUND - Programme Costs,EDWARD HAYES LLP,128873532,"116,008.49",Legal Aid Payments: Crime Higher
MINISTRY OF JUSTICE,LEGAL AID AGENCY,Crime Higher,6/21/2013,LEGAL AID FUND - Programme Costs,J D SPICER ZEB,128940904,"116,008.49",Legal Aid Payments: Crime Higher
MINISTRY OF JUSTICE,LEGAL AID AGENCY,Civil Representation,6/14/2013,LEGAL AID FUND - Programme Costs,ANDREW J C COMAISH,128592077,"111,000.00",Legal Aid Payments: Civil Representation
MINISTRY OF JUSTICE,LEGAL AID AGENCY,Crime Lower,06/03/2013,LEGAL AID FUND - Programme Costs,T V  EDWARDS LLP,128628891,"110,000.00",Legal Aid Payments: Crime Lower
MINISTRY OF JUSTICE,LEGAL AID AGENCY,Legal Help,06/03/2013,LEGAL AID FUND - Programme Costs,RMNJ SOLICITORS ***,128585128,"105,543.00",Legal Aid Payments: Legal Help
MINISTRY OF JUSTICE,LEGAL AID AGENCY,Civil Representation,06/03/2013,LEGAL AID FUND - Programme Costs,JOANNA F GEDDES,128592856,"104,640.00",Legal Aid Payments: Civil Representation
MINISTRY OF JUSTICE,LEGAL AID AGENCY,Crime Lower,06/03/2013,LEGAL AID FUND - Programme Costs,MACKESYS SOLICITORS,128628902,"103,800.00",Legal Aid Payments: Crime Lower
MINISTRY OF JUSTICE,LEGAL AID AGENCY,Crime Higher,06/03/2013,LEGAL AID FUND - Programme Costs,RICHARD HASWELL SOLICITORS LLP,128655948,"103,418.93",Legal Aid Payments: Crime Higher
MINISTRY OF JUSTICE,LEGAL AID AGENCY,Crime Lower,06/03/2013,LEGAL AID FUND - Programme Costs,STEVENS SOLICITORS,128629511,"102,700.00",Legal Aid Payments: Crime Lower
MINISTRY OF JUSTICE,LEGAL AID AGENCY,Crime Lower,06/03/2013,LEGAL AID FUND - Programme Costs,STEPHENSONS SOLICITORS LLP,128629180,"102,300.00",Legal Aid Payments: Crime Lower
MINISTRY OF JUSTICE,LEGAL AID AGENCY,Crime Lower,06/03/2013,LEGAL AID FUND - Programme Costs,HODGE JONES & ALLEN LLP,128629825,"102,004.00",Legal Aid Payments: Crime Lower
MINISTRY OF JUSTICE,LEGAL AID AGENCY,Crime Higher,06/03/2013,LEGAL AID FUND - Programme Costs,MARK JONES & PARTNERS,128656723,"100,774.69",Legal Aid Payments: Crime Higher
MINISTRY OF JUSTICE,LEGAL AID AGENCY,Legal Help,06/03/2013,LEGAL AID FUND - Programme Costs,HOWELLS LLP,128584606,"100,000.00",Legal Aid Payments: Legal Help
MINISTRY OF JUSTICE,LEGAL AID AGENCY,Crime Lower,06/03/2013,LEGAL AID FUND - Programme Costs,NOBLE SOLICITORS,128628715,"100,000.00",Legal Aid Payments: Crime Lower
MINISTRY OF JUSTICE,LEGAL AID AGENCY,Legal Help,6/14/2013,LEGAL AID FUND - Programme Costs,TY ARIAN LTD,128908405,"100,000.00",Legal Aid Payments: Legal Help
MINISTRY OF JUSTICE,LEGAL AID AGENCY,Crime Higher,06/03/2013,LEGAL AID FUND - Programme Costs,K LEGAL SOLICITORS,128656621,"98,612.18",Legal Aid Payments: Crime Higher
MINISTRY OF JUSTICE,LEGAL AID AGENCY,Crime Higher,6/21/2013,LEGAL AID FUND - Programme Costs,NOBLE SOLICITORS,129051674,"98,612.18",Legal Aid Payments: Crime Higher
MINISTRY OF JUSTICE,LEGAL AID AGENCY,Crime Higher,06/03/2013,LEGAL AID FUND - Programme Costs,G T STEWART SOLICITORS,128656489,"98,602.86",Legal Aid Payments: Crime Higher
MINISTRY OF JUSTICE,LEGAL AID AGENCY,Crime Higher,6/14/2013,LEGAL AID FUND - Programme Costs,IRVINE THANVI NATAS SOLICITORS,128873523,"98,602.86",Legal Aid Payments: Crime Higher
MINISTRY OF JUSTICE,LEGAL AID AGENCY,Crime Lower,06/03/2013,LEGAL AID FUND - Programme Costs,PURCELL PARKER,128629528,"98,300.00",Legal Aid Payments: Crime Lower
MINISTRY OF JUSTICE,LEGAL AID AGENCY,Civil Representation,6/14/2013,LEGAL AID FUND - Programme Costs,DAVID AULD & CO,128453227,"98,035.94",Legal Aid Payments: Civil Representation
MINISTRY OF JUSTICE,LEGAL AID AGENCY,Crime Lower,06/03/2013,LEGAL AID FUND - Programme Costs,BHATIA BEST LTD,128628623,"97,800.00",Legal Aid Payments: Crime Lower
MINISTRY OF JUSTICE,LEGAL AID AGENCY,Crime Higher,06/07/2013,LEGAL AID FUND - Programme Costs,MORGANS CRIMINAL LAW,128768432,"96,980.06",Legal Aid Payments: Crime Higher
MINISTRY OF JUSTICE,LEGAL AID AGENCY,Crime Higher,06/03/2013,LEGAL AID FUND - Programme Costs,BYRNE & PARTNERS LLP,128531148,"96,843.84",Legal Aid Payments: Crime Higher
MINISTRY OF JUSTICE,LEGAL AID AGENCY,Crime Higher,06/03/2013,LEGAL AID FUND - Programme Costs,BANKSIDE LAW LIMITED,128646457,"96,288.68",Legal Aid Payments: Crime Higher
MINISTRY OF JUSTICE,LEGAL AID AGENCY,Civil Representation,6/14/2013,LEGAL AID FUND - Programme Costs,PEPPERELLS SOLICITORS,128591868,"96,042.63",Legal Aid Payments: Civil Representation
MINISTRY OF JUSTICE,LEGAL AID AGENCY,Crime Higher,06/03/2013,LEGAL AID FUND - Programme Costs,YOUNGS DEFENCE SERVICES LTD,126419050,"96,004.33",Legal Aid Payments: Crime Higher
MINISTRY OF JUSTICE,LEGAL AID AGENCY,Crime Lower,06/03/2013,LEGAL AID FUND - Programme Costs,CRIMINAL DEFENCE SOLICITORS,128628929,"95,800.00",Legal Aid Payments: Crime Lower
MINISTRY OF JUSTICE,LEGAL AID AGENCY,Crime Higher,6/21/2013,LEGAL AID FUND - Programme Costs,MAGUIRES SOLICITORS LTD,128940950,"95,573.74",Legal Aid Payments: Crime Higher
MINISTRY OF JUSTICE,LEGAL AID AGENCY,Crime Lower,06/03/2013,LEGAL AID FUND - Programme Costs,ABV SOLICITORS,128628855,"93,600.00",Legal Aid Payments: Crime Lower
MINISTRY OF JUSTICE,LEGAL AID AGENCY,Crime Higher,06/03/2013,LEGAL AID FUND - Programme Costs,CALDICOTTS SOLICITORS LLP,128656121,"93,042.54",Legal Aid Payments: Crime Higher
MINISTRY OF JUSTICE,LEGAL AID AGENCY,Civil Representation,6/14/2013,LEGAL AID FUND - Programme Costs,ELIZABETH M CALLAGHAN,128453456,"92,958.00",Legal Aid Payments: Civil Representation
MINISTRY OF JUSTICE,LEGAL AID AGENCY,Crime Lower,06/03/2013,LEGAL AID FUND - Programme Costs,J D SPICER ZEB,128628861,"91,000.00",Legal Aid Payments: Crime Lower
MINISTRY OF JUSTICE,LEGAL AID AGENCY,Crime Higher,06/07/2013,LEGAL AID FUND - Programme Costs,FARNSWORTH MORGAN BAKHAT,128709063,"90,872.33",Legal Aid Payments: Crime Higher
MINISTRY OF JUSTICE,LEGAL AID AGENCY,Civil Representation,6/14/2013,LEGAL AID FUND - Programme Costs,MARGO C BOYE-ANAWOMA,128566277,"90,817.00",Legal Aid Payments: Civil Representation
MINISTRY OF JUSTICE,LEGAL AID AGENCY,Civil Representation,6/14/2013,LEGAL AID FUND - Programme Costs,ALISON BALL QC,128566275,"90,021.66",Legal Aid Payments: Civil Representation
MINISTRY OF JUSTICE,LEGAL AID AGENCY,Legal Help,06/03/2013,LEGAL AID FUND - Programme Costs,BARNES HARRILD & DYER,128628202,"89,570.00",Legal Aid Payments: Legal Help
MINISTRY OF JUSTICE,LEGAL AID AGENCY,Legal Help,06/03/2013,LEGAL AID FUND - Programme Costs,BIRMINGHAM CAB SERVICE LTD,128628420,"89,104.00",Legal Aid Payments: Legal Help
MINISTRY OF JUSTICE,LEGAL AID AGENCY,Civil Representation,6/21/2013,LEGAL AID FUND - Programme Costs,MACKINTOSH LAW,128990521,"88,510.81",Legal Aid Payments: Civil Representation
MINISTRY OF JUSTICE,LEGAL AID AGENCY,Crime Lower,06/03/2013,LEGAL AID FUND - Programme Costs,FMW LAW LTD,128628775,"88,000.00",Legal Aid Payments: Crime Lower
MINISTRY OF JUSTICE,LEGAL AID AGENCY,Crime Higher,6/21/2013,LEGAL AID FUND - Programme Costs,IRWIN MITCHELL LLP,128971812,"87,766.18",Legal Aid Payments: Crime Higher
MINISTRY OF JUSTICE,LEGAL AID AGENCY,Crime Lower,06/03/2013,LEGAL AID FUND - Programme Costs,TAYLOR STREET SOLICITORS LLP,128629323,"85,700.00",Legal Aid Payments: Crime Lower
MINISTRY OF JUSTICE,LEGAL AID AGENCY,Civil Representation,6/14/2013,LEGAL AID FUND - Programme Costs,DAVIS & SIMMONDS & DONAGHEY,128566208,"85,514.11",Legal Aid Payments: Civil Representation
MINISTRY OF JUSTICE,LEGAL AID AGENCY,Crime Lower,06/03/2013,LEGAL AID FUND - Programme Costs,LANSBURY WORTHINGTON,128628776,"84,900.00",Legal Aid Payments: Crime Lower
MINISTRY OF JUSTICE,LEGAL AID AGENCY,Crime Higher,6/14/2013,LEGAL AID FUND - Programme Costs,GRAHAM R TREMBATH QC,128872155,"84,254.02",Legal Aid Payments: Crime Higher
MINISTRY OF JUSTICE,LEGAL AID AGENCY,Legal Help,06/03/2013,LEGAL AID FUND - Programme Costs,WEST SUSSEX CAB CONSORTIUM-CLAN,128642124,"84,062.62",Legal Aid Payments: Legal Help
MINISTRY OF JUSTICE,LEGAL AID AGENCY,Crime Higher,6/21/2013,LEGAL AID FUND - Programme Costs,JANES SOLICITORS,128967489,"84,060.18",Legal Aid Payments: Crime Higher
MINISTRY OF JUSTICE,LEGAL AID AGENCY,Legal Help,06/03/2013,LEGAL AID FUND - Programme Costs,DUNCAN LEWIS & CO,128627442,"83,000.00",Legal Aid Payments: Legal Help
MINISTRY OF JUSTICE,LEGAL AID AGENCY,Crime Lower,06/03/2013,LEGAL AID FUND - Programme Costs,LHD SOLICITORS LTD,128629188,"82,900.00",Legal Aid Payments: Crime Lower
MINISTRY OF JUSTICE,LEGAL AID AGENCY,Crime Lower,06/03/2013,LEGAL AID FUND - Programme Costs,LESLIE FRANKS SOLICITORS,128629829,"82,396.00",Legal Aid Payments: Crime Lower
MINISTRY OF JUSTICE,LEGAL AID AGENCY,Crime Lower,06/03/2013,LEGAL AID FUND - Programme Costs,OLIVER D'SA SOLICITORS,128629696,"81,663.00",Legal Aid Payments: Crime Lower
MINISTRY OF JUSTICE,LEGAL AID AGENCY,Crime Higher,6/14/2013,LEGAL AID FUND - Programme Costs,LEONARD SMITH Q.C.,128805352,"81,156.60",Legal Aid Payments: Crime Higher
MINISTRY OF JUSTICE,LEGAL AID AGENCY,Civil Representation,6/14/2013,LEGAL AID FUND - Programme Costs,JOANNE ASTBURY,128003568,"81,150.00",Legal Aid Payments: Civil Representation
MINISTRY OF JUSTICE,LEGAL AID AGENCY,Crime Lower,06/03/2013,LEGAL AID FUND - Programme Costs,STUART MILLER SOLICITORS LTD,128628910,"81,000.00",Legal Aid Payments: Crime Lower
MINISTRY OF JUSTICE,LEGAL AID AGENCY,Crime Lower,06/03/2013,LEGAL AID FUND - Programme Costs,THOMAS BOYD WHYTE,128629792,"80,907.00",Legal Aid Payments: Crime Lower
MINISTRY OF JUSTICE,LEGAL AID AGENCY,Crime Higher,6/21/2013,LEGAL AID FUND - Programme Costs,OLLIERS,129030572,"80,394.36",Legal Aid Payments: Crime Higher
MINISTRY OF JUSTICE,LEGAL AID AGENCY,Crime Higher,06/07/2013,LEGAL AID FUND - Programme Costs,ADAM D DAVIS QC,128734431,"78,851.40",Legal Aid Payments: Crime Higher
MINISTRY OF JUSTICE,LEGAL AID AGENCY,Crime Lower,06/03/2013,LEGAL AID FUND - Programme Costs,STEVENS,128629512,"78,400.00",Legal Aid Payments: Crime Lower
MINISTRY OF JUSTICE,LEGAL AID AGENCY,Crime Lower,06/03/2013,LEGAL AID FUND - Programme Costs,NOBLE SOLICITORS,128628703,"78,000.00",Legal Aid Payments: Crime Lower
MINISTRY OF JUSTICE,LEGAL AID AGENCY,Crime Higher,6/14/2013,LEGAL AID FUND - Programme Costs,ROGER D H SMITH,128872141,"77,491.20",Legal Aid Payments: Crime Higher
MINISTRY OF JUSTICE,LEGAL AID AGENCY,Crime Lower,06/03/2013,LEGAL AID FUND - Programme Costs,HOWELLS LLP,128629081,"77,400.00",Legal Aid Payments: Crime Lower
MINISTRY OF JUSTICE,LEGAL AID AGENCY,Crime Lower,06/03/2013,LEGAL AID FUND - Programme Costs,SJ LAW SOLICITORS,128629799,"77,236.00",Legal Aid Payments: Crime Lower
MINISTRY OF JUSTICE,LEGAL AID AGENCY,Crime Higher,6/14/2013,LEGAL AID FUND - Programme Costs,ROY BROWN,128906878,"77,178.36",Legal Aid Payments: Crime Higher
MINISTRY OF JUSTICE,LEGAL AID AGENCY,Crime Lower,06/03/2013,LEGAL AID FUND - Programme Costs,JACKSON & CANTER LLP,128630415,"77,160.00",Legal Aid Payments: Crime Lower
MINISTRY OF JUSTICE,LEGAL AID AGENCY,Crime Higher,06/03/2013,LEGAL AID FUND - Programme Costs,FARADAYS SOLICITORS LTD,128539782,"76,521.80",Legal Aid Payments: Crime Higher
MINISTRY OF JUSTICE,LEGAL AID AGENCY,Crime Higher,06/07/2013,LEGAL AID FUND - Programme Costs,DAVID T FISH QC,128768604,"76,410.48",Legal Aid Payments: Crime Higher
MINISTRY OF JUSTICE,LEGAL AID AGENCY,Legal Help,06/03/2013,LEGAL AID FUND - Programme Costs,CLEVELAND & CO SOLICITORS,128648166,"75,874.00",Legal Aid Payments: Legal Help
MINISTRY OF JUSTICE,LEGAL AID AGENCY,Legal Help,6/14/2013,LEGAL AID FUND - Programme Costs,TY ARIAN LTD,128908391,"75,873.75",Legal Aid Payments: Legal Help
MINISTRY OF JUSTICE,LEGAL AID AGENCY,Crime Lower,06/03/2013,LEGAL AID FUND - Programme Costs,MARTIN MURRAY & ASSOCIATES,128628846,"75,200.00",Legal Aid Payments: Crime Lower
MINISTRY OF JUSTICE,LEGAL AID AGENCY,Crime Lower,06/03/2013,LEGAL AID FUND - Programme Costs,WESSEX SOLICITORS CHAMBERS LTD,128629595,"75,000.00",Legal Aid Payments: Crime Lower
MINISTRY OF JUSTICE,LEGAL AID AGENCY,Crime Lower,06/03/2013,LEGAL AID FUND - Programme Costs,EDWARDS DUTHIE,128628800,"74,700.00",Legal Aid Payments: Crime Lower
MINISTRY OF JUSTICE,LEGAL AID AGENCY,Crime Lower,06/03/2013,LEGAL AID FUND - Programme Costs,USMANI KING LTD,128629730,"74,571.00",Legal Aid Payments: Crime Lower
MINISTRY OF JUSTICE,LEGAL AID AGENCY,Crime Higher,06/07/2013,LEGAL AID FUND - Programme Costs,METCALFE COPEMAN & PETTEFAR,128745306,"74,474.99",Legal Aid Payments: Crime Higher
MINISTRY OF JUSTICE,LEGAL AID AGENCY,Crime Higher,6/21/2013,LEGAL AID FUND - Programme Costs,GARSTANGS BURROWS BUSSIN LLP,128925920,"74,467.74",Legal Aid Payments: Crime Higher
MINISTRY OF JUSTICE,LEGAL AID AGENCY,Crime Lower,06/03/2013,LEGAL AID FUND - Programme Costs,SCOTT-MONCRIEFF & ASSOCIATES LLP,128628907,"74,300.00",Legal Aid Payments: Crime Lower
MINISTRY OF JUSTICE,LEGAL AID AGENCY,Crime Higher,6/14/2013,LEGAL AID FUND - Programme Costs,HALLINAN BLACKBURN GITTINGS & NOTT,128873545,"73,334.65",Legal Aid Payments: Crime Higher
MINISTRY OF JUSTICE,LEGAL AID AGENCY,Crime Lower,06/03/2013,LEGAL AID FUND - Programme Costs,VICKERS CHISMAN & WISHLADE,128629013,"73,100.00",Legal Aid Payments: Crime Lower
MINISTRY OF JUSTICE,LEGAL AID AGENCY,Crime Higher,6/21/2013,LEGAL AID FUND - Programme Costs,I B B SOLICITORS,128980128,"72,670.04",Legal Aid Payments: Crime Higher
MINISTRY OF JUSTICE,LEGAL AID AGENCY,Civil Representation,06/03/2013,LEGAL AID FUND - Programme Costs,STEPHEN P BROWN,128592804,"72,594.00",Legal Aid Payments: Civil Representation
MINISTRY OF JUSTICE,LEGAL AID AGENCY,Legal Help,06/03/2013,LEGAL AID FUND - Programme Costs,FADIGA & CO INC HARDING MITCHELL SOLICITORSAND HARDING,128628195,"72,404.00",Legal Aid Payments: Legal Help
MINISTRY OF JUSTICE,LEGAL AID AGENCY,Civil Representation,06/03/2013,LEGAL AID FUND - Programme Costs,WILLIAMSON SOLICITORS LTD,128484003,"72,216.00",Legal Aid Payments: Civil Representation
MINISTRY OF JUSTICE,LEGAL AID AGENCY,Crime Higher,06/07/2013,LEGAL AID FUND - Programme Costs,ABBOTT FORBES SOLICITORS,128721108,"72,084.48",Legal Aid Payments: Crime Higher
MINISTRY OF JUSTICE,LEGAL AID AGENCY,Crime Higher,06/07/2013,LEGAL AID FUND - Programme Costs,JUDITH KHAN QC,128721483,"71,607.50",Legal Aid Payments: Crime Higher
MINISTRY OF JUSTICE,LEGAL AID AGENCY,Crime Higher,06/03/2013,LEGAL AID FUND - Programme Costs,CRIMINAL DEFENCE ASSOCIATES,128519102,"71,013.59",Legal Aid Payments: Crime Higher
MINISTRY OF JUSTICE,LEGAL AID AGENCY,Legal Help,06/03/2013,LEGAL AID FUND - Programme Costs,DUNCAN LEWIS,128628188,"70,909.00",Legal Aid Payments: Legal Help
MINISTRY OF JUSTICE,LEGAL AID AGENCY,Crime Lower,06/03/2013,LEGAL AID FUND - Programme Costs,MICHAEL PURDON,128629890,"70,575.00",Legal Aid Payments: Crime Lower
MINISTRY OF JUSTICE,LEGAL AID AGENCY,Crime Lower,06/03/2013,LEGAL AID FUND - Programme Costs,LAWRENCE & CO,128628926,"70,100.00",Legal Aid Payments: Crime Lower
MINISTRY OF JUSTICE,LEGAL AID AGENCY,Crime Lower,06/03/2013,LEGAL AID FUND - Programme Costs,MARTIN MURRAY & ASSOCIATES,128629378,"69,700.00",Legal Aid Payments: Crime Lower
MINISTRY OF JUSTICE,LEGAL AID AGENCY,Crime Lower,06/03/2013,LEGAL AID FUND - Programme Costs,LAWTONS,128629621,"69,700.00",Legal Aid Payments: Crime Lower
MINISTRY OF JUSTICE,LEGAL AID AGENCY,Legal Help,06/03/2013,LEGAL AID FUND - Programme Costs,CARTWRIGHT KING SOLICITORS,128627836,"69,600.00",Legal Aid Payments: Legal Help
MINISTRY OF JUSTICE,LEGAL AID AGENCY,Crime Lower,06/03/2013,LEGAL AID FUND - Programme Costs,VHS FLETCHERS,128628662,"69,600.00",Legal Aid Payments: Crime Lower
MINISTRY OF JUSTICE,LEGAL AID AGENCY,Crime Higher,06/07/2013,LEGAL AID FUND - Programme Costs,CUNNINGHAMS DRAYCOTT BROWNE LTD,128745682,"69,535.51",Legal Aid Payments: Crime Higher
MINISTRY OF JUSTICE,LEGAL AID AGENCY,Crime Higher,06/03/2013,LEGAL AID FUND - Programme Costs,HALLINAN BLACKBURN GITTINGS & NOTT,128631293,"69,043.46",Legal Aid Payments: Crime Higher
MINISTRY OF JUSTICE,LEGAL AID AGENCY,Crime Higher,06/07/2013,LEGAL AID FUND - Programme Costs,MARY MONSON SOLICITORS,128744659,"68,905.28",Legal Aid Payments: Crime Higher
MINISTRY OF JUSTICE,LEGAL AID AGENCY,Crime Higher,6/21/2013,LEGAL AID FUND - Programme Costs,GARSTANGS BURROWS BUSSIN LLP,128979964,"68,905.28",Legal Aid Payments: Crime Higher
MINISTRY OF JUSTICE,LEGAL AID AGENCY,Crime Higher,06/07/2013,LEGAL AID FUND - Programme Costs,KANGS SOLICITORS,128745833,"68,738.29",Legal Aid Payments: Crime Higher
MINISTRY OF JUSTICE,LEGAL AID AGENCY,Crime Higher,6/14/2013,LEGAL AID FUND - Programme Costs,JANES SOLICITORS,128885410,"68,625.42",Legal Aid Payments: Crime Higher
MINISTRY OF JUSTICE,LEGAL AID AGENCY,Crime Lower,06/03/2013,LEGAL AID FUND - Programme Costs,BESWICKS SOLICITORS LLP,128629508,"68,600.00",Legal Aid Payments: Crime Lower
MINISTRY OF JUSTICE,LEGAL AID AGENCY,Crime Higher,06/07/2013,LEGAL AID FUND - Programme Costs,HANSON WOODS SOLICITORS LLP,128746271,"68,594.34",Legal Aid Payments: Crime Higher
MINISTRY OF JUSTICE,LEGAL AID AGENCY,Crime Higher,06/03/2013,LEGAL AID FUND - Programme Costs,CENTRAL LAW PRACTICE,128632544,"68,361.82",Legal Aid Payments: Crime Higher
MINISTRY OF JUSTICE,LEGAL AID AGENCY,Crime Higher,6/21/2013,LEGAL AID FUND - Programme Costs,IRWIN MITCHELL LLP,128971813,"67,622.82",Legal Aid Payments: Crime Higher
MINISTRY OF JUSTICE,LEGAL AID AGENCY,Crime Higher,06/07/2013,LEGAL AID FUND - Programme Costs,HASKELL & CO,128722384,"67,153.57",Legal Aid Payments: Crime Higher
MINISTRY OF JUSTICE,LEGAL AID AGENCY,Crime Lower,06/03/2013,LEGAL AID FUND - Programme Costs,REEDS SOLICITORS LTD,128630059,"66,962.00",Legal Aid Payments: Crime Lower
MINISTRY OF JUSTICE,LEGAL AID AGENCY,Crime Higher,06/07/2013,LEGAL AID FUND - Programme Costs,MSB LAW LLP,128722381,"66,666.54",Legal Aid Payments: Crime Higher
MINISTRY OF JUSTICE,LEGAL AID AGENCY,Crime Higher,6/14/2013,LEGAL AID FUND - Programme Costs,BURRELL JENKINS SOLICITORS,128873538,"66,666.54",Legal Aid Payments: Crime Higher
MINISTRY OF JUSTICE,LEGAL AID AGENCY,Legal Help,06/03/2013,LEGAL AID FUND - Programme Costs,BAKE & CO SOLICITORS,128586770,"66,625.00",Legal Aid Payments: Legal Help
MINISTRY OF JUSTICE,LEGAL AID AGENCY,Legal Help,06/03/2013,LEGAL AID FUND - Programme Costs,SWITALSKI'S LLP,128627386,"66,600.00",Legal Aid Payments: Legal Help
MINISTRY OF JUSTICE,LEGAL AID AGENCY,Crime Higher,06/03/2013,LEGAL AID FUND - Programme Costs,AMOSU ROBINSHAW,128519111,"66,007.66",Legal Aid Payments: Crime Higher
MINISTRY OF JUSTICE,LEGAL AID AGENCY,Crime Higher,06/07/2013,LEGAL AID FUND - Programme Costs,STUART H M DENNEY,128792318,"65,981.28",Legal Aid Payments: Crime Higher
MINISTRY OF JUSTICE,LEGAL AID AGENCY,Crime Higher,06/07/2013,LEGAL AID FUND - Programme Costs,PAUL K LEWIS Q.C.,128769034,"65,922.00",Legal Aid Payments: Crime Higher
MINISTRY OF JUSTICE,LEGAL AID AGENCY,Crime Higher,06/03/2013,LEGAL AID FUND - Programme Costs,LEONARD SMITH Q.C.,128604549,"65,918.62",Legal Aid Payments: Crime Higher
MINISTRY OF JUSTICE,LEGAL AID AGENCY,Crime Lower,06/03/2013,LEGAL AID FUND - Programme Costs,POWELL SPENCER AND PARTNERS,128628812,"65,900.00",Legal Aid Payments: Crime Lower
MINISTRY OF JUSTICE,LEGAL AID AGENCY,Legal Help,06/03/2013,LEGAL AID FUND - Programme Costs,NIEKO SOLICITORS,128587375,"65,708.00",Legal Aid Payments: Legal Help
MINISTRY OF JUSTICE,LEGAL AID AGENCY,Crime Higher,06/03/2013,LEGAL AID FUND - Programme Costs,YASMIN & SHAID SOLICITORS LTD,128656880,"65,512.08",Legal Aid Payments: Crime Higher
MINISTRY OF JUSTICE,LEGAL AID AGENCY,Crime Higher,06/07/2013,LEGAL AID FUND - Programme Costs,ROBERT S BARRETT,128792881,"65,496.70",Legal Aid Payments: Crime Higher
MINISTRY OF JUSTICE,LEGAL AID AGENCY,Crime Higher,06/07/2013,LEGAL AID FUND - Programme Costs,FRISBY & CO,128793657,"65,397.12",Legal Aid Payments: Crime Higher
MINISTRY OF JUSTICE,LEGAL AID AGENCY,Crime Higher,6/14/2013,LEGAL AID FUND - Programme Costs,M R LAWS,128850486,"65,101.72",Legal Aid Payments: Crime Higher
MINISTRY OF JUSTICE,LEGAL AID AGENCY,Crime Higher,6/14/2013,LEGAL AID FUND - Programme Costs,WEST MIDLANDS SOLICITORS,128919528,"65,101.72",Legal Aid Payments: Crime Higher
MINISTRY OF JUSTICE,LEGAL AID AGENCY,Crime Lower,06/03/2013,LEGAL AID FUND - Programme Costs,THE FIRST LAW PARTNERSHIP LTD,128628712,"65,000.00",Legal Aid Payments: Crime Lower
MINISTRY OF JUSTICE,LEGAL AID AGENCY,Crime Higher,06/03/2013,LEGAL AID FUND - Programme Costs,MURRAYS SOLICITORS,128656468,"64,971.53",Legal Aid Payments: Crime Higher
MINISTRY OF JUSTICE,LEGAL AID AGENCY,Crime Lower,06/03/2013,LEGAL AID FUND - Programme Costs,WELLS BURCOMBE LLP,128629726,"64,890.00",Legal Aid Payments: Crime Lower
MINISTRY OF JUSTICE,LEGAL AID AGENCY,Crime Lower,06/03/2013,LEGAL AID FUND - Programme Costs,CARTWRIGHT CLARK LTD,128630047,"64,784.00",Legal Aid Payments: Crime Lower
MINISTRY OF JUSTICE,LEGAL AID AGENCY,Legal Help,06/03/2013,LEGAL AID FUND - Programme Costs,HOWE & CO,128627543,"64,700.00",Legal Aid Payments: Legal Help
MINISTRY OF JUSTICE,LEGAL AID AGENCY,Legal Help,06/03/2013,LEGAL AID FUND - Programme Costs,BRIGHTON HOUSING TRUST,128586340,"64,492.00",Legal Aid Payments: Legal Help
MINISTRY OF JUSTICE,LEGAL AID AGENCY,Legal Help,06/03/2013,LEGAL AID FUND - Programme Costs,SCOTT-MONCRIEFF & ASSOCIATES LLP,128627522,"64,300.00",Legal Aid Payments: Legal Help
MINISTRY OF JUSTICE,LEGAL AID AGENCY,Legal Help,06/03/2013,LEGAL AID FUND - Programme Costs,CHAMBERS SOLICITORS,128628159,"64,117.00",Legal Aid Payments: Legal Help
MINISTRY OF JUSTICE,LEGAL AID AGENCY,Crime Lower,06/03/2013,LEGAL AID FUND - Programme Costs,HENRY HYAMS,128629136,"63,800.00",Legal Aid Payments: Crime Lower
MINISTRY OF JUSTICE,LEGAL AID AGENCY,Crime Lower,06/03/2013,LEGAL AID FUND - Programme Costs,ALLEN HOOLE SOLICITORS,128629436,"63,000.00",Legal Aid Payments: Crime Lower
MINISTRY OF JUSTICE,LEGAL AID AGENCY,Crime Higher,6/14/2013,LEGAL AID FUND - Programme Costs,GARSTANGS BURROWS BUSSIN LLP,128808160,"62,953.27",Legal Aid Payments: Crime Higher
MINISTRY OF JUSTICE,LEGAL AID AGENCY,Crime Higher,6/14/2013,LEGAL AID FUND - Programme Costs,ANDREW J HALL QC,128872262,"62,749.74",Legal Aid Payments: Crime Higher
MINISTRY OF JUSTICE,LEGAL AID AGENCY,Crime Higher,6/14/2013,LEGAL AID FUND - Programme Costs,ANDREW KEENAN & CO,128873089,"62,686.45",Legal Aid Payments: Crime Higher
MINISTRY OF JUSTICE,LEGAL AID AGENCY,Crime Lower,06/03/2013,LEGAL AID FUND - Programme Costs,SMITH PARTNERSHIP,128628672,"62,600.00",Legal Aid Payments: Crime Lower
MINISTRY OF JUSTICE,LEGAL AID AGENCY,Crime Lower,06/03/2013,LEGAL AID FUND - Programme Costs,WELLS BURCOMBE LLP,128630260,"62,315.00",Legal Aid Payments: Crime Lower
MINISTRY OF JUSTICE,LEGAL AID AGENCY,Crime Higher,6/14/2013,LEGAL AID FUND - Programme Costs,BENJAMIN A O AINA,128850178,"62,187.90",Legal Aid Payments: Crime Higher
MINISTRY OF JUSTICE,LEGAL AID AGENCY,Crime Lower,06/03/2013,LEGAL AID FUND - Programme Costs,CROWE HUMBLE WESENCRAFT,128629048,"61,700.00",Legal Aid Payments: Crime Lower
MINISTRY OF JUSTICE,LEGAL AID AGENCY,Crime Higher,6/14/2013,LEGAL AID FUND - Programme Costs,ROBERT G MARSHALL-ANDREWS QC,128809087,"61,426.80",Legal Aid Payments: Crime Higher
MINISTRY OF JUSTICE,LEGAL AID AGENCY,Crime Lower,06/03/2013,LEGAL AID FUND - Programme Costs,MORGAN CULLEN BALL LLP,128630412,"61,405.00",Legal Aid Payments: Crime Lower
MINISTRY OF JUSTICE,LEGAL AID AGENCY,Crime Higher,6/14/2013,LEGAL AID FUND - Programme Costs,STUART F DRIVER QC,128851012,"61,308.42",Legal Aid Payments: Crime Higher
MINISTRY OF JUSTICE,LEGAL AID AGENCY,Crime Higher,06/03/2013,LEGAL AID FUND - Programme Costs,STRINGFELLOW & CO,128656875,"61,296.28",Legal Aid Payments: Crime Higher
MINISTRY OF JUSTICE,LEGAL AID AGENCY,Crime Lower,06/03/2013,LEGAL AID FUND - Programme Costs,SONN MACMILLAN WALKER LTD,128628783,"61,000.00",Legal Aid Payments: Crime Lower
MINISTRY OF JUSTICE,LEGAL AID AGENCY,Civil Representation,6/26/2013,LEGAL AID FUND - Programme Costs,H JONATHAN FURNESS Q.C.,129015179,"60,984.00",Legal Aid Payments: Civil Representation
MINISTRY OF JUSTICE,LEGAL AID AGENCY,Crime Higher,6/14/2013,LEGAL AID FUND - Programme Costs,SMITH PARTNERSHIP,128918996,"60,843.53",Legal Aid Payments: Crime Higher
MINISTRY OF JUSTICE,LEGAL AID AGENCY,Crime Lower,06/03/2013,LEGAL AID FUND - Programme Costs,LAWTONS SOLICITORS LTD,128628710,"60,800.00",Legal Aid Payments: Crime Lower
MINISTRY OF JUSTICE,LEGAL AID AGENCY,Crime Higher,06/03/2013,LEGAL AID FUND - Programme Costs,JOEL N BENNATHAN QC,128560738,"60,390.54",Legal Aid Payments: Crime Higher
MINISTRY OF JUSTICE,LEGAL AID AGENCY,Legal Help,06/03/2013,LEGAL AID FUND - Programme Costs,SWITALSKIS-WAKEFIELD CLAS,128523435,"60,361.28",Legal Aid Payments: Legal Help
MINISTRY OF JUSTICE,LEGAL AID AGENCY,Crime Higher,6/21/2013,LEGAL AID FUND - Programme Costs,JOANNA E G GREENBERG QC,129053019,"60,332.70",Legal Aid Payments: Crime Higher
MINISTRY OF JUSTICE,LEGAL AID AGENCY,Crime Lower,06/03/2013,LEGAL AID FUND - Programme Costs,SWAIN & CO SOLICITORS LLP,128629348,"60,300.00",Legal Aid Payments: Crime Lower
MINISTRY OF JUSTICE,LEGAL AID AGENCY,Civil Representation,06/03/2013,LEGAL AID FUND - Programme Costs,RACHEL E ROWLEY,128646624,"60,192.00",Legal Aid Payments: Civil Representation
MINISTRY OF JUSTICE,LEGAL AID AGENCY,Crime Higher,06/03/2013,LEGAL AID FUND - Programme Costs,YASMIN & SHAID SOLICITORS LTD,128631408,"60,139.98",Legal Aid Payments: Crime Higher
MINISTRY OF JUSTICE,LEGAL AID AGENCY,Crime Lower,06/03/2013,LEGAL AID FUND - Programme Costs,G T STEWART SOLICITORS,128629839,"60,090.00",Legal Aid Payments: Crime Lower
MINISTRY OF JUSTICE,LEGAL AID AGENCY,Crime Higher,06/03/2013,LEGAL AID FUND - Programme Costs,HOWARD BERNSTEIN SOLICITORS,128655931,"60,046.31",Legal Aid Payments: Crime Higher
MINISTRY OF JUSTICE,LEGAL AID AGENCY,Crime Lower,06/03/2013,LEGAL AID FUND - Programme Costs,RMNJ SOLICITORS ***,128628970,"59,800.00",Legal Aid Payments: Crime Lower
MINISTRY OF JUSTICE,LEGAL AID AGENCY,Crime Higher,6/21/2013,LEGAL AID FUND - Programme Costs,MPR SOLICITORS LLP [ADVOCATE],129051715,"59,569.75",Legal Aid Payments: Crime Higher
MINISTRY OF JUSTICE,LEGAL AID AGENCY,Crime Higher,06/03/2013,LEGAL AID FUND - Programme Costs,AMOSU ROBINSHAW,128656791,"59,563.95",Legal Aid Payments: Crime Higher
MINISTRY OF JUSTICE,LEGAL AID AGENCY,Crime Higher,6/21/2013,LEGAL AID FUND - Programme Costs,GARSTANGS BURROWS BUSSIN LLP,128979975,"59,384.34",Legal Aid Payments: Crime Higher
MINISTRY OF JUSTICE,LEGAL AID AGENCY,Crime Higher,06/07/2013,LEGAL AID FUND - Programme Costs,CARTWRIGHT KING SOLICITORS,128710768,"59,250.48",Legal Aid Payments: Crime Higher
MINISTRY OF JUSTICE,LEGAL AID AGENCY,Legal Help,06/03/2013,LEGAL AID FUND - Programme Costs,PETER EDWARDS LAW LTD,128627432,"59,200.00",Legal Aid Payments: Legal Help
MINISTRY OF JUSTICE,LEGAL AID AGENCY,Crime Lower,06/03/2013,LEGAL AID FUND - Programme Costs,BURTON COPELAND LLP,128630000,"59,016.00",Legal Aid Payments: Crime Lower
MINISTRY OF JUSTICE,LEGAL AID AGENCY,Crime Higher,6/21/2013,LEGAL AID FUND - Programme Costs,SARAH A FORSHAW QC,129053129,"58,834.48",Legal Aid Payments: Crime Higher
MINISTRY OF JUSTICE,LEGAL AID AGENCY,Crime Lower,06/03/2013,LEGAL AID FUND - Programme Costs,GHP LEGAL,128628602,"58,700.00",Legal Aid Payments: Crime Lower
MINISTRY OF JUSTICE,LEGAL AID AGENCY,Crime Lower,06/03/2013,LEGAL AID FUND - Programme Costs,KAIM TODNER SOLICITORS LIMITED,128629775,"58,520.00",Legal Aid Payments: Crime Lower
MINISTRY OF JUSTICE,LEGAL AID AGENCY,Civil Representation,6/14/2013,LEGAL AID FUND - Programme Costs,THOMAS HICKMAN,128524440,"58,234.76",Legal Aid Payments: Civil Representation
MINISTRY OF JUSTICE,LEGAL AID AGENCY,Legal Help,06/03/2013,LEGAL AID FUND - Programme Costs,LAWANA & CO,128627462,"58,200.00",Legal Aid Payments: Legal Help
MINISTRY OF JUSTICE,LEGAL AID AGENCY,Crime Higher,6/21/2013,LEGAL AID FUND - Programme Costs,BARK & CO,129044850,"58,161.01",Legal Aid Payments: Crime Higher
MINISTRY OF JUSTICE,LEGAL AID AGENCY,Crime Lower,06/03/2013,LEGAL AID FUND - Programme Costs,NELSON GUEST & PARTNERS,128628858,"58,100.00",Legal Aid Payments: Crime Lower
MINISTRY OF JUSTICE,LEGAL AID AGENCY,Crime Lower,06/03/2013,LEGAL AID FUND - Programme Costs,STERNBERG REED SOLICITORS,128628892,"58,100.00",Legal Aid Payments: Crime Lower
MINISTRY OF JUSTICE,LEGAL AID AGENCY,Crime Lower,06/03/2013,LEGAL AID FUND - Programme Costs,IRVINE THANVI NATAS SOLICITORS,128628809,"58,000.00",Legal Aid Payments: Crime Lower
MINISTRY OF JUSTICE,LEGAL AID AGENCY,Crime Lower,06/03/2013,LEGAL AID FUND - Programme Costs,HENNESSY & HAMMUDI,128629393,"57,500.00",Legal Aid Payments: Crime Lower
MINISTRY OF JUSTICE,LEGAL AID AGENCY,Crime Higher,6/21/2013,LEGAL AID FUND - Programme Costs,GHP LEGAL,128979888,"57,412.55",Legal Aid Payments: Crime Higher
MINISTRY OF JUSTICE,LEGAL AID AGENCY,Crime Higher,06/03/2013,LEGAL AID FUND - Programme Costs,GOLDKORNS,128580433,"57,248.71",Legal Aid Payments: Crime Higher
MINISTRY OF JUSTICE,LEGAL AID AGENCY,Crime Higher,06/03/2013,LEGAL AID FUND - Programme Costs,IMRAN KHAN & PARTNERS,128656040,"57,248.71",Legal Aid Payments: Crime Higher
MINISTRY OF JUSTICE,LEGAL AID AGENCY,Crime Higher,6/21/2013,LEGAL AID FUND - Programme Costs,RUSTEM GUARDIAN SOLICITORS,129004792,"57,248.71",Legal Aid Payments: Crime Higher
MINISTRY OF JUSTICE,LEGAL AID AGENCY,Crime Lower,06/03/2013,LEGAL AID FUND - Programme Costs,CARR & CO,128629107,"56,600.00",Legal Aid Payments: Crime Lower
MINISTRY OF JUSTICE,LEGAL AID AGENCY,Civil Representation,6/14/2013,LEGAL AID FUND - Programme Costs,PHILIP A BOOTH,128837193,"56,370.00",Legal Aid Payments: Civil Representation
MINISTRY OF JUSTICE,LEGAL AID AGENCY,Crime Lower,06/03/2013,LEGAL AID FUND - Programme Costs,HINE SOLICITORS,128630252,"56,290.00",Legal Aid Payments: Crime Lower
MINISTRY OF JUSTICE,LEGAL AID AGENCY,Crime Lower,06/03/2013,LEGAL AID FUND - Programme Costs,HASKELL & CO,128630009,"56,266.00",Legal Aid Payments: Crime Lower
MINISTRY OF JUSTICE,LEGAL AID AGENCY,Crime Lower,06/03/2013,LEGAL AID FUND - Programme Costs,BAXTER BROWN MCARTHUR SOLICITORS,128628834,"55,400.00",Legal Aid Payments: Crime Lower
MINISTRY OF JUSTICE,LEGAL AID AGENCY,Crime Lower,06/03/2013,LEGAL AID FUND - Programme Costs,BLACKFORDS LLP,128629780,"55,355.00",Legal Aid Payments: Crime Lower
MINISTRY OF JUSTICE,LEGAL AID AGENCY,Legal Help,06/03/2013,LEGAL AID FUND - Programme Costs,PARAGON LAW LTD,128627822,"55,000.00",Legal Aid Payments: Legal Help
MINISTRY OF JUSTICE,LEGAL AID AGENCY,Crime Lower,06/03/2013,LEGAL AID FUND - Programme Costs,BELMORES SOLICITORS LTD,128628734,"55,000.00",Legal Aid Payments: Crime Lower
MINISTRY OF JUSTICE,LEGAL AID AGENCY,Crime Lower,06/03/2013,LEGAL AID FUND - Programme Costs,GEOFF WHITE & CO,128629329,"55,000.00",Legal Aid Payments: Crime Lower
MINISTRY OF JUSTICE,LEGAL AID AGENCY,Legal Help,06/03/2013,LEGAL AID FUND - Programme Costs,THOMPSON & CO,128587625,"54,837.00",Legal Aid Payments: Legal Help
MINISTRY OF JUSTICE,LEGAL AID AGENCY,Crime Lower,06/03/2013,LEGAL AID FUND - Programme Costs,STEVENS SOLICITORS,128629514,"54,700.00",Legal Aid Payments: Crime Lower
MINISTRY OF JUSTICE,LEGAL AID AGENCY,Crime Higher,06/07/2013,LEGAL AID FUND - Programme Costs,JANES SOLICITORS,128712177,"54,657.21",Legal Aid Payments: Crime Higher
